Organisation Name,Organisation Code,Effective Date,Directorate,Service Category,Service Category URI,Supplier Name,Payment Date,Transaction Number,Net Amount,Irrecoverable VAT,Purpose_of_the_expenditure,Merchant Category
Wyre Council,http://opendatacommunities.org/doc/district-council/wyre,30/05/2024,Resources,Cultural and Related Services,132A,Preston City Council,23/05/2024,RS159643,42.64,0.00,500 x 2pp A5 Resident information leaflets,Advertising - General
Wyre Council,http://opendatacommunities.org/doc/district-council/wyre,30/05/2024,People and Places,Planning and Development Servs,132C,Duxburys Commercial,08/05/2024,PE159108,430.00,0.00,"letting of Unit 11 Croft Court, Butts Close, Thornton Cleveleys, FY5 4JX",Advertising - General
Wyre Council,http://opendatacommunities.org/doc/district-council/wyre,30/05/2024,People and Places,Planning and Development Servs,132C,Duxburys Commercial,01/05/2024,PE158925,430.00,0.00,"Set fee for letting of Unit 9 Croft Court, Butts Close Thornton Cleveleys FY5 4JX",Advertising - General
Wyre Council,http://opendatacommunities.org/doc/district-council/wyre,30/05/2024,People and Places,Planning and Development Servs,132C,Duxburys Commercial,01/05/2024,PE158924,430.00,0.00,"Set fee for letting of Unit 18 Croft Court, Butts Close, Thonton Cleveleys, FY5 4JX",Advertising - General
Wyre Council,http://opendatacommunities.org/doc/district-council/wyre,30/05/2024,Resources,Planning and Development Servs,132C,Daisy Communications LTD,07/05/2024,RS158987,50.70,0.00,Service Charges 01/05/24 to 31/05/24,Advertising - General
Wyre Council,http://opendatacommunities.org/doc/district-council/wyre,30/05/2024,Resources,Planning and Development Servs,132C,Daisy Communications LTD,07/05/2024,RS158244,50.70,0.00,Service Charges 01/04/24 to 30/04/24,Advertising - General
Wyre Council,http://opendatacommunities.org/doc/district-council/wyre,30/05/2024,People and Places,Cultural and Related Services,132A,Kingfisher Media Ltd,24/05/2024,PE159670,1495.00,0.00,Welcome to Lancashire yearly guide DW advert,Advertising - General
Wyre Council,http://opendatacommunities.org/doc/district-council/wyre,30/05/2024,Resources,Support Services,135B, Hemming Group LTD,21/05/2024,RS159148,2805.00,0.00,"Advertising AD of Finance, December 2023",Advertising - Recruitment
Wyre Council,http://opendatacommunities.org/doc/district-council/wyre,30/05/2024,Resources,Support Services,135B, Hemming Group LTD,09/05/2024,RS159143,3500.00,0.00,12 month subscription MJ recruitment advertising package,Advertising - Recruitment
Wyre Council,http://opendatacommunities.org/doc/district-council/wyre,30/05/2024,People and Places,Planning and Development Servs,132C,National World Publishing Ltd,03/05/2024,PE159017,133.56,0.00,Fleetwood Weekly News 01.05.24,Advertising - Statutory Notices
Wyre Council,http://opendatacommunities.org/doc/district-council/wyre,30/05/2024,People and Places,Planning and Development Servs,132C,National World Publishing Ltd,24/05/2024,PE159669,152.64,0.00,Fleetwood Weekly News 22.05.24,Advertising - Statutory Notices
Wyre Council,http://opendatacommunities.org/doc/district-council/wyre,30/05/2024,People and Places,Planning and Development Servs,132C,National World Publishing Ltd,01/05/2024,PE158955,246.56,0.00,Garstang and Blackpool 06.03.24,Advertising - Statutory Notices
Wyre Council,http://opendatacommunities.org/doc/district-council/wyre,30/05/2024,People and Places,Housing General Fund,134A,Huck Properties LTD,09/05/2024,PE159151,970.00,0.00,Affordable warmth - Invoice 4009,Affordable Warmth 2017/18
Wyre Council,http://opendatacommunities.org/doc/district-council/wyre,30/05/2024,People and Places,Planning and Development Servs,132C,Trident Rentals Ltd,17/05/2024,PE158842,489.67,0.00,compactor rental,Agency Staff
Wyre Council,http://opendatacommunities.org/doc/district-council/wyre,30/05/2024,People and Places,Cultural and Related Services,132A,Catering Elite Ltd,21/05/2024,PE159549,350.02,0.00,Agency staff 5/5/24,Agency Staff
Wyre Council,http://opendatacommunities.org/doc/district-council/wyre,30/05/2024,People and Places,Cultural and Related Services,132A,Catering Elite Ltd,01/05/2024,PE158941,107.70,0.00,Agency staff 28/4/24,Agency Staff
Wyre Council,http://opendatacommunities.org/doc/district-council/wyre,30/05/2024,People and Places,Cultural and Related Services,132A,Catering Elite Ltd,15/05/2024,PE159381,291.70,0.00,Agency staff 14/4/24,Agency Staff
Wyre Council,http://opendatacommunities.org/doc/district-council/wyre,30/05/2024,Resources,Central Services to the Public,131C,The Association Of Electoral Administrators,17/05/2024,RS159433,23846.16,0.00,Consultancy Services for April 2024 (Plus Accommodation & Travel),Agency Staff
Wyre Council,http://opendatacommunities.org/doc/district-council/wyre,30/05/2024,People and Places,Support Services,135B,Vivid Resourcing Ltd,02/05/2024,PE158976,6032.50,0.00,GP Surveyor -  period 7 April 2024 to 28 April 2024.,Agency Staff
Wyre Council,http://opendatacommunities.org/doc/district-council/wyre,30/05/2024,Resources,Housing General Fund,134A,Vivid Resourcing Ltd,03/05/2024,RS159000,4473.30,0.00,"Sheet No Date Job Title Worker Units Rate Name Rate Value Net  1155839 07/04/24 Housing Options  31:00 hrs Standard Rate 37.00 1,147.00  1160205 14/04/24 Housing Options Officer  15:23 hrs Standard Rate 37.00 569.18  1163925",Agency Staff
Wyre Council,http://opendatacommunities.org/doc/district-council/wyre,30/05/2024,People and Places,Support Services,135B,Vivid Resourcing Ltd,24/05/2024,PE159662,1614.89,0.00,Appointment - Environmental Health team from 28th February 2024 for 3 months contract to assist in the Policy and writing for the Licensing department 15hrs per week for a period of 3 months,Agency Staff
Wyre Council,http://opendatacommunities.org/doc/district-council/wyre,30/05/2024,People and Places,Support Services,135B,Vivid Resourcing Ltd,15/05/2024,PE159340,1695.27,0.00,"To extend contract, Contaminated Land Officer for a further 3 months from Monday 11th March 2024.",Agency Staff
Wyre Council,http://opendatacommunities.org/doc/district-council/wyre,30/05/2024,People and Places,Planning and Development Servs,132C,Vivid Resourcing Ltd,17/05/2024,PE159425,2500.00,0.00,Fleetwood market ,Agency Staff
Wyre Council,http://opendatacommunities.org/doc/district-council/wyre,30/05/2024,People and Places,Planning and Development Servs,132C,Vivid Resourcing Ltd,17/05/2024,PE159425,2000.00,0.00,Additional time,Agency Staff
Wyre Council,http://opendatacommunities.org/doc/district-council/wyre,30/05/2024,Resources,Support Services,135B,G2V Recruitment Group Ltd T/A G2 Recruitment Solu,09/05/2024,RS159152,1706.25,0.00,Invoice SLIG2R0138239 28/04/2024,Agency Staff
Wyre Council,http://opendatacommunities.org/doc/district-council/wyre,30/05/2024,People and Places,Support Services,135B,G2V Recruitment Group Ltd T/A G2 Recruitment Solu,15/05/2024,PE159333,1661.70,0.00, 07/04/2024,Agency Staff
Wyre Council,http://opendatacommunities.org/doc/district-council/wyre,30/05/2024,Resources,Support Services,135B,G2V Recruitment Group Ltd T/A G2 Recruitment Solu,02/05/2024,RS158776,1655.85,0.00, Period end 17/03/24 Invoice SLIG2R0135804,Agency Staff
Wyre Council,http://opendatacommunities.org/doc/district-council/wyre,30/05/2024,Resources,Support Services,135B,G2V Recruitment Group Ltd T/A G2 Recruitment Solu,14/05/2024,RS159258,1671.15,0.00,SLIG2R013856405/05/2024,Agency Staff
Wyre Council,http://opendatacommunities.org/doc/district-council/wyre,30/05/2024,Resources,Support Services,135B,G2V Recruitment Group Ltd T/A G2 Recruitment Solu,16/05/2024,RS159402,1575.97,0.00,12/05/2024 Invoice SLIG2R0138905,Agency Staff
Wyre Council,http://opendatacommunities.org/doc/district-council/wyre,30/05/2024,Resources,Support Services,135B,G2V Recruitment Group Ltd T/A G2 Recruitment Solu,30/05/2024,RS159649,1659.90,0.00, SLIG2R0139368 - 19/05/24,Agency Staff
Wyre Council,http://opendatacommunities.org/doc/district-council/wyre,30/05/2024,Resources,Support Services,135B,G2V Recruitment Group Ltd T/A G2 Recruitment Solu,30/05/2024,RS159802,1681.05,0.00,SLIG2R0139648 -  26/05/24,Agency Staff
Wyre Council,http://opendatacommunities.org/doc/district-council/wyre,30/05/2024,Resources,Support Services,135B,G2V Recruitment Group Ltd T/A G2 Recruitment Solu,01/05/2024,RS158944,1689.60,0.00,period end 14/04/2024 Invoice SLIG2R0137502,Agency Staff
Wyre Council,http://opendatacommunities.org/doc/district-council/wyre,30/05/2024,Resources,Support Services,135B,G2V Recruitment Group Ltd T/A G2 Recruitment Solu,01/05/2024,RS158943,1650.00,0.00,21/04/2024 Invoice SLIG2R0137606,Agency Staff
Wyre Council,http://opendatacommunities.org/doc/district-council/wyre,30/05/2024,Resources,Support Services,135B,Macildowie Associates Limited,15/05/2024,RS159368,2759.80,0.00,Year End Closure AccountantStart Day 25/03/2024End Day 28/06/2024Weekdays  70Good Friday -1Easter Monday -1May Day Spring Bank Holiday -1Forecast Work Days 66Day Rate 689.95,Agency Staff
Wyre Council,http://opendatacommunities.org/doc/district-council/wyre,30/05/2024,Resources,Support Services,135B,Macildowie Associates Limited,13/05/2024,RS159231,3449.75,0.00,Year End Closure AccountantStart Day 25/03/2024End Day 28/06/2024Weekdays  70Good Friday -1Easter Monday -1May Day Spring Bank Holiday -1Forecast Work Days 66Day Rate 689.95,Agency Staff
Wyre Council,http://opendatacommunities.org/doc/district-council/wyre,30/05/2024,Resources,Support Services,135B,Macildowie Associates Limited,22/05/2024,RS159639,3449.75,0.00,Year End Closure AccountantStart Day 25/03/2024End Day 28/06/2024Weekdays  70Good Friday -1Easter Monday -1May Day Spring Bank Holiday -1Forecast Work Days 66Day Rate 689.95,Agency Staff
Wyre Council,http://opendatacommunities.org/doc/district-council/wyre,30/05/2024,Resources,Support Services,135B,Macildowie Associates Limited,01/05/2024,RS158968,3449.75,0.00,Year End Closure AccountantStart Day 25/03/2024End Day 28/06/2024Weekdays  70Good Friday -1Easter Monday -1May Day Spring Bank Holiday -1Forecast Work Days 66Day Rate 689.95,Agency Staff
Wyre Council,http://opendatacommunities.org/doc/district-council/wyre,30/05/2024,People and Places,Support Services,135B,Environmental Health on the Move Ltd,24/05/2024,PE159671,3577.50,0.00,Contract in Licensing - working 4 months 18.5 hours a week @ 45 per hour,Agency Staff
Wyre Council,http://opendatacommunities.org/doc/district-council/wyre,30/05/2024,Resources,Support Services,135B,Daisy Communications LTD,07/05/2024,RS158244,13.87,0.00,Service Charges 01/04/24 to 30/04/24,Alarm Systems and Security - Annual
Wyre Council,http://opendatacommunities.org/doc/district-council/wyre,30/05/2024,Resources,Support Services,135B,Daisy Communications LTD,07/05/2024,RS158987,13.87,0.00,Service Charges 01/05/24 to 31/05/24,Alarm Systems and Security - Annual
Wyre Council,http://opendatacommunities.org/doc/district-council/wyre,30/05/2024,People and Places,Cultural and Related Services,132A,M D Security,09/05/2024,PE159111,856.00,0.00,"Cafe Cove & Beach Patrol: Upgrade security alarm control equipment 1 x security panel, 2 x keypads, 1 x expander, 1 x 7AH battery,5 x prox tags",Alarm Systems and Security - Annual
Wyre Council,http://opendatacommunities.org/doc/district-council/wyre,30/05/2024,Resources,Cultural and Related Services,132A,Preston City Council,23/05/2024,RS159644,24.38,0.00,Rossall Point Tower wildlife sightings noticeboard header115cm x 20cm printed full colour to self adhesive vinyl,Amenity and Information Signs
Wyre Council,http://opendatacommunities.org/doc/district-council/wyre,30/05/2024,People and Places,Cultural and Related Services,132A,Amazon Business,20/05/2024,PE159418,79.15,0.00,5 x A2 snap frames,Amenity and Information Signs
Wyre Council,http://opendatacommunities.org/doc/district-council/wyre,30/05/2024,People and Places,Cultural and Related Services,132A,Amazon Business,16/05/2024,PE159390,56.62,0.00,5 x A2 snap frames,Amenity and Information Signs
Wyre Council,http://opendatacommunities.org/doc/district-council/wyre,30/05/2024,Finance,Support Services,135B,,21/05/2024,WPST00143132,3077.00,0.00,Apr 24 Total Apprenticeship Levy,Apprenticeship Levy
Wyre Council,http://opendatacommunities.org/doc/district-council/wyre,30/05/2024,Finance,Support Services,135B,,21/05/2024,WPST00143133,2955.00,0.00,Jan 24 Apprenticeship levy,Apprenticeship Levy
Wyre Council,http://opendatacommunities.org/doc/district-council/wyre,30/05/2024,Resources,Corporate and Democratic Core,131A,PR Chauffeuring Services,08/05/2024,RS159139,924.00,0.00,Payment of Mayors attendant Invoice for April 2024,Attendant Chauffeur Service
Wyre Council,http://opendatacommunities.org/doc/district-council/wyre,30/05/2024,Finance,Corporate and Democratic Core,131A,NATWEST BANK,02/05/2024,WPST00141299,522.45,0.00,30-04-24 28MAR GRP 99795000,Bank Charges
Wyre Council,http://opendatacommunities.org/doc/district-council/wyre,30/05/2024,Finance,Corporate and Democratic Core,131A,NATWEST BANK,23/05/2024,WPST00143408,1376.16,0.00,21/05/24 Worldpay WP4W37 304546497,Bank Charges
Wyre Council,http://opendatacommunities.org/doc/district-council/wyre,30/05/2024,Finance,Corporate and Democratic Core,131A,NATWEST BANK,23/05/2024,WPST00143415,1775.88,0.00, 21/05/24 Worldpay WP4W37 304458308,Bank Charges
Wyre Council,http://opendatacommunities.org/doc/district-council/wyre,30/05/2024,People and Places,Environmental Services,132B,Lancashire County Council,13/05/2024,PE158721,26.00,0.00,For asbestos testing,Boarding Up Premises/House Clearance
Wyre Council,http://opendatacommunities.org/doc/district-council/wyre,30/05/2024,People and Places,Environmental Services,132B,Greenhalgh Kerr,28/05/2024,PE159695,5705.00,0.00,Professional charges in respects to the enforced sale.  Matter No: L0002361 Your Ref: 1111081292/ 1111067439 /1111075159/ 1111087795,Boarding Up Premises/House Clearance
Wyre Council,http://opendatacommunities.org/doc/district-council/wyre,30/05/2024,People and Places,Environmental Services,132B,Greenhalgh Kerr,28/05/2024,PE159695,1.50,0.00,probate search,Boarding Up Premises/House Clearance
Wyre Council,http://opendatacommunities.org/doc/district-council/wyre,30/05/2024,People and Places,Environmental Services,132B,Greenhalgh Kerr,28/05/2024,PE159695,3.00,0.00,land registry fees,Boarding Up Premises/House Clearance
Wyre Council,http://opendatacommunities.org/doc/district-council/wyre,30/05/2024,Resources,Support Services,135B,James Hallam Ltd,29/05/2024,RS159745,5267.56,0.00,Beach hut insurance policy phase 1,Building Insurance Premiums General
Wyre Council,http://opendatacommunities.org/doc/district-council/wyre,30/05/2024,People and Places,Planning and Development Servs,132C,The Royal Venue,29/05/2024,PE159748,33.33,0.00,Hire charge for business clinic,Business Workshop/Advice/Surgery Events
Wyre Council,http://opendatacommunities.org/doc/district-council/wyre,30/05/2024,People and Places,Parking Services,133F,APCOA Parking UK Ltd,29/05/2024,PE159149,579.08,0.00,Provide cash collection and processing services for Wyre Council car parking 1 April 2024 - 31 March 2025 1. Cash collection from Pay & Display car park machines - estimated 120 boxes per month at 11.33 per box  2. Cash counting and banking - estimated �,Cash Collection Security Service
Wyre Council,http://opendatacommunities.org/doc/district-council/wyre,30/05/2024,People and Places,Cultural and Related Services,132A,Nisbetts Next Day Catering Equipment,02/05/2024,PE158895,10.88,0.00,2000 disposable Cups (2 boxes)  and 200 disposable lids,Catering Disposables
Wyre Council,http://opendatacommunities.org/doc/district-council/wyre,30/05/2024,People and Places,Cultural and Related Services,132A,Nisbetts Next Day Catering Equipment,02/05/2024,PE158974,95.18,0.00,2000 disposable Cups (2 boxes)  and 200 disposable lids,Catering Disposables
Wyre Council,http://opendatacommunities.org/doc/district-council/wyre,30/05/2024,People and Places,Cultural and Related Services,132A,Northern Citrus Products LTD,01/05/2024,PE158939,288.00,0.00,disposables,Catering Disposables
Wyre Council,http://opendatacommunities.org/doc/district-council/wyre,30/05/2024,People and Places,Environmental Services,132B,M D Security,16/05/2024,PE159380,2198.00,0.00,Chatsworth Depot Monitoring of CCTV System 1 year  2024/25,CCTV Running Costs
Wyre Council,http://opendatacommunities.org/doc/district-council/wyre,30/05/2024,People and Places,Environmental Services,132B,N Power LTD,28/05/2024,PE159023,97.03,0.00,Unmetered electricity supply for town centre CCTV 1-30 April 2024,CCTV Running Costs
Wyre Council,http://opendatacommunities.org/doc/district-council/wyre,30/05/2024,People and Places,Environmental Services,132B,N Power LTD,28/05/2024,PE159023,145.58,0.00,Unmetered electricity supply for town centre CCTV 1-30 April 2024,CCTV Running Costs
Wyre Council,http://opendatacommunities.org/doc/district-council/wyre,30/05/2024,People and Places,Environmental Services,132B,N Power LTD,28/05/2024,PE159023,16.19,0.00,Unmetered electricity supply for town centre CCTV 1-30 April 2024,CCTV Running Costs
Wyre Council,http://opendatacommunities.org/doc/district-council/wyre,30/05/2024,Resources,Support Services,135B,Preston City Council,23/05/2024,RS159644,31.90,0.00,"CCTV incident log sheets - A4 2pp, black only 4 pads of 50, glued at top, hole punched to left hand side, numbered in black 14931 - 14980 / 14981  15030 / 15031 - 15080 / 15081  15130  /",Central Printer/Copier Expenses
Wyre Council,http://opendatacommunities.org/doc/district-council/wyre,30/05/2024,Resources,Support Services,135B,Key Engineering & Hygiene Supplies LTD,29/05/2024,RS159668,124.32,0.00,WHITE 2PLY LUXURY TOILET ROLL 320 40 PER PACK,Cleaning Materials
Wyre Council,http://opendatacommunities.org/doc/district-council/wyre,30/05/2024,Resources,Support Services,135B,Key Engineering & Hygiene Supplies LTD,29/05/2024,RS159668,12.78,0.00,CLEAR WINDOW CLEANER 750ML,Cleaning Materials
Wyre Council,http://opendatacommunities.org/doc/district-council/wyre,30/05/2024,Resources,Support Services,135B,Key Engineering & Hygiene Supplies LTD,29/05/2024,RS159668,3.19,0.00,KEYPINE GENERAL DISINFECTANT 5LTR,Cleaning Materials
Wyre Council,http://opendatacommunities.org/doc/district-council/wyre,30/05/2024,Resources,Support Services,135B,Key Engineering & Hygiene Supplies LTD,29/05/2024,RS159668,7.83,0.00,EVANS FOAMING LEMON SOAP 5L,Cleaning Materials
Wyre Council,http://opendatacommunities.org/doc/district-council/wyre,30/05/2024,Resources,Support Services,135B,Key Engineering & Hygiene Supplies LTD,29/05/2024,RS159668,24.72,0.00,FRESH AIR + FABRIC AEROSOL 400ML,Cleaning Materials
Wyre Council,http://opendatacommunities.org/doc/district-council/wyre,30/05/2024,Resources,Support Services,135B,Key Engineering & Hygiene Supplies LTD,29/05/2024,RS159668,25.84,0.00,REGULAR BLACK SACKS 18X29X38,Cleaning Materials
Wyre Council,http://opendatacommunities.org/doc/district-council/wyre,30/05/2024,Resources,Support Services,135B,Key Engineering & Hygiene Supplies LTD,29/05/2024,RS159668,14.34,0.00,LIQUID SPRAY POLISH 750ML TRIGGER SPRAY,Cleaning Materials
Wyre Council,http://opendatacommunities.org/doc/district-council/wyre,30/05/2024,Resources,Support Services,135B,Key Engineering & Hygiene Supplies LTD,29/05/2024,RS159668,292.60,0.00,BLUE INTERFOLD HAND TOWELS 3600 SHEETS,Cleaning Materials
Wyre Council,http://opendatacommunities.org/doc/district-council/wyre,30/05/2024,Resources,Support Services,135B,Key Engineering & Hygiene Supplies LTD,29/05/2024,RS159668,9.18,0.00,EVERFRESH NON-ACIDIC POT POURRI TOILET CLEANER,Cleaning Materials
Wyre Council,http://opendatacommunities.org/doc/district-council/wyre,30/05/2024,Resources,Support Services,135B,Key Engineering & Hygiene Supplies LTD,29/05/2024,RS159668,12.29,0.00,BLUE CENTRE FEED ROLLS 150MX175MM (PACK OF 6),Cleaning Materials
Wyre Council,http://opendatacommunities.org/doc/district-council/wyre,30/05/2024,People and Places,Planning and Development Servs,132C,Key Engineering & Hygiene Supplies LTD,16/05/2024,PE159377,20.16,0.00,EAUFRESH NON ACIDIC POT POURRI TOILET CLEANER 1 LTR,Cleaning Materials
Wyre Council,http://opendatacommunities.org/doc/district-council/wyre,30/05/2024,People and Places,Planning and Development Servs,132C,Key Engineering & Hygiene Supplies LTD,16/05/2024,PE159377,9.72,0.00,EAUFRESH NON ACIDIC APPLE TOILET CLEANER 1 LTR,Cleaning Materials
Wyre Council,http://opendatacommunities.org/doc/district-council/wyre,30/05/2024,People and Places,Cultural and Related Services,132A,Key Engineering & Hygiene Supplies LTD,01/05/2024,PE158960,7.83,0.00,EVANS FOAMING LEMON SOAP 5L,Cleaning Materials
Wyre Council,http://opendatacommunities.org/doc/district-council/wyre,30/05/2024,People and Places,Planning and Development Servs,132C,Key Engineering & Hygiene Supplies LTD,01/05/2024,PE158963,26.82,0.00,VERSATILE HARD SURFACE CLEANER 5 LITRE,Cleaning Materials
Wyre Council,http://opendatacommunities.org/doc/district-council/wyre,30/05/2024,People and Places,Planning and Development Servs,132C,Key Engineering & Hygiene Supplies LTD,01/05/2024,PE158963,7.62,0.00,RED 200GM EXEL PY MOP HEAD ( PUSH FIT),Cleaning Materials
Wyre Council,http://opendatacommunities.org/doc/district-council/wyre,30/05/2024,People and Places,Planning and Development Servs,132C,Key Engineering & Hygiene Supplies LTD,01/05/2024,PE158964,296.34,0.00,2PLY WHITE JUMBO TOILET ROLL,Cleaning Materials
Wyre Council,http://opendatacommunities.org/doc/district-council/wyre,30/05/2024,People and Places,Planning and Development Servs,132C,Key Engineering & Hygiene Supplies LTD,01/05/2024,PE158964,203.00,0.00,EXTRA STRONG BLACK REFUSE SACK 18X29X39 180G 90LTR (PER 200),Cleaning Materials
Wyre Council,http://opendatacommunities.org/doc/district-council/wyre,30/05/2024,People and Places,Planning and Development Servs,132C,Key Engineering & Hygiene Supplies LTD,01/05/2024,PE158964,30.48,0.00,LUX PEARL HAND/BODY SOAP 5 LTR,Cleaning Materials
Wyre Council,http://opendatacommunities.org/doc/district-council/wyre,30/05/2024,People and Places,Cultural and Related Services,132A,Key Engineering & Hygiene Supplies LTD,01/05/2024,PE158960,12.92,0.00,EXTRA STRONG BLACK REFUSE SACK 18X29X39 180G 90LTR (PER 200),Cleaning Materials
Wyre Council,http://opendatacommunities.org/doc/district-council/wyre,30/05/2024,People and Places,Cultural and Related Services,132A,Key Engineering & Hygiene Supplies LTD,01/05/2024,PE158960,2.16,0.00,BLUE STRIP DISH CLOTH EA,Cleaning Materials
Wyre Council,http://opendatacommunities.org/doc/district-council/wyre,30/05/2024,People and Places,Cultural and Related Services,132A,Key Engineering & Hygiene Supplies LTD,01/05/2024,PE158960,4.32,0.00,GREEN STRIPE DISH CLOTH EA,Cleaning Materials
Wyre Council,http://opendatacommunities.org/doc/district-council/wyre,30/05/2024,People and Places,Cultural and Related Services,132A,Key Engineering & Hygiene Supplies LTD,01/05/2024,PE158960,4.32,0.00,RED STRIPE DISH CLOTH EA,Cleaning Materials
Wyre Council,http://opendatacommunities.org/doc/district-council/wyre,30/05/2024,People and Places,Cultural and Related Services,132A,Key Engineering & Hygiene Supplies LTD,01/05/2024,PE158960,2.16,0.00,YELLOW STRIPE DISH CLOTH EA,Cleaning Materials
Wyre Council,http://opendatacommunities.org/doc/district-council/wyre,30/05/2024,People and Places,Cultural and Related Services,132A,Key Engineering & Hygiene Supplies LTD,01/05/2024,PE158960,12.29,0.00,6 no Blue towel rolls @11.88,Cleaning Materials
Wyre Council,http://opendatacommunities.org/doc/district-council/wyre,30/05/2024,People and Places,Cultural and Related Services,132A,Key Engineering & Hygiene Supplies LTD,01/05/2024,PE158960,2.64,0.00,OCEAN BLUE INVIGORATING HAND + BODY WASH 500ML PUMP TOP,Cleaning Materials
Wyre Council,http://opendatacommunities.org/doc/district-council/wyre,30/05/2024,People and Places,Cultural and Related Services,132A,Amazon Business,22/05/2024,PE159536,50.51,0.00,"Blue mop & Handle, Green mop & handle Tork toilet roll, dishwasher rinse aid",Cleaning Materials
Wyre Council,http://opendatacommunities.org/doc/district-council/wyre,30/05/2024,People and Places,Cultural and Related Services,132A,Amazon Business,22/05/2024,PE159626,45.46,0.00,"Blue mop & Handle, Green mop & handle Tork toilet roll, dishwasher rinse aid",Cleaning Materials
Wyre Council,http://opendatacommunities.org/doc/district-council/wyre,30/05/2024,People and Places,Cultural and Related Services,132A,Amazon Business,21/05/2024,PE159067,6.77,0.00,"Brush heads - Blue, red & green",Cleaning Materials
Wyre Council,http://opendatacommunities.org/doc/district-council/wyre,30/05/2024,People and Places,Cultural and Related Services,132A,Amazon Business,07/05/2024,PE159056,8.68,0.00,"Brush heads - Blue, red & green",Cleaning Materials
Wyre Council,http://opendatacommunities.org/doc/district-council/wyre,30/05/2024,People and Places,Cultural and Related Services,132A,Amazon Business,14/05/2024,PE159065,12.36,0.00,"Brush heads - Blue, red & green",Cleaning Materials
Wyre Council,http://opendatacommunities.org/doc/district-council/wyre,30/05/2024,People and Places,Cultural and Related Services,132A,Amazon Business,14/05/2024,PE158878,11.65,0.00,Mop heads,Cleaning Materials
Wyre Council,http://opendatacommunities.org/doc/district-council/wyre,30/05/2024,People and Places,Environmental Services,132B,Littoralis Limited,02/05/2024,PE158981,750.00,0.00,"DISC Subscription - Implementation, training, support and consultancy for 12 months",Community Development Initiatives
Wyre Council,http://opendatacommunities.org/doc/district-council/wyre,30/05/2024,People and Places,Environmental Services,132B,Littoralis Limited,02/05/2024,PE158981,1200.00,0.00,Subscription 12 months @ 100 per month (1st May 2024-30th April 2025) - Unlimited members,Community Development Initiatives
Wyre Council,http://opendatacommunities.org/doc/district-council/wyre,30/05/2024,People and Places,Environmental Services,132B,Littoralis Limited,02/05/2024,PE158981,275.00,0.00,Document Writing Service,Community Development Initiatives
Wyre Council,http://opendatacommunities.org/doc/district-council/wyre,30/05/2024,Resources,Support Services,135B,Insight Direct (UK) Limited,24/05/2024,RS159659,583.86,0.00,6 x WH62 MONO TEAMS - YEALINK WH62 MONO TEAMS WL HS,Comp Hardware Purchases
Wyre Council,http://opendatacommunities.org/doc/district-council/wyre,30/05/2024,Resources,Support Services,135B,Amazon Business,15/05/2024,RS159366,241.66,0.00,"2 x Samsung Galaxy Tab A9+, Android Tablet, Wifi, 64GB Storage Grey (Non-UK version).",Comp Hardware Purchases
Wyre Council,http://opendatacommunities.org/doc/district-council/wyre,30/05/2024,Resources,Support Services,135B,Amazon Business,21/05/2024,RS159566,5.71,0.00,"10 Pack M20 20mm IP68 Waterproof White Cable Glands, Suitable for 6mm - 12mm Cables, Plastic Nylon Compression Glands Connectors with Locknut and Washer - AVARTEK",Comp Hardware Purchases
Wyre Council,http://opendatacommunities.org/doc/district-council/wyre,30/05/2024,Resources,Support Services,135B,Amazon Business,21/05/2024,RS159566,32.03,0.00,ABB IP65 Junction Box � Fully Dust Sealed Enclosure � Waterproof Electric Cable Connector Unit � Shockproof Adaptable Indoor/Outdoor Box  310 x 240 x 160mm,Comp Hardware Purchases
Wyre Council,http://opendatacommunities.org/doc/district-council/wyre,30/05/2024,Resources,Support Services,135B,Amazon Business,21/05/2024,RS159566,3.33,0.00,"Simply Tools TORX25 T25 Torx Headed Screwdriver with greater strength and durability, extra grip on the screws head , Black",Comp Hardware Purchases
Wyre Council,http://opendatacommunities.org/doc/district-council/wyre,30/05/2024,Resources,Support Services,135B,Amazon Business,20/05/2024,RS159457,8.32,0.00,"1 x INIU USB C Charger Cable, [3 Pack, 2+2+0.5m] USB A to USB C Cable 3.1A Fast Charging, Braided Phone Charger Type C Cable for iPhone 15 Samsung Galaxy S23 S22 Switch PS5 Huawei Google Pixel 7 Pro etc.",Comp Hardware Purchases
Wyre Council,http://opendatacommunities.org/doc/district-council/wyre,30/05/2024,Resources,Support Services,135B,Amazon Business,20/05/2024,RS159457,40.38,0.00,"3 x Extension Lead with 4 USB Slots (3.4A, 1 Type C and 3 USB-A Ports),POWSAF Power Strip Surge Protector with 8 way plug extension Socket and 2M Extension cord for Home Office Travel,Black.",Comp Hardware Purchases
Wyre Council,http://opendatacommunities.org/doc/district-council/wyre,30/05/2024,Resources,Support Services,135B,Amazon Business,20/05/2024,RS159415,38.23,0.00,"3 x 3M Extension Lead with USB Ports, 3 Way Outlets Power Strip with 2 USB Slots UK Power Socket with Individual Switch 3 Meters Plug Extension Wall Mounted Power Strip Black.",Comp Hardware Purchases
Wyre Council,http://opendatacommunities.org/doc/district-council/wyre,30/05/2024,Resources,Support Services,135B,Amazon Business,20/05/2024,RS159415,48.14,0.00,"4 x PIBEEX Extension Lead with USB, 13A Power Strip 4 Way Outlets 4 USB 5V 3.4A Child Safety Protection 1.6M Extension cord Power Adapter UK Socket for Home Office.",Comp Hardware Purchases
Wyre Council,http://opendatacommunities.org/doc/district-council/wyre,30/05/2024,Resources,Support Services,135B,Amazon Business,20/05/2024,RS159415,-4.32,0.00,Discount,Comp Hardware Purchases
Wyre Council,http://opendatacommunities.org/doc/district-council/wyre,30/05/2024,Resources,Support Services,135B,Amazon Business,13/05/2024,RS158885,281.66,0.00,"2 x Samsung Galaxy Tab A9 Android Tablet, 64GB Storage, Large Display, Rich Sound, Graphite, 3 Year Manufacturer Extended Warranty (UK Version).",Comp Hardware Purchases
Wyre Council,http://opendatacommunities.org/doc/district-council/wyre,30/05/2024,Resources,Support Services,135B,Amazon Business,13/05/2024,RS158885,141.64,0.00,"2 x Logitech iPad (7th, 8th and 9th Generation) Keyboard Case | Slim Folio with Integrated Wireless Keyboard (Graphite).",Comp Hardware Purchases
Wyre Council,http://opendatacommunities.org/doc/district-council/wyre,30/05/2024,Resources,Support Services,135B,Amazon Business,30/05/2024,RS159799,91.66,0.00,"2 x Logitech iPad (10th generation) Keyboard Case | Slim Folio with integrated wireless keyboard, QWERTY UK English Layout, Graphite.",Comp Hardware Purchases
Wyre Council,http://opendatacommunities.org/doc/district-council/wyre,30/05/2024,Resources,Support Services,135B,Amazon Business,28/05/2024,RS159694,405.89,0.00,"1 x 2022 Apple iPad (10.9-inch, Wi-Fi + Cellular, 64GB) - Silver (Renewed)",Comp Hardware Purchases
Wyre Council,http://opendatacommunities.org/doc/district-council/wyre,30/05/2024,Resources,Support Services,135B,Amazon Business,28/05/2024,RS159694,-0.94,0.00,Promotion,Comp Hardware Purchases
Wyre Council,http://opendatacommunities.org/doc/district-council/wyre,30/05/2024,Resources,Support Services,135B,Amazon Business,28/05/2024,RS159694,91.66,0.00,"2 x Logitech iPad (10th generation) Keyboard Case | Slim Folio with integrated wireless keyboard, QWERTY UK English Layout, Graphite.",Comp Hardware Purchases
Wyre Council,http://opendatacommunities.org/doc/district-council/wyre,30/05/2024,Resources,Support Services,135B,Amazon Business,28/05/2024,RS159694,-0.93,0.00,Promotion,Comp Hardware Purchases
Wyre Council,http://opendatacommunities.org/doc/district-council/wyre,30/05/2024,Resources,Support Services,135B,Amazon Business,28/05/2024,RS159694,74.96,0.00,4 x NETGEAR 8 Port Gigabit Network Switch (GS308) - Ethernet Switch - Ethernet Splitter - Plug-and-Play - Silent Operation - Desktop or Wall Mount.,Comp Hardware Purchases
Wyre Council,http://opendatacommunities.org/doc/district-council/wyre,30/05/2024,Resources,Support Services,135B,Amazon Business,28/05/2024,RS159694,-0.93,0.00,Promotion,Comp Hardware Purchases
Wyre Council,http://opendatacommunities.org/doc/district-council/wyre,30/05/2024,Resources,Support Services,135B,Amazon Business,07/05/2024,RS158879,15.82,0.00,"1 x MMOBIEL Soldering and Repair Mat Silicone - 55 x 35 cm - Heat-Resistant up to 500�C (932�F) � Large Workbench Mat for Soldering, Cell Phone, Computer and Electronics � Silicone Soldering Mat - Blue",Computer Stationery and Consumables
Wyre Council,http://opendatacommunities.org/doc/district-council/wyre,30/05/2024,Resources,Support Services,135B,Amazon Business,07/05/2024,RS158881,14.07,0.00,"1 x La Desire Rotating Pencil Holder, 360 Degree Rotate Desk Mesh Pen Holder, Desk Organizer with 5 Compartments Pen Caddy Holders, Spinning Stationary Storage Organizer Sorter Pencil Pot",Computer Stationery and Consumables
Wyre Council,http://opendatacommunities.org/doc/district-council/wyre,30/05/2024,Resources,Support Services,135B,Amazon Business,13/05/2024,RS158885,12.57,0.00,"4 x Haus Projekt Reusable Cable Ties, 100 x Black 150x12mm Adjustable Hook and Loop Cable Management Straps, Cable Tidy Under Desk Organiser, Garden Tree Plant Tie Wraps, Cable Straps, PC, TV Wire Tidy.",Computer Stationery and Consumables
Wyre Council,http://opendatacommunities.org/doc/district-council/wyre,30/05/2024,Resources,Support Services,135B,Redactive Events Ltd,22/05/2024,RS159609,795.00,0.00,Public Finance Conference May 20th 2024 for Jeanette Moister,Conference and Seminars - Staff
Wyre Council,http://opendatacommunities.org/doc/district-council/wyre,30/05/2024,People and Places,Cultural and Related Services,132A,HUWS GRAY LTD,08/05/2024,PE159109,167.32,0.00,Wood for bug boxes Bio-blitz,Conservation
Wyre Council,http://opendatacommunities.org/doc/district-council/wyre,30/05/2024,People and Places,Support Services,135B,Knight Kavanagh & Page,08/05/2024,PE150727,4908.00,0.00,"Wyre Council has commissioned KKP to undertake the following pieces of work for the borough  A (Sport England specified) Strategic Options Planning Guidance  SOPG process Physical Activity and Sport Strategy Assessing Needs & Opportunities Guidance, (A",Consultants Fees
Wyre Council,http://opendatacommunities.org/doc/district-council/wyre,30/05/2024,People and Places,Support Services,135B,Knight Kavanagh & Page,08/05/2024,PE150727,2420.00,0.00,PE139516 adjustment amount Leisure Facilities master plan,Consultants Fees
Wyre Council,http://opendatacommunities.org/doc/district-council/wyre,30/05/2024,People and Places,Cultural and Related Services,132A,Knight Kavanagh & Page,08/05/2024,PE159114,490.00,0.00,"Utilities consultancy support for Wyre Council/Fylde Coast YMCA, supporting the 5 Leisure Centres and Swimming Pools to improve their energy efficiency",Consultants Fees
Wyre Council,http://opendatacommunities.org/doc/district-council/wyre,30/05/2024,People and Places,Planning and Development Servs,132C,AFFORDABILITY RESEARCH COMMUNITIES (ARC 4),16/05/2024,PE159386,3865.58,0.00,Fylde Coast GTAA study,Consultants Fees
Wyre Council,http://opendatacommunities.org/doc/district-council/wyre,30/05/2024,People and Places,Planning and Development Servs,132C,FAIRHURST,22/05/2024,PE159598,2100.00,0.00,Planning assistant work provided for Wyre Beach Management Scheme - D Waugh,Consultants Fees
Wyre Council,http://opendatacommunities.org/doc/district-council/wyre,30/05/2024,Resources,Support Services,135B,THE NETWORKING PEOPLE (TNP) LTD,07/05/2024,RS158483,2175.00,0.00,TNP Professional Services Days. x 3  Copse Road firewall installation and network reconfiguration.,Consultants Fees
Wyre Council,http://opendatacommunities.org/doc/district-council/wyre,30/05/2024,People and Places,Support Services,135B,Aspin and Company Ltd,08/05/2024,PE159113,8200.00,0.00,Asset Valuations of Wyre assets for 2023/24,Consultants Fees
Wyre Council,http://opendatacommunities.org/doc/district-council/wyre,30/05/2024,Resources,Cultural and Related Services,132A,GJG Consultancy,29/05/2024,RS159734,1955.25,0.00,Procurement of consultancy support for the Marine Hall tender process,Consultants Fees
Wyre Council,http://opendatacommunities.org/doc/district-council/wyre,30/05/2024,People and Places,"Cultural, Environ and Planning",137B,Sefton Council,14/05/2024,PE159234,2399.60,0.00,Project Management Services for the Our Future Coast Scheme,Consultants Fees (New CCR)
Wyre Council,http://opendatacommunities.org/doc/district-council/wyre,30/05/2024,People and Places,"Cultural, Environ and Planning",137B,Susannah Bleakley Consulting,28/05/2024,PE159702,211.10,0.00,ECO-CoBS Project,Consultants Fees (New CCR)
Wyre Council,http://opendatacommunities.org/doc/district-council/wyre,30/05/2024,People and Places,"Cultural, Environ and Planning",137B,Susannah Bleakley Consulting,15/05/2024,PE159345,6718.55,0.00,Additional works for My Future Coast,Consultants Fees (New CCR)
Wyre Council,http://opendatacommunities.org/doc/district-council/wyre,30/05/2024,People and Places,Central Services to the Public,131C,ADR Mediation & Training CIC,13/05/2024,PE158448,880.00,0.00,"Mediation case management for a total of 4400, which equates for 10 cases at a cost of 440 per case utilising COMF",Contain Outbreak Management Fund
Wyre Council,http://opendatacommunities.org/doc/district-council/wyre,30/05/2024,People and Places,Support Services,135B,Blackpool Skip Hire LTD,24/05/2024,PE159661,225.00,0.00,Empty skips at Cemeteries in Wyre,Containers Skips and Hire
Wyre Council,http://opendatacommunities.org/doc/district-council/wyre,30/05/2024,Resources,"Cultural, Environ and Planning",137B,Claughton Memorial Hall,01/05/2024,RS158958,16185.00,0.00,Claughton Memorial Hall,Contract (New CCR)
Wyre Council,http://opendatacommunities.org/doc/district-council/wyre,30/05/2024,People and Places,"Cultural, Environ and Planning",137B,Purcell Architecture Limited,09/05/2024,PE159127,4954.69,0.00,Prolongation fees - to the provision of additional professional services (FEB 24)  to cover agreed period of extension of time,Contract (New CCR)
Wyre Council,http://opendatacommunities.org/doc/district-council/wyre,30/05/2024,People and Places,"Cultural, Environ and Planning",137B,Traffic Technology Ltd,14/05/2024,PE158720,630.00,0.00,Eco-Visio Essential Account (1 year : 1 April to 31 March)This cost is the difference between the Eco-Visio Light (165pa) which has been ordered and paid for under TT9887 and Eco-Visio Essential (375pa),Contract (New CCR)
Wyre Council,http://opendatacommunities.org/doc/district-council/wyre,30/05/2024,People and Places,"Cultural, Environ and Planning",137B,Traffic Technology Ltd,14/05/2024,PE158720,495.00,0.00,ofset cr note PE158647,Contract (New CCR)
Wyre Council,http://opendatacommunities.org/doc/district-council/wyre,30/05/2024,People and Places,"Cultural, Environ and Planning",137B,Balfour Beatty Civil Engineering Ltd,23/05/2024,PE159641,1403400.89,0.00,"FAO Chloe SumnerBalfour Beatty Civil Engineering LtdChaddock Lane WorsleyManchesterM28 1XYWyre Beach Management Scheme Phase 2 � Construction Works.Cost 35,601,957.69Carl Green / Mike Wilkinson",Contract (New CCR)
Wyre Council,http://opendatacommunities.org/doc/district-council/wyre,30/05/2024,Resources,Current Liabilities,130C,Fleetwood Beach Wheelchairs,16/05/2024,RS159414,4428.32,0.00,Donation from the Mayor of Wyre Cllr Julie Robinson from the Mayors charity fund 2023-24,Contributions
Wyre Council,http://opendatacommunities.org/doc/district-council/wyre,30/05/2024,Resources,Current Liabilities,130C,Sam`s Place NW Ltd,16/05/2024,RS159412,4428.32,0.00,Donation from the Mayor of Wyre Cllr Julie Robinson from the Mayors charity fund 2023-24,Contributions
Wyre Council,http://opendatacommunities.org/doc/district-council/wyre,30/05/2024,Resources,Current Liabilities,130C,Headway Blackpool Limited,16/05/2024,RS159413,3000.00,0.00,Donation from the Mayor of Wyre Cllr Julie Robinson from the Mayors charity fund 2023-24,Contributions
Wyre Council,http://opendatacommunities.org/doc/district-council/wyre,30/05/2024,People and Places,Corporate and Democratic Core,131A,Apse,13/05/2024,PE159176,2430.00,0.00,APSE membership fee 2024/25 Membership covers from 1st April 2024 to 31st March 2025,Corporate and Professional Subscriptions
Wyre Council,http://opendatacommunities.org/doc/district-council/wyre,30/05/2024,People and Places,Corporate and Democratic Core,131A,Apse,13/05/2024,PE159176,300.00,0.00,APSE Northern Regional fee,Corporate and Professional Subscriptions
Wyre Council,http://opendatacommunities.org/doc/district-council/wyre,30/05/2024,People and Places,Environmental Services,132B,Tameside Metropolitan Borough Council,10/05/2024,PE158122,2000.00,0.00,payment of invoice 69922954  to Wyre Council (4023653) for Licence fee to the National Anti fraud network for the financial year 01/04/2024 -31/03/2025,Corporate and Professional Subscriptions
Wyre Council,http://opendatacommunities.org/doc/district-council/wyre,30/05/2024,Resources,Housing General Fund,134A,LA Directories Ltd,14/05/2024,RS159327,1745.00,0.00,12 Month Subscription to LA directories for all staff,Corporate and Professional Subscriptions
Wyre Council,http://opendatacommunities.org/doc/district-council/wyre,30/05/2024,Finance,Current Assets,130B,,08/05/2024,WPST00141847,19361.48,0.00,03/05/24 Ctax Refunds,Council Tax Refunds
Wyre Council,http://opendatacommunities.org/doc/district-council/wyre,30/05/2024,Finance,Current Assets,130B,,21/05/2024,WPST00143142,6778.04,0.00,17/05/24 Ctax Refunds,Council Tax Refunds
Wyre Council,http://opendatacommunities.org/doc/district-council/wyre,30/05/2024,Finance,Current Assets,130B,,29/05/2024,WPST00143816,9371.54,0.00,24/05/24 Ctax Refunds,Council Tax Refunds
Wyre Council,http://opendatacommunities.org/doc/district-council/wyre,30/05/2024,Finance,Current Assets,130B,,14/05/2024,WPST00142500,15086.06,0.00,10/05/24 CtaxRefunds,Council Tax Refunds
Wyre Council,http://opendatacommunities.org/doc/district-council/wyre,30/05/2024,People and Places,Cultural and Related Services,132A,Road Safety Services LTD,02/05/2024,PE158951,1250.00,0.00,"For the second LANTRA training session on Thursday 18th April at the Civic Centre, Poulton-le-Fylde for LEON members.To start at 0900hrs.",Creative People and Places Contribution
Wyre Council,http://opendatacommunities.org/doc/district-council/wyre,30/05/2024,Resources,Cultural and Related Services,132A,Preston City Council,23/05/2024,RS159642,30.00,0.00,500 x D-Day 80 Beacon Lighting - A5 1pp,Creative People and Places Contribution
Wyre Council,http://opendatacommunities.org/doc/district-council/wyre,30/05/2024,Resources,Cultural and Related Services,132A,Preston City Council,23/05/2024,RS159643,18.75,0.00,Card making arts sessions A5 1pp x 200 copies,Creative People and Places Contribution
Wyre Council,http://opendatacommunities.org/doc/district-council/wyre,30/05/2024,Resources,Cultural and Related Services,132A,Preston City Council,23/05/2024,RS159642,11.41,0.00,Cleveleys Community Centre art sessions A5 1pp in black only,Creative People and Places Contribution
Wyre Council,http://opendatacommunities.org/doc/district-council/wyre,30/05/2024,People and Places,Cultural and Related Services,132A,Fools Paradise LTD,08/05/2024,PE159124,1405.00,0.00,"For the provision of the Ski Band at the Garstang Walking Festival Birthday Bash event. Monday May 6th between 11am and 3pm. To include leading the walk at 2pm.1,405",Creative People and Places Contribution
Wyre Council,http://opendatacommunities.org/doc/district-council/wyre,30/05/2024,People and Places,Cultural and Related Services,132A,JANINE WALKER ART,15/05/2024,PE159343,850.00,0.00,"Creative Wellbeing sessions at Over Wyre Medical Centre, May 2024. Fee (2 of 2) for sessions - 850",Creative People and Places Contribution
Wyre Council,http://opendatacommunities.org/doc/district-council/wyre,30/05/2024,People and Places,Cultural and Related Services,132A,Amazon Business,09/05/2024,PE159125,134.91,0.00,12 x Red LED Lanterns @14.99 each (excluding VAT),Creative People and Places Contribution
Wyre Council,http://opendatacommunities.org/doc/district-council/wyre,30/05/2024,People and Places,Cultural and Related Services,132A,Amazon Business,09/05/2024,PE159123,43.04,0.00, 4 x packs of Amazon 12 D Batteries51.64 including VAT,Creative People and Places Contribution
Wyre Council,http://opendatacommunities.org/doc/district-council/wyre,30/05/2024,People and Places,Cultural and Related Services,132A,Amazon Business,15/05/2024,PE159141,59.96,0.00,13 x Red LED Lanterns @14.99 each (excluding VAT),Creative People and Places Contribution
Wyre Council,http://opendatacommunities.org/doc/district-council/wyre,30/05/2024,Resources,Cultural and Related Services,132A,Amazon Business,07/05/2024,RS159060,13.45,0.00,Photo album for GWF 20th birthday bash,Creative People and Places Contribution
Wyre Council,http://opendatacommunities.org/doc/district-council/wyre,30/05/2024,People and Places,Environmental Services,132B,Dennis Eagle LTD,14/05/2024,PE159072,274.55,0.00,Starter Motor,Daywork Materials (Excl.Tyres)
Wyre Council,http://opendatacommunities.org/doc/district-council/wyre,30/05/2024,People and Places,Environmental Services,132B,Dennis Eagle LTD,28/05/2024,PE159432,283.24,0.00,Parts,Daywork Materials (Excl.Tyres)
Wyre Council,http://opendatacommunities.org/doc/district-council/wyre,30/05/2024,People and Places,Environmental Services,132B,Dennis Eagle LTD,28/05/2024,PE159706,178.56,0.00,Control valve and harness,Daywork Materials (Excl.Tyres)
Wyre Council,http://opendatacommunities.org/doc/district-council/wyre,30/05/2024,People and Places,Support Services,135B,EK Motors Factors LTD,30/05/2024,PE159774,14.63,0.00,Parts,Daywork Materials (Excl.Tyres)
Wyre Council,http://opendatacommunities.org/doc/district-council/wyre,30/05/2024,People and Places,Support Services,135B,EK Motors Factors LTD,30/05/2024,PE159773,12.68,0.00,Parts,Daywork Materials (Excl.Tyres)
Wyre Council,http://opendatacommunities.org/doc/district-council/wyre,30/05/2024,People and Places,Support Services,135B,EK Motors Factors LTD,30/05/2024,PE159766,41.43,0.00,Parts,Daywork Materials (Excl.Tyres)
Wyre Council,http://opendatacommunities.org/doc/district-council/wyre,30/05/2024,People and Places,Support Services,135B,EK Motors Factors LTD,30/05/2024,PE159767,25.20,0.00,Parts,Daywork Materials (Excl.Tyres)
Wyre Council,http://opendatacommunities.org/doc/district-council/wyre,30/05/2024,People and Places,Support Services,135B,EK Motors Factors LTD,30/05/2024,PE159768,50.87,0.00,Parts,Daywork Materials (Excl.Tyres)
Wyre Council,http://opendatacommunities.org/doc/district-council/wyre,30/05/2024,People and Places,Support Services,135B,EK Motors Factors LTD,30/05/2024,PE159770,24.49,0.00,Parts,Daywork Materials (Excl.Tyres)
Wyre Council,http://opendatacommunities.org/doc/district-council/wyre,30/05/2024,People and Places,Support Services,135B,EK Motors Factors LTD,30/05/2024,PE159769,10.42,0.00,Parts,Daywork Materials (Excl.Tyres)
Wyre Council,http://opendatacommunities.org/doc/district-council/wyre,30/05/2024,People and Places,Support Services,135B,EK Motors Factors LTD,30/05/2024,PE159772,16.98,0.00,Parts,Daywork Materials (Excl.Tyres)
Wyre Council,http://opendatacommunities.org/doc/district-council/wyre,30/05/2024,People and Places,Support Services,135B,EK Motors Factors LTD,30/05/2024,PE159771,22.95,0.00,Parts,Daywork Materials (Excl.Tyres)
Wyre Council,http://opendatacommunities.org/doc/district-council/wyre,30/05/2024,People and Places,Cultural and Related Services,132A,EK Motors Factors LTD,30/05/2024,PE159759,43.76,0.00,Parts,Daywork Materials (Excl.Tyres)
Wyre Council,http://opendatacommunities.org/doc/district-council/wyre,30/05/2024,People and Places,Cultural and Related Services,132A,EK Motors Factors LTD,30/05/2024,PE159758,28.33,0.00,Parts,Daywork Materials (Excl.Tyres)
Wyre Council,http://opendatacommunities.org/doc/district-council/wyre,30/05/2024,People and Places,Environmental Services,132B,EK Motors Factors LTD,30/05/2024,PE159762,24.49,0.00,Parts,Daywork Materials (Excl.Tyres)
Wyre Council,http://opendatacommunities.org/doc/district-council/wyre,30/05/2024,People and Places,Environmental Services,132B,EK Motors Factors LTD,30/05/2024,PE159761,19.97,0.00,Parts,Daywork Materials (Excl.Tyres)
Wyre Council,http://opendatacommunities.org/doc/district-council/wyre,30/05/2024,People and Places,Support Services,135B,EK Motors Factors LTD,30/05/2024,PE159765,11.85,0.00,Parts,Daywork Materials (Excl.Tyres)
Wyre Council,http://opendatacommunities.org/doc/district-council/wyre,30/05/2024,People and Places,Environmental Services,132B,EK Motors Factors LTD,30/05/2024,PE159760,46.38,0.00,Parts,Daywork Materials (Excl.Tyres)
Wyre Council,http://opendatacommunities.org/doc/district-council/wyre,30/05/2024,People and Places,Environmental Services,132B,EK Motors Factors LTD,30/05/2024,PE159763,38.20,0.00,Parts,Daywork Materials (Excl.Tyres)
Wyre Council,http://opendatacommunities.org/doc/district-council/wyre,30/05/2024,People and Places,Environmental Services,132B,EK Motors Factors LTD,30/05/2024,PE159764,12.14,0.00,Parts,Daywork Materials (Excl.Tyres)
Wyre Council,http://opendatacommunities.org/doc/district-council/wyre,30/05/2024,People and Places,Support Services,135B,EK Motors Factors LTD,30/05/2024,PE159775,6.35,0.00,Parts,Daywork Materials (Excl.Tyres)
Wyre Council,http://opendatacommunities.org/doc/district-council/wyre,30/05/2024,People and Places,Cultural and Related Services,132A,EK Motors Factors LTD,30/05/2024,PE159754,28.33,0.00,Parts,Daywork Materials (Excl.Tyres)
Wyre Council,http://opendatacommunities.org/doc/district-council/wyre,30/05/2024,People and Places,Cultural and Related Services,132A,EK Motors Factors LTD,30/05/2024,PE159757,79.40,0.00,Parts,Daywork Materials (Excl.Tyres)
Wyre Council,http://opendatacommunities.org/doc/district-council/wyre,30/05/2024,People and Places,Cultural and Related Services,132A,EK Motors Factors LTD,30/05/2024,PE159756,16.68,0.00,Parts,Daywork Materials (Excl.Tyres)
Wyre Council,http://opendatacommunities.org/doc/district-council/wyre,30/05/2024,People and Places,Cultural and Related Services,132A,EK Motors Factors LTD,30/05/2024,PE159755,27.08,0.00,Parts,Daywork Materials (Excl.Tyres)
Wyre Council,http://opendatacommunities.org/doc/district-council/wyre,30/05/2024,People and Places,Support Services,135B,EK Motors Factors LTD,30/05/2024,PE159765,11.85,0.00,Parts,Daywork Materials (Excl.Tyres)
Wyre Council,http://opendatacommunities.org/doc/district-council/wyre,30/05/2024,People and Places,Support Services,135B,FR Sharrock LTD,30/05/2024,PE159594,390.86,0.00,Parts,Daywork Materials (Excl.Tyres)
Wyre Council,http://opendatacommunities.org/doc/district-council/wyre,30/05/2024,People and Places,Support Services,135B,FR Sharrock LTD,30/05/2024,PE159594,300.00,0.00,Parts,Daywork Materials (Excl.Tyres)
Wyre Council,http://opendatacommunities.org/doc/district-council/wyre,30/05/2024,People and Places,Support Services,135B,FR Sharrock LTD,30/05/2024,PE159594,300.00,0.00,Parts,Daywork Materials (Excl.Tyres)
Wyre Council,http://opendatacommunities.org/doc/district-council/wyre,30/05/2024,People and Places,Support Services,135B,FR Sharrock LTD,30/05/2024,PE159594,300.00,0.00,Parts,Daywork Materials (Excl.Tyres)
Wyre Council,http://opendatacommunities.org/doc/district-council/wyre,30/05/2024,People and Places,Support Services,135B,FR Sharrock LTD,30/05/2024,PE159594,540.58,0.00,Parts,Daywork Materials (Excl.Tyres)
Wyre Council,http://opendatacommunities.org/doc/district-council/wyre,30/05/2024,People and Places,Support Services,135B,Indespension LTD,17/05/2024,PE159406,1085.24,0.00,Parts,Daywork Materials (Excl.Tyres)
Wyre Council,http://opendatacommunities.org/doc/district-council/wyre,30/05/2024,People and Places,Support Services,135B,Amazon Business,14/05/2024,PE159215,145.70,0.00,Right door step  V59,Daywork Materials (Excl.Tyres)
Wyre Council,http://opendatacommunities.org/doc/district-council/wyre,30/05/2024,People and Places,Support Services,135B,Red Rose Tyres LTD,15/05/2024,PE159348,3499.50,0.00,Tyres and fitting,Daywork Materials (Excl.Tyres)
Wyre Council,http://opendatacommunities.org/doc/district-council/wyre,30/05/2024,People and Places,Planning and Development Servs,132C,Blackpool Skip Hire LTD,28/05/2024,PE159334,680.00,0.00,"40 Cu Yard Ro Ro skip Copse Road Depot, Fleetwood 9/5/24 Job number 112246",Disposal Costs Industrial Waste
Wyre Council,http://opendatacommunities.org/doc/district-council/wyre,30/05/2024,People and Places,Planning and Development Servs,132C,Blackpool Skip Hire LTD,14/05/2024,PE158984,566.00,0.00,"40 Cu Yard Ro Ro Skip Copse Road Depot, Fleetwood 23/4/24  Job number 111229",Disposal Costs Industrial Waste
Wyre Council,http://opendatacommunities.org/doc/district-council/wyre,30/05/2024,People and Places,Cultural and Related Services,132A,Carlsberg UK LTD,28/05/2024,PE159645,133.03,0.00,Bar supplies,Drinks
Wyre Council,http://opendatacommunities.org/doc/district-council/wyre,30/05/2024,People and Places,Cultural and Related Services,132A,Carlsberg UK LTD,08/05/2024,PE158931,63.84,0.00,co2 & mixed gas,Drinks
Wyre Council,http://opendatacommunities.org/doc/district-council/wyre,30/05/2024,People and Places,Cultural and Related Services,132A,Carlsberg UK LTD,01/05/2024,PE158450,866.67,0.00,Marine Hall drinks,Drinks
Wyre Council,http://opendatacommunities.org/doc/district-council/wyre,30/05/2024,Resources,Current Assets,130B,Shaw & Sons LTD,21/05/2024,RS159477,-1538.50,0.00,1 PCCSDBAG PRESIDING OFFICERS SUNDRIES BAGS (85 BAGS)POLICE & CRIME COMMISSION,Elect. - Other Costs
Wyre Council,http://opendatacommunities.org/doc/district-council/wyre,30/05/2024,Resources,Current Assets,130B,Preston City Council,21/05/2024,RS159479,127.26,0.00,print costs for polling station appointment pack enclosures re PCC Election,Elect. - Other Costs
Wyre Council,http://opendatacommunities.org/doc/district-council/wyre,30/05/2024,Resources,Current Assets,130B,Preston City Council,17/05/2024,RS159417,551.89,0.00,Printing of training and postal vote return materials for PCC election 2024,Elect. - Other Costs
Wyre Council,http://opendatacommunities.org/doc/district-council/wyre,30/05/2024,Resources,Current Assets,130B,Amazon Business,21/05/2024,RS159474,20.97,0.00,Non standard stationery and print cartridge supplies for PCC elections administration (rubber finger grips and print cartridge for postal vote statement printer),Elect. - Other Costs
Wyre Council,http://opendatacommunities.org/doc/district-council/wyre,30/05/2024,Resources,Current Assets,130B,Amazon Business,21/05/2024,RS159476,46.67,0.00,Non standard stationery and print cartridge supplies for PCC elections administration (rubber finger grips and print cartridge for postal vote statement printer),Elect. - Other Costs
Wyre Council,http://opendatacommunities.org/doc/district-council/wyre,30/05/2024,Resources,Current Assets,130B,Print Image Network LTD,01/05/2024,RS158921,597.26,0.00,Postage payment for second issue of poll cards - PCC elections 2 May 2024,Elect. - Poll Cards
Wyre Council,http://opendatacommunities.org/doc/district-council/wyre,30/05/2024,Resources,Current Assets,130B,Print Image Network LTD,21/05/2024,RS159483,-597.26,0.00,Postage payment for second issue of poll cards - PCC elections 2 May 2024,Elect. - Poll Cards
Wyre Council,http://opendatacommunities.org/doc/district-council/wyre,30/05/2024,Resources,Current Assets,130B,Print Image Network LTD,21/05/2024,RS159487,-40636.44,0.00,Wyre 2024 PCC Poll Card Postage,Elect. - Poll Cards
Wyre Council,http://opendatacommunities.org/doc/district-council/wyre,30/05/2024,Resources,Current Assets,130B,Print Image Network LTD,21/05/2024,RS159491,-4509.70,0.00,Payment of postage for issue of poll cards - PCC elections 2 May 2024,Elect. - Poll Cards
Wyre Council,http://opendatacommunities.org/doc/district-council/wyre,30/05/2024,Resources,Current Assets,130B,Print Image Network LTD,21/05/2024,RS159488,48763.73,0.00,Wyre 2024 PCC Poll Card Postage,Elect. - Poll Cards
Wyre Council,http://opendatacommunities.org/doc/district-council/wyre,30/05/2024,Resources,Current Assets,130B,Print Image Network LTD,21/05/2024,RS159492,5411.64,0.00,Payment of postage for issue of poll cards - PCC elections 2 May 2024,Elect. - Poll Cards
Wyre Council,http://opendatacommunities.org/doc/district-council/wyre,30/05/2024,Resources,Current Assets,130B,Print Image Network LTD,21/05/2024,RS159498,716.71,0.00,Postage payment for second issue of poll cards - PCC elections 2 May 2024,Elect. - Poll Cards
Wyre Council,http://opendatacommunities.org/doc/district-council/wyre,30/05/2024,Resources,Current Assets,130B,Print Image Network LTD,17/05/2024,RS159427,675.00,0.00,Second issue of poll cards for PCC 2-24 election,Elect. - Poll Cards
Wyre Council,http://opendatacommunities.org/doc/district-council/wyre,30/05/2024,People and Places,Current Assets,130B,Algeco Storage Ltd,14/05/2024,PE159307,1260.49,0.00,Four no 32ft cabins as per quotes complete with 63 amp connection. Deliver to sites on 22nd April and can be collected any time after 6th May. Includes delivery and collection charge .,Elect. - Polling Stations
Wyre Council,http://opendatacommunities.org/doc/district-council/wyre,30/05/2024,People and Places,Current Assets,130B,Algeco Storage Ltd,14/05/2024,PE159306,1290.49,0.00,Four no 32ft cabins as per quotes complete with 63 amp connection. Deliver to sites on 22nd April and can be collected any time after 6th May. Includes delivery and collection charge .,Elect. - Polling Stations
Wyre Council,http://opendatacommunities.org/doc/district-council/wyre,30/05/2024,People and Places,Current Assets,130B,Algeco Storage Ltd,14/05/2024,PE159239,2580.98,0.00,Four no 32ft cabins as per quotes complete with 63 amp connection. Deliver to sites on 22nd April and can be collected any time after 6th May. Includes delivery and collection charge .,Elect. - Polling Stations
Wyre Council,http://opendatacommunities.org/doc/district-council/wyre,30/05/2024,People and Places,Current Assets,130B,Algeco Storage Ltd,29/05/2024,PE159677,-1260.49,0.00,Four no 32ft cabins as per quotes complete with 63 amp connection. Deliver to sites on 22nd April and can be collected any time after 6th May. Includes delivery and collection charge .,Elect. - Polling Stations
Wyre Council,http://opendatacommunities.org/doc/district-council/wyre,30/05/2024,People and Places,Current Assets,130B,Algeco Storage Ltd,29/05/2024,PE159678,1512.59,0.00,Four no 32ft cabins as per quotes complete with 63 amp connection. Deliver to sites on 22nd April and can be collected any time after 6th May. Includes delivery and collection charge .,Elect. - Polling Stations
Wyre Council,http://opendatacommunities.org/doc/district-council/wyre,30/05/2024,People and Places,Current Assets,130B,Algeco Storage Ltd,29/05/2024,PE159673,3097.18,0.00,Four no 32ft cabins as per quotes complete with 63 amp connection. Deliver to sites on 22nd April and can be collected any time after 6th May. Includes delivery and collection charge .,Elect. - Polling Stations
Wyre Council,http://opendatacommunities.org/doc/district-council/wyre,30/05/2024,People and Places,Current Assets,130B,Algeco Storage Ltd,29/05/2024,PE159675,1548.59,0.00,Four no 32ft cabins as per quotes complete with 63 amp connection. Deliver to sites on 22nd April and can be collected any time after 6th May. Includes delivery and collection charge .,Elect. - Polling Stations
Wyre Council,http://opendatacommunities.org/doc/district-council/wyre,30/05/2024,People and Places,Current Assets,130B,Algeco Storage Ltd,29/05/2024,PE159674,-1290.49,0.00,Four no 32ft cabins as per quotes complete with 63 amp connection. Deliver to sites on 22nd April and can be collected any time after 6th May. Includes delivery and collection charge .,Elect. - Polling Stations
Wyre Council,http://opendatacommunities.org/doc/district-council/wyre,30/05/2024,People and Places,Current Assets,130B,Algeco Storage Ltd,29/05/2024,PE159676,-2580.98,0.00,Four no 32ft cabins as per quotes complete with 63 amp connection. Deliver to sites on 22nd April and can be collected any time after 6th May. Includes delivery and collection charge .,Elect. - Polling Stations
Wyre Council,http://opendatacommunities.org/doc/district-council/wyre,30/05/2024,People and Places,Current Assets,130B,Road Safety Services LTD,16/05/2024,PE159383,300.00,0.00,"Traffic management - Windward avenue , Fleetwood .  Thursday 9th may 7.45am set up . Wagon should block only half the road for approx 15mins while he sorts lift arrangement then on lifting will block all of the road for as short a time as possible .",Elect. - Polling Stations
Wyre Council,http://opendatacommunities.org/doc/district-council/wyre,30/05/2024,People and Places,Current Assets,130B,Road Safety Services LTD,29/05/2024,PE159680,360.00,0.00,"Traffic management - Windward avenue , Fleetwood . Thursday 9th may 7.45am set up . Wagon should block only half the road for approx 15mins while he sorts lift arrangement then on lifting will block all of the road for as short a time as possible .",Elect. - Polling Stations
Wyre Council,http://opendatacommunities.org/doc/district-council/wyre,30/05/2024,People and Places,Current Assets,130B,Smiths Equipment Hire,21/05/2024,PE159349,716.09,0.00,3 no 30kva generators as per quote . Deliver to Copse Road Depot on 22/04/24 and collect on 03/05/24 or later if more convenient to yourselves,Elect. - Polling Stations
Wyre Council,http://opendatacommunities.org/doc/district-council/wyre,30/05/2024,People and Places,Current Assets,130B,Smiths Equipment Hire,30/05/2024,PE159721,1411.94,0.00,12 chemical toilets delivered to Copse Road Depot on 29th April and collected on or after 3rd May,Elect. - Polling Stations
Wyre Council,http://opendatacommunities.org/doc/district-council/wyre,30/05/2024,People and Places,Current Assets,130B,Smiths Equipment Hire,29/05/2024,PE159682,1414.80,0.00,3 no 30kva generators as per quote . Deliver to Copse Road Depot on 22/04/24 and collect on 03/05/24 or later if more convenient to yourselves,Elect. - Polling Stations
Wyre Council,http://opendatacommunities.org/doc/district-council/wyre,30/05/2024,People and Places,Current Assets,130B,Smiths Equipment Hire,29/05/2024,PE159684,859.31,0.00,Smiths Equipment Hire,Elect. - Polling Stations
Wyre Council,http://opendatacommunities.org/doc/district-council/wyre,30/05/2024,People and Places,Current Assets,130B,Smiths Equipment Hire,29/05/2024,PE159681,-1179.00,0.00,3 no 30kva generators as per quote . Deliver to Copse Road Depot on 22/04/24 and collect on 03/05/24 or later if more convenient to yourselves,Elect. - Polling Stations
Wyre Council,http://opendatacommunities.org/doc/district-council/wyre,30/05/2024,People and Places,Current Assets,130B,Smiths Equipment Hire,29/05/2024,PE159683,-716.09,0.00,3 no 30kva generators as per quote . Deliver to Copse Road Depot on 22/04/24 and collect on 03/05/24 or later if more convenient to yourselves,Elect. - Polling Stations
Wyre Council,http://opendatacommunities.org/doc/district-council/wyre,30/05/2024,People and Places,Current Assets,130B,Smiths Equipment Hire,28/05/2024,PE159350,1176.62,0.00,12 chemical toilets delivered to Copse Road Depot on 29th April and collected on or after 3rd May,Elect. - Polling Stations
Wyre Council,http://opendatacommunities.org/doc/district-council/wyre,30/05/2024,People and Places,Current Assets,130B,Smiths Equipment Hire,29/05/2024,PE159350,-1176.62,0.00,12 chemical toilets delivered to Copse Road Depot on 29th April and collected on or after 3rd May,Elect. - Polling Stations
Wyre Council,http://opendatacommunities.org/doc/district-council/wyre,30/05/2024,People and Places,Current Assets,130B,Smiths Equipment Hire,13/05/2024,PE158989,1179.00,0.00,3 no 30kva generators as per quote . Deliver to Copse Road Depot on 22/04/24 and collect on 03/05/24 or later if more convenient to yourselves,Elect. - Polling Stations
Wyre Council,http://opendatacommunities.org/doc/district-council/wyre,30/05/2024,Resources,Current Assets,130B,Print Image Network LTD,17/05/2024,RS159429,9419.38,0.00,Production and delivery of ballot books for PCC 2024 election,Elect. - Polling Stations
Wyre Council,http://opendatacommunities.org/doc/district-council/wyre,30/05/2024,Resources,Current Assets,130B,1St Thornton Scout Group,20/05/2024,RS159514,600.00,0.00,Use of premises as polling station 02/05/2024,Elect. - Polling Stations
Wyre Council,http://opendatacommunities.org/doc/district-council/wyre,30/05/2024,Resources,Current Assets,130B,Fleetwood Sea Cadet Corps,20/05/2024,RS159506,1000.00,0.00,Use of premises as polling station 02/05/2024,Elect. - Polling Stations
Wyre Council,http://opendatacommunities.org/doc/district-council/wyre,30/05/2024,Resources,Current Assets,130B,Senior Citizens Assoc Hall,20/05/2024,RS159517,500.00,0.00,Use of premises as polling station 02/05/2024,Elect. - Polling Stations
Wyre Council,http://opendatacommunities.org/doc/district-council/wyre,30/05/2024,Resources,Current Assets,130B,Baines School,20/05/2024,RS159510,600.00,0.00,Use of premises as polling station 02/05/2024,Elect. - Polling Stations
Wyre Council,http://opendatacommunities.org/doc/district-council/wyre,30/05/2024,Resources,Current Assets,130B,Christ Church Hall,20/05/2024,RS159515,480.00,0.00,Use of premises as polling station 02/05/2024,Elect. - Polling Stations
Wyre Council,http://opendatacommunities.org/doc/district-council/wyre,30/05/2024,Resources,Current Assets,130B,Lancashire County Council,20/05/2024,RS159503,633.45,0.00,Use of premises as polling station 02/05/2024,Elect. - Polling Stations
Wyre Council,http://opendatacommunities.org/doc/district-council/wyre,30/05/2024,Resources,Current Assets,130B,Carr Head Primary School,20/05/2024,RS159509,1190.00,0.00,Use of premises as polling station 02/05/2024,Elect. - Polling Stations
Wyre Council,http://opendatacommunities.org/doc/district-council/wyre,30/05/2024,People and Places,Current Assets,130B,Amazon Business,21/05/2024,PE159468,13.90,0.00,Batteries Elections,Elect. - Polling Stations
Wyre Council,http://opendatacommunities.org/doc/district-council/wyre,30/05/2024,People and Places,Current Assets,130B,Amazon Business,21/05/2024,PE159469,18.60,0.00,2 First aid kits,Elect. - Polling Stations
Wyre Council,http://opendatacommunities.org/doc/district-council/wyre,30/05/2024,People and Places,Current Assets,130B,Amazon Business,21/05/2024,PE159471,15.70,0.00,Batteries PCC Elections,Elect. - Polling Stations
Wyre Council,http://opendatacommunities.org/doc/district-council/wyre,30/05/2024,People and Places,Current Assets,130B,Amazon Business,21/05/2024,PE159481,30.08,0.00,2 x first aid kit for PCC Elections,Elect. - Polling Stations
Wyre Council,http://opendatacommunities.org/doc/district-council/wyre,30/05/2024,Resources,Current Assets,130B,Cre8iv Group Ltd,21/05/2024,RS159547,700.00,0.00,Use of Theatre for polling station on 02/05/2024,Elect. - Polling Stations
Wyre Council,http://opendatacommunities.org/doc/district-council/wyre,30/05/2024,Resources,Current Assets,130B,Royal Mail Group PLC,08/05/2024,RS158991,29241.66,0.00,Postal vote mailing charges for PCC election May 2024 - gross amount entered as per finance instructions - VAT not reclaimable,Elect. - Postal Votes
Wyre Council,http://opendatacommunities.org/doc/district-council/wyre,30/05/2024,Resources,Current Assets,130B,Royal Mail Group PLC,21/05/2024,RS159484,-6078.24,0.00,Royal Mail postage charges - return of postal votes PCC elections,Elect. - Postal Votes
Wyre Council,http://opendatacommunities.org/doc/district-council/wyre,30/05/2024,Resources,Current Assets,130B,Royal Mail Group PLC,21/05/2024,RS159482,-2073.54,0.00,Mailing of postal votes for PCC election 2024 - no VAT reclaimable on PCC election,Elect. - Postal Votes
Wyre Council,http://opendatacommunities.org/doc/district-council/wyre,30/05/2024,Resources,Current Assets,130B,Royal Mail Group PLC,21/05/2024,RS159499,7293.89,0.00,Royal Mail postage charges - return of postal votes,Elect. - Postal Votes
Wyre Council,http://opendatacommunities.org/doc/district-council/wyre,30/05/2024,Resources,Current Assets,130B,Royal Mail Group PLC,21/05/2024,RS159497,2488.25,0.00,Mailing of postal votes for PCC election 2024 - no VAT reclaimable on PCC election,Elect. - Postal Votes
Wyre Council,http://opendatacommunities.org/doc/district-council/wyre,30/05/2024,Resources,Current Assets,130B,Royal Mail Group PLC,02/05/2024,RS158915,6078.24,0.00,Royal Mail postage charges - return of postal votes,Elect. - Postal Votes
Wyre Council,http://opendatacommunities.org/doc/district-council/wyre,30/05/2024,Resources,Current Assets,130B,Royal Mail Group PLC,09/05/2024,RS159082,1915.37,0.00,PCC Elections 2024 postage costs,Elect. - Postal Votes
Wyre Council,http://opendatacommunities.org/doc/district-council/wyre,30/05/2024,Resources,Current Assets,130B,Print Image Network LTD,17/05/2024,RS159428,19150.45,0.00,Production of first issue postal votes and replacement packs for PCC 2024 Election,Elect. - Postal Votes
Wyre Council,http://opendatacommunities.org/doc/district-council/wyre,30/05/2024,Resources,Current Assets,130B,The Royal Venue,08/05/2024,RS159134,1000.00,0.00,Polling station fee - PCC election May 2024,Elect. - Returning Officer Fees inc. Dep
Wyre Council,http://opendatacommunities.org/doc/district-council/wyre,30/05/2024,Resources,Current Assets,130B,Claughton Memorial Hall,09/05/2024,RS159145,285.00,0.00,Payment for polling station hire May 2024 - PCC elections  Gross amount only  - VAT not reclaimable,Elect. - Returning Officer Fees inc. Dep
Wyre Council,http://opendatacommunities.org/doc/district-council/wyre,30/05/2024,People and Places,Environmental Services,132B,N Power LTD,28/05/2024,PE159025,9.24,0.00,"1610036002855 unmetered supply, Civic Centre, FY6 7PU 01/04/24 to 30/04/24 (1.29kWh)",Electricity
Wyre Council,http://opendatacommunities.org/doc/district-council/wyre,30/05/2024,People and Places,Environmental Services,132B,N Power LTD,28/05/2024,PE159024,298.55,0.00,MPAN 1610036002846 uNMETERED SUPPLY FOR THE PERIOD 01/04/24-30/04/24  5909.00KWH,Electricity
Wyre Council,http://opendatacommunities.org/doc/district-council/wyre,30/05/2024,People and Places,Parking Services,133F,N Power LTD,28/05/2024,PE159024,1674.33,0.00,MPAN 1610036002846 uNMETERED SUPPLY FOR THE PERIOD 01/04/24-30/04/24  5909.00KWH,Electricity
Wyre Council,http://opendatacommunities.org/doc/district-council/wyre,30/05/2024,People and Places,Parking Services,133F,N Power LTD,28/05/2024,PE159025,51.82,0.00,"1610036002855 unmetered supply, Civic Centre, FY6 7PU 01/04/24 to 30/04/24  (7.21kWh)",Electricity
Wyre Council,http://opendatacommunities.org/doc/district-council/wyre,30/05/2024,People and Places,Parking Services,133F,N Power LTD,28/05/2024,PE159026,479.25,0.00,"1620000821031 unmetered supply lighting Civic Centre, FY6 7PU 01/04/24 to 30/04/24 (1329.50kWh)",Electricity
Wyre Council,http://opendatacommunities.org/doc/district-council/wyre,30/05/2024,People and Places,Cultural and Related Services,132A,N Power LTD,24/05/2024,PE159218,6950.60,0.00,"1600000162884 Fleetwood Leisure Centre, The Esplanade, Fleetwood FY7 6HF 01/04/24-30/04/24 - 28036.100",Electricity
Wyre Council,http://opendatacommunities.org/doc/district-council/wyre,30/05/2024,People and Places,Cultural and Related Services,132A,N Power LTD,24/05/2024,PE159219,7302.97,0.00,"2500000793090 Thornton Leisure Centre, Victoria Road East, Thornton FY5 3SX - 01/04/24-30/04/24 -  27116.200 kWh",Electricity
Wyre Council,http://opendatacommunities.org/doc/district-council/wyre,30/05/2024,People and Places,Cultural and Related Services,132A,N Power LTD,24/05/2024,PE159220,4099.33,0.00,"2500000676813 Swimming & Fitness Centre, Breck Road, Poulton FY6 7HU - 01/04/24-30/04/24 - 14187.300 kwH",Electricity
Wyre Council,http://opendatacommunities.org/doc/district-council/wyre,30/05/2024,People and Places,Cultural and Related Services,132A,N Power LTD,24/05/2024,PE159221,1686.77,0.00,"1600000125794 Garstang Swimming Pool, Birch Road, Garstang PR3 1WJ - 01/04/24-30/04/24 -  6473.100 KwH",Electricity
Wyre Council,http://opendatacommunities.org/doc/district-council/wyre,30/05/2024,People and Places,Cultural and Related Services,132A,N Power LTD,24/05/2024,PE159225,1111.70,0.00,"1610023220857 YMCA Garstang Leisure Centre, Windsor Road, Garstang PR3 1ED - 01/04/24-30/04/24 - 3645.800 KwH",Electricity
Wyre Council,http://opendatacommunities.org/doc/district-council/wyre,30/05/2024,People and Places,Environmental Services,132B,OPUS Energy LTD,03/05/2024,PE158504,46.15,0.00,"1610004421042 Pumping Station 1,  New Lane, Thornton Cleveleys, FY5 5NS 01/03/24 to 31/03/24 (9kWh)",Electricity
Wyre Council,http://opendatacommunities.org/doc/district-council/wyre,30/05/2024,People and Places,Cultural and Related Services,132A,OPUS Energy LTD,17/05/2024,PE159401,92.30,0.00,1610004318841 Jean Stansfield Bowling Green 01/02/24 to 30/04/24 (196kWh),Electricity
Wyre Council,http://opendatacommunities.org/doc/district-council/wyre,30/05/2024,People and Places,Central Services to the Public,131C,OPUS Energy LTD,03/05/2024,PE158502,1365.82,0.00,"1610004322012 WRVS Teanlowe Day  Centre, Queensway, Poulton le Fylde, FY6 7ST 01/03/24 to 31/03/24 (4534kWh)",Electricity
Wyre Council,http://opendatacommunities.org/doc/district-council/wyre,30/05/2024,People and Places,Central Services to the Public,131C,OPUS Energy LTD,03/05/2024,PE158500,392.65,0.00,"1610004313728 Queensway PC,  Teanlowe Centre, Poulton le Fylde, FY6 7DF 01/03/24 to 31/03/24 (1265kWh)",Electricity
Wyre Council,http://opendatacommunities.org/doc/district-council/wyre,30/05/2024,People and Places,Cultural and Related Services,132A,OPUS Energy LTD,03/05/2024,PE158514,16.30,0.00,"1630000861704 North Promenade  Kiosk, Childrens Corner, Thornton Cleveleys FY5 1DB 01/03/24 to 31/03/24  (0kWh)",Electricity
Wyre Council,http://opendatacommunities.org/doc/district-council/wyre,30/05/2024,People and Places,Cultural and Related Services,132A,OPUS Energy LTD,03/05/2024,PE158510,290.55,0.00,"1610004773866 Lecture Hall,  Fleetwood Rd North, Thornton Cleveleys, FY5 4AD 01/03/24 to 31/03/24 (636kWh)",Electricity
Wyre Council,http://opendatacommunities.org/doc/district-council/wyre,30/05/2024,People and Places,Cultural and Related Services,132A,OPUS Energy LTD,03/05/2024,PE158511,127.19,0.00,"1610004863632 Beach Bungalows,  The Esplanade, FY7 6QD 01/03/24 to 31/03/24 (406kWh)",Electricity
Wyre Council,http://opendatacommunities.org/doc/district-council/wyre,30/05/2024,People and Places,Cultural and Related Services,132A,OPUS Energy LTD,03/05/2024,PE158513,505.72,0.00,"1640000960322 The Mount Lodge,  The Esplanade, FY7 6EZ 01/03/24 to 31/03/24 (1785.39kWh)",Electricity
Wyre Council,http://opendatacommunities.org/doc/district-council/wyre,30/05/2024,People and Places,Cultural and Related Services,132A,OPUS Energy LTD,03/05/2024,PE158501,47.12,0.00,"1610004318841 Jean Stansfield  bowling Green, Vicarage Rd, Poulton le Fylde, FY6 7BE 01/03/24 to 31/03/24  (123kWh)",Electricity
Wyre Council,http://opendatacommunities.org/doc/district-council/wyre,30/05/2024,People and Places,Cultural and Related Services,132A,OPUS Energy LTD,03/05/2024,PE158508,901.18,0.00,"1610004742404 River Road,  Thornton Cleveleys, FY5 5LR 01/03/24 to 31/03/24 (3199kWh)",Electricity
Wyre Council,http://opendatacommunities.org/doc/district-council/wyre,30/05/2024,People and Places,Cultural and Related Services,132A,OPUS Energy LTD,03/05/2024,PE158515,6.54,0.00,"1610004742431 Visitors Centre,  River Rd, Thornton Cleveleys, FY5 5LR 01/03/24 to 31/03/24 (0kWh)",Electricity
Wyre Council,http://opendatacommunities.org/doc/district-council/wyre,30/05/2024,People and Places,Cultural and Related Services,132A,OPUS Energy LTD,03/05/2024,PE158499,68.43,0.00,"1610004305443 Cottam Hall Sports  Pavilion, Blackpool Old Rd, Poulton e Fylde, FY6 7RH 01/03/24 to 31/03/24  (66kWh)",Electricity
Wyre Council,http://opendatacommunities.org/doc/district-council/wyre,30/05/2024,People and Places,Cultural and Related Services,132A,OPUS Energy LTD,03/05/2024,PE158507,62.55,0.00,"1610004724089 Pavilion, North  Drive, Thornton Cleveleys, FY5 2QD 01/03/24 to 31/03/24 (179kWh)",Electricity
Wyre Council,http://opendatacommunities.org/doc/district-council/wyre,30/05/2024,People and Places,Environmental Services,132B,OPUS Energy LTD,03/05/2024,PE158503,913.11,0.00,"1610004347328 Cemetery, Garstang  Rd East, Poulton Le Fylde, FY6 7SN 01/03/24 to 31/03/24 (3471kWh)",Electricity
Wyre Council,http://opendatacommunities.org/doc/district-council/wyre,30/05/2024,People and Places,Environmental Services,132B,OPUS Energy LTD,03/05/2024,PE158506,652.78,0.00,"1610004665168 Rough Lea Rd PC,  Bus Station, Thornton Cleveleys, FY5 1BW 01/03/24 to 31/03/24 (2208kWh)",Electricity
Wyre Council,http://opendatacommunities.org/doc/district-council/wyre,30/05/2024,People and Places,Environmental Services,132B,OPUS Energy LTD,03/05/2024,PE158512,88.31,0.00,"1610023232505 Car park PC, High  St, Garstang, PR3 1FA 01/03/24 to 31/03/24 (165.1kWh)",Electricity
Wyre Council,http://opendatacommunities.org/doc/district-council/wyre,30/05/2024,People and Places,Environmental Services,132B,OPUS Energy LTD,03/05/2024,PE158505,21.43,0.00,"1610004421200 Pumping Station 2,  New Lane, Thornton Cleveleys, FY5 5N 01/03/24 to 31/03/24 (30kWh)",Electricity
Wyre Council,http://opendatacommunities.org/doc/district-council/wyre,30/05/2024,People and Places,Environmental Services,132B,OPUS Energy LTD,03/05/2024,PE158509,224.92,0.00,"1610004742413 Stanah Pumphouse  11, River Road, Thornton Cleveleys, FY5 5LR 01/03/24 to 31/03/24 (657kWh)",Electricity
Wyre Council,http://opendatacommunities.org/doc/district-council/wyre,30/05/2024,People and Places,Environmental Services,132B,OPUS Energy LTD,28/05/2024,PE159249,202.82,0.00,"1610004742413  Stanah Pumphouse 11, River Rd, Thornton Cleveleys, FY5 5LR 01/04/24 to  30/04/24 (582kWh) E",Electricity
Wyre Council,http://opendatacommunities.org/doc/district-council/wyre,30/05/2024,People and Places,Cultural and Related Services,132A,OPUS Energy LTD,28/05/2024,PE159250,362.14,0.00,"1610004773866  Lecture Hall, Fleetwood Rd N, Thornton Cleveleys, FY5 4AD 01/04/24 to  30/04/24 (909kWh) E",Electricity
Wyre Council,http://opendatacommunities.org/doc/district-council/wyre,30/05/2024,People and Places,Cultural and Related Services,132A,OPUS Energy LTD,28/05/2024,PE159251,113.98,0.00,"1610004863632  Beach Bungalows, The Esplanade, Fleetwood, FY7 6QD 01/04/24 to 30/04/24  (360kWh) E",Electricity
Wyre Council,http://opendatacommunities.org/doc/district-council/wyre,30/05/2024,People and Places,Cultural and Related Services,132A,OPUS Energy LTD,28/05/2024,PE159254,15.78,0.00,"1630000861704  North Promenade Kiosk, Children`s Corner, Thornton Cleveleys FY5 1DB 01/04/24  to 30/04/24 (0kWh) E",Electricity
Wyre Council,http://opendatacommunities.org/doc/district-council/wyre,30/05/2024,People and Places,Cultural and Related Services,132A,OPUS Energy LTD,28/05/2024,PE159253,416.63,0.00,"1640000960322  Mount Lodge, The Esplanade, Fleetwood, FY7 6EZ 01/04/24 to 30/04/24  (1463.99kWh) E",Electricity
Wyre Council,http://opendatacommunities.org/doc/district-council/wyre,30/05/2024,People and Places,Cultural and Related Services,132A,OPUS Energy LTD,28/05/2024,PE159247,45.83,0.00,"1610004724089  Pavilion, North Drive, Thornton Cleveleys, FY5 2QD 01/04/24 to 30/04/24  (120kWh) E",Electricity
Wyre Council,http://opendatacommunities.org/doc/district-council/wyre,30/05/2024,People and Places,Environmental Services,132B,OPUS Energy LTD,28/05/2024,PE159243,750.95,0.00,"1610004347328  Garstang Rd E Cemetery, Poulton le Fylde, FY6 7SN 01/04/24 to 30/04/24  (2739kWh) E",Electricity
Wyre Council,http://opendatacommunities.org/doc/district-council/wyre,30/05/2024,People and Places,Environmental Services,132B,OPUS Energy LTD,28/05/2024,PE159245,20.20,0.00,"1610004421200  Pumping Station 2, New Lane, Thornton Cleveleys, FY5 5NH 01/04/24 to 30/04/24  (27kWh) E",Electricity
Wyre Council,http://opendatacommunities.org/doc/district-council/wyre,30/05/2024,People and Places,Environmental Services,132B,OPUS Energy LTD,28/05/2024,PE159244,43.90,0.00,"1610004421042  Pumping Station 1, New Lane, Thornton Cleveleys, FY5 5NS 01/04/24 to 30/04/24  (6kWh) E",Electricity
Wyre Council,http://opendatacommunities.org/doc/district-council/wyre,30/05/2024,People and Places,Environmental Services,132B,OPUS Energy LTD,28/05/2024,PE159252,84.37,0.00,"1610023232505  PC, Car park, High St, Garstang, PR3 1FA 01/04/24 to 30/04/24 (156.47kWh) E",Electricity
Wyre Council,http://opendatacommunities.org/doc/district-council/wyre,30/05/2024,People and Places,Environmental Services,132B,OPUS Energy LTD,28/05/2024,PE159246,514.55,0.00,"1610004665168  PC, Rough Lea Rd Bus Station, Thornton Cleveleys, FY5 1BW 01/04/24 to  30/04/24 (1712kWh) E",Electricity
Wyre Council,http://opendatacommunities.org/doc/district-council/wyre,30/05/2024,People and Places,Cultural and Related Services,132A,OPUS Energy LTD,28/05/2024,PE159248,748.35,0.00,"1610004742399/1610004742404  River Rd, Thornton Cleveleys, FY5 5LR 01/04/24 to 30/04/24 (2634kWh) E",Electricity
Wyre Council,http://opendatacommunities.org/doc/district-council/wyre,30/05/2024,People and Places,Environmental Services,132B,OPUS Energy LTD,28/05/2024,PE159241,351.52,0.00,"1610004313728  PC, Teanlowe Ctr, Queensway, Poulton le Fylde, FY6 7DF 01/04/24 to 30/04/24  (1121kWh) E",Electricity
Wyre Council,http://opendatacommunities.org/doc/district-council/wyre,30/05/2024,People and Places,Cultural and Related Services,132A,OPUS Energy LTD,28/05/2024,PE159240,64.62,0.00,"1610004305434/1610004305443  Sports Pavilion, Cottam Hall, Poulton le Fylde, FY6 7RH 01/04/24 to 30/04/24  (58kWh) E",Electricity
Wyre Council,http://opendatacommunities.org/doc/district-council/wyre,30/05/2024,People and Places,Central Services to the Public,131C,OPUS Energy LTD,28/05/2024,PE159242,1246.80,0.00,"1610004322012  WRVS, Teanlowe Day Ctre, Queensway, Poulton le Fylde, FY6 7ST 01/04/24 to  30/04/24 (4116kWh) E",Electricity
Wyre Council,http://opendatacommunities.org/doc/district-council/wyre,30/05/2024,People and Places,Planning and Development Servs,132C,Corona Energy Retail 4 Limited,01/05/2024,PE158422,2423.15,0.00,1640000184606 Council Depot Copse Road Fleetwood FY76RP 01/03/24 to 31/03/24 (6585.9kWh),Electricity
Wyre Council,http://opendatacommunities.org/doc/district-council/wyre,30/05/2024,People and Places,Planning and Development Servs,132C,Corona Energy Retail 4 Limited,16/05/2024,PE159198,2352.27,0.00,1640000184606 Council Depot Copse Road  Fleetwood FY76RP 01/04/24 to 30/04/24 (6180.3kWh),Electricity
Wyre Council,http://opendatacommunities.org/doc/district-council/wyre,30/05/2024,People and Places,Cultural and Related Services,132A,Corona Energy Retail 4 Limited,16/05/2024,PE159196,6501.86,0.00,1600000162875 Marine Hall The Esplanade  Fleetwood FY76HF 01/04/24 to 30/04/24 (15362.4kWh),Electricity
Wyre Council,http://opendatacommunities.org/doc/district-council/wyre,30/05/2024,People and Places,Environmental Services,132B,Corona Energy Retail 4 Limited,16/05/2024,PE159193,144.93,0.00,1600000023675 Royles Brook Pumping Station  Off Victoria Road East Thornton FY55OX 01/04/24 to 30/04/24 (357.7kWh),Electricity
Wyre Council,http://opendatacommunities.org/doc/district-council/wyre,30/05/2024,People and Places,Cultural and Related Services,132A,Corona Energy Retail 4 Limited,16/05/2024,PE159197,1514.80,0.00,1630000670291 Promendae Cafe North  Promenade Thornton-Cleveleys FY51DB 01/04/24 to 30/04/24 (4065.7kWh),Electricity
Wyre Council,http://opendatacommunities.org/doc/district-council/wyre,30/05/2024,People and Places,Planning and Development Servs,132C,Corona Energy Retail 4 Limited,16/05/2024,PE159200,783.99,0.00,1620000784666 Main Hall Adelaide Street  Fleetwood FY76AB 01/04/24 to 30/04/24 (0kWh),Electricity
Wyre Council,http://opendatacommunities.org/doc/district-council/wyre,30/05/2024,People and Places,Support Services,135B,Corona Energy Retail 4 Limited,16/05/2024,PE159195,13114.63,0.00,1600000162857 Civic Centre Breck Road  Blackpool FY39DT 01/04/24 to 30/04/24 (34870.7kWh),Electricity
Wyre Council,http://opendatacommunities.org/doc/district-council/wyre,30/05/2024,People and Places,Support Services,135B,Corona Energy Retail 4 Limited,16/05/2024,PE159194,13615.48,0.00,1600000162857 Civic Centre Breck Road  Blackpool FY39DT 01/03/24 to 31/03/24 (37395.6kWh),Electricity
Wyre Council,http://opendatacommunities.org/doc/district-council/wyre,30/05/2024,People and Places,Support Services,135B,Corona Energy Retail 4 Limited,17/05/2024,PE159388,13146.16,0.00,1600000162857 Civic Centre Breck Road Blackpool FY39DT 01/04/24 to 30/04/24 (34974.90 kWh),Electricity
Wyre Council,http://opendatacommunities.org/doc/district-council/wyre,30/05/2024,People and Places,Environmental Services,132B,Corona Energy Retail 4 Limited,01/05/2024,PE158417,181.98,0.00,1600000023675 Royles Brook Pumping Station Off Victoria Road East Thornton FY55OX 01/03/24 to 31/03/24 (494.7kWh),Electricity
Wyre Council,http://opendatacommunities.org/doc/district-council/wyre,30/05/2024,People and Places,Cultural and Related Services,132A,Corona Energy Retail 4 Limited,01/05/2024,PE158423,312.97,0.00,1640000233705 Coastal Observation Point Rossal Point Fleetwood FY78AF 01/03/24 to 31/03/24 (853kWh),Electricity
Wyre Council,http://opendatacommunities.org/doc/district-council/wyre,30/05/2024,People and Places,Cultural and Related Services,132A,Corona Energy Retail 4 Limited,16/05/2024,PE159199,275.23,0.00,1640000233705 Coastal Observation Point  Rossal Point Fleetwood FY78AF 01/04/24 to 30/04/24 (711.8kWh),Electricity
Wyre Council,http://opendatacommunities.org/doc/district-council/wyre,30/05/2024,People and Places,Support Services,135B,Corona Energy Retail 4 Limited,17/05/2024,PE159387,-13114.63,0.00,1600000162857 Civic Centre Breck Road Blackpool FY39DT 01/04/24 to 30/04/24 (34870.7kWh),Electricity
Wyre Council,http://opendatacommunities.org/doc/district-council/wyre,30/05/2024,People and Places,Support Services,135B,Corona Energy Retail 4 Limited,16/05/2024,PE159202,-14027.43,0.00,1600000162857 Civic Centre Breck Road Blackpool FY39DT 01/03/24 to 31/03/24 (38695.6kWh),Electricity
Wyre Council,http://opendatacommunities.org/doc/district-council/wyre,30/05/2024,People and Places,Environmental Services,132B,Corona Energy Retail 4 Limited,15/05/2024,PE159188,288.14,0.00,1610004742413 Stanah Pumphouse 11 River  Road Thornton Cleveleys FY55LR 01/12/22 to 31/12/22 (733kwh),Electricity
Wyre Council,http://opendatacommunities.org/doc/district-council/wyre,30/05/2024,People and Places,Environmental Services,132B,Corona Energy Retail 4 Limited,15/05/2024,PE159187,256.45,0.00,1610004742413 Stanah Pumphouse 11 River  Road Thornton Cleveleys FY55LR 01/11/22 to 30/11/22 (646kwh),Electricity
Wyre Council,http://opendatacommunities.org/doc/district-council/wyre,30/05/2024,People and Places,Environmental Services,132B,Corona Energy Retail 4 Limited,15/05/2024,PE159186,232.41,0.00,1610004742413 Stanah Pumphouse 11 River  Road Thornton Cleveleys FY55LR 01/10/22 to 31/10/22 (580kwh),Electricity
Wyre Council,http://opendatacommunities.org/doc/district-council/wyre,30/05/2024,People and Places,Environmental Services,132B,Corona Energy Retail 4 Limited,15/05/2024,PE159192,0.47,0.00,1610004845313 Fleetwood Corporation  Cemetery Beach Road Fleetwood FY78PH 01/10/22 to 01/10/22 (1kwh),Electricity
Wyre Council,http://opendatacommunities.org/doc/district-council/wyre,30/05/2024,People and Places,Cultural and Related Services,132A,Corona Energy Retail 4 Limited,15/05/2024,PE159189,1.10,0.00,1610004775083 The Windmill Fleetwood Road  North Thornton Cleveleys FY54BP 01/10/22 to 01/10/22 (4kwh),Electricity
Wyre Council,http://opendatacommunities.org/doc/district-council/wyre,30/05/2024,People and Places,Cultural and Related Services,132A,Corona Energy Retail 4 Limited,15/05/2024,PE159184,436.62,0.00,1650000008330 The Mount Pavilion Mount Road  Fleetwood FY76EZ 01/04/24 to 30/04/24 (989kwh),Electricity
Wyre Council,http://opendatacommunities.org/doc/district-council/wyre,30/05/2024,People and Places,Cultural and Related Services,132A,Corona Energy Retail 4 Limited,15/05/2024,PE159191,0.46,0.00,1610004932418 King Georges Field Broadwater  Fleetwood Road FY78BD 01/10/22 to 01/10/22 (0kwh),Electricity
Wyre Council,http://opendatacommunities.org/doc/district-council/wyre,30/05/2024,People and Places,Cultural and Related Services,132A,Corona Energy Retail 4 Limited,15/05/2024,PE159190,4.46,0.00,1610004867479 The Mount Pavilion Mount Road  Fleetwood FY76EZ 01/10/22 to 01/10/22 (11kwh),Electricity
Wyre Council,http://opendatacommunities.org/doc/district-council/wyre,30/05/2024,People and Places,Cultural and Related Services,132A,Corona Energy Retail 4 Limited,15/05/2024,PE159185,330.46,0.00,1650000008330 The Mount Pavilion Mount Road  Fleetwood FY76EZ 01/04/24 to 30/04/24 (610kwh),Electricity
Wyre Council,http://opendatacommunities.org/doc/district-council/wyre,30/05/2024,People and Places,Cultural and Related Services,132A,Engie Power Limited,09/05/2024,PE158558,376.15,0.00,"1630000841586  Garstang TIC, Unit 1 Cherestanc Square, PR3 1EF 01/03/24 to 31/03/24  (848.1kWh) A",Electricity
Wyre Council,http://opendatacommunities.org/doc/district-council/wyre,30/05/2024,People and Places,Cultural and Related Services,132A,Engie Power Limited,09/05/2024,PE157654,264.72,0.00,"16300006841586 Garstang TIC nit 1 Cherestanc Sw, PR3 1EF 01/02/24 to 29/02/24 (549.1kWh)",Electricity
Wyre Council,http://opendatacommunities.org/doc/district-council/wyre,30/05/2024,People and Places,Cultural and Related Services,132A,Engie Power Limited,29/05/2024,PE159297,213.01,0.00,1610004867479 The Mount Pavilion Mount Rd Fleetwood FY7 6EZ01/04/24-30/04/24409.20kwh,Electricity
Wyre Council,http://opendatacommunities.org/doc/district-council/wyre,30/05/2024,People and Places,Cultural and Related Services,132A,Engie Power Limited,29/05/2024,PE159298,97.24,0.00,"1640000004924 Feeder Pillar, Hawthorne Park, Hawthorne Rd, Thornton Cleveleys, FY5 5DH01/04/24-30/04/2471.80kwh",Electricity
Wyre Council,http://opendatacommunities.org/doc/district-council/wyre,30/05/2024,People and Places,Environmental Services,132B,Engie Power Limited,29/05/2024,PE159592,62.53,0.00,"1610004846520  Boating Lake Toilets, Laidleys Walk, Fleetwood, FY7 7HU 01/06/23 to 30/06/23  (29kWh) E",Electricity
Wyre Council,http://opendatacommunities.org/doc/district-council/wyre,30/05/2024,People and Places,Environmental Services,132B,Engie Power Limited,29/05/2024,PE159590,89.37,0.00,"1610004846520  Boating Lake Toilets, Laidleys Walk, Fleetwood, FY7 7HU 01/05/23 to 31/05/23  (44.4kWh) E",Electricity
Wyre Council,http://opendatacommunities.org/doc/district-council/wyre,30/05/2024,People and Places,Environmental Services,132B,Engie Power Limited,29/05/2024,PE159588,88.47,0.00,"1610004846520  Boating Lake Toilets, Laidleys Walk, Fleetwood, FY7 7HU 01/04/23 to 30/04/23  (48.5kWh) E",Electricity
Wyre Council,http://opendatacommunities.org/doc/district-council/wyre,30/05/2024,People and Places,Environmental Services,132B,Engie Power Limited,29/05/2024,PE159586,91.79,0.00,"1610004846520  Boating Lake Toilets, Laidleys Walk, Fleetwood, FY7 7HU 01/03/23 to 31/03/23  (56.1kWh) E",Electricity
Wyre Council,http://opendatacommunities.org/doc/district-council/wyre,30/05/2024,People and Places,Environmental Services,132B,Engie Power Limited,29/05/2024,PE159299,219.67,0.00,"1630000584632 PC, rear of Tesco, Rough Lea Rd, Thornton Cleveleys, FY5 1BW01/04/24-30/04/24416.20kwh",Electricity
Wyre Council,http://opendatacommunities.org/doc/district-council/wyre,30/05/2024,People and Places,Environmental Services,132B,Engie Power Limited,29/05/2024,PE159584,84.64,0.00,"1610004846520  Boating Lake Toilets, Laidleys Walk, Fleetwood, FY7 7HU 01/02/23 to 28/02/23  (56kWh) C",Electricity
Wyre Council,http://opendatacommunities.org/doc/district-council/wyre,30/05/2024,People and Places,Environmental Services,132B,Engie Power Limited,29/05/2024,PE159581,95.43,0.00,"1610004846520  Boating Lake Toilets, Laidleys Walk, Fleetwood, FY7 7HU 01/12/22 to 31/12/22  (67.3kWh) E",Electricity
Wyre Council,http://opendatacommunities.org/doc/district-council/wyre,30/05/2024,People and Places,Environmental Services,132B,Engie Power Limited,29/05/2024,PE159578,87.53,0.00,"1610004846520  Boating Lake Toilets, Laidleys Walk, Fleetwood, FY7 7HU 02/10/22 to 31/10/22  (50.3kWh) E",Electricity
Wyre Council,http://opendatacommunities.org/doc/district-council/wyre,30/05/2024,People and Places,Environmental Services,132B,Engie Power Limited,29/05/2024,PE159577,94.48,0.00,"1610004846520  Boating Lake Toilets, Laidleys Walk, Fleetwood, FY7 7HU 01/01/23 to 31/01/23  (64.4kWh) E",Electricity
Wyre Council,http://opendatacommunities.org/doc/district-council/wyre,30/05/2024,People and Places,Environmental Services,132B,Engie Power Limited,29/05/2024,PE159576,89.87,0.00,"1610004846520  Boating Lake Toilets, Laidleys Walk, Fleetwood, FY7 7HU 01/11/22 to 30/11/22  (57.5kWh) E",Electricity
Wyre Council,http://opendatacommunities.org/doc/district-council/wyre,30/05/2024,People and Places,Environmental Services,132B,Engie Power Limited,29/05/2024,PE159302,139.31,0.00,"1630000819048 Public Conveniences, Cherestanc Square, Garstang, Lancashire, PR3 1EF01/04/24-30/04/24191.00kwh",Electricity
Wyre Council,http://opendatacommunities.org/doc/district-council/wyre,30/05/2024,People and Places,Environmental Services,132B,Engie Power Limited,29/05/2024,PE159301,268.91,0.00,"1630000740099 PC, Wyreside, Knott End on Sea, FY6 0AA01/04/24-30/04/24554.20kwh",Electricity
Wyre Council,http://opendatacommunities.org/doc/district-council/wyre,30/05/2024,People and Places,Environmental Services,132B,Engie Power Limited,29/05/2024,PE159300,109.27,0.00,"1620001343345 PC, Thornton Centre, Victoria Rd East, FY5 5DZ01/04/24-30/04/24106.80kwh",Electricity
Wyre Council,http://opendatacommunities.org/doc/district-council/wyre,30/05/2024,People and Places,Cultural and Related Services,132A,Engie Power Limited,28/05/2024,PE159264,85.58,0.00,"1640000400837 Beach Huts, The Esplanade, Fleetwood, FY7 6QD - 01/04/24-30/04/24 - 116.20 kwh",Electricity
Wyre Council,http://opendatacommunities.org/doc/district-council/wyre,30/05/2024,People and Places,Cultural and Related Services,132A,Engie Power Limited,28/05/2024,PE159267,276.84,0.00,"1640000118533 Feeder Pillar, Vicarage Rd, Poulton le Fylde, FY6 7BE - 01/04/24-30/04/24 -  701.30kwh",Electricity
Wyre Council,http://opendatacommunities.org/doc/district-council/wyre,30/05/2024,People and Places,Planning and Development Servs,132C,Engie Power Limited,28/05/2024,PE159260,60.45,0.00,"1640000947154 Kiosk 3, Fleetwood Market, Adelaide St, Fleetwood, FY7 6AB - 01/04/24-30/04/24 - 39.30 kWh",Electricity
Wyre Council,http://opendatacommunities.org/doc/district-council/wyre,30/05/2024,People and Places,Planning and Development Servs,132C,Engie Power Limited,28/05/2024,PE159259,51.65,0.00,"1640000947181 Kiosk 6, Fleetwood Market, Adelaide St, Fleetwood, FY7 6AB - 01/04/24-30/04/24 - 12.40kWh",Electricity
Wyre Council,http://opendatacommunities.org/doc/district-council/wyre,30/05/2024,People and Places,Planning and Development Servs,132C,Engie Power Limited,28/05/2024,PE159262,73.42,0.00,"1640000947172 Kiosk 5, Fleetwood Market, Adelaide St, Fleetwood, FY7 6AB -  01/04/24-30/04/24 -  79.00 kWh",Electricity
Wyre Council,http://opendatacommunities.org/doc/district-council/wyre,30/05/2024,People and Places,Planning and Development Servs,132C,Engie Power Limited,28/05/2024,PE159261,70.15,0.00,"1640000947163 Kiosk 4, Fleetwood Market, Adelaide St, Fleetwood, FY7 6AB - 01/04/24-30/04/24 - 69.00 kWh",Electricity
Wyre Council,http://opendatacommunities.org/doc/district-council/wyre,30/05/2024,People and Places,Planning and Development Servs,132C,Engie Power Limited,28/05/2024,PE159266,279.29,0.00,"1640000947145 Kiosk 2, Fleetwood Market, Adelaie St, Fleetwood, FY7 6AB - 01/04/24-30/04/24 - 708.80 kwh",Electricity
Wyre Council,http://opendatacommunities.org/doc/district-council/wyre,30/05/2024,People and Places,Planning and Development Servs,132C,Engie Power Limited,28/05/2024,PE159265,153.57,0.00,"1640000947136 Kiosk 1, Fleetwood Market, Adelaide St, Fleetwood, FY7 6AB - 01/04/24-30/04/24 - 324.20 kwh",Electricity
Wyre Council,http://opendatacommunities.org/doc/district-council/wyre,30/05/2024,People and Places,Environmental Services,132B,Engie Power Limited,28/05/2024,PE159263,118.21,0.00,"1640000258365 PC, River Road, Thornton Cleveleys, FY5 5LR - 01/04/24-30/04/24 - 216.00 kwh",Electricity
Wyre Council,http://opendatacommunities.org/doc/district-council/wyre,30/05/2024,People and Places,Environmental Services,132B,Engie Power Limited,29/05/2024,PE159290,228.61,0.00,"1610004933625 Springfield Pumping Station 17, Fleeetwood Road, Fleetwood, Lancashire, FY7 8TW01/04/24-30/04/24469.10kwh",Electricity
Wyre Council,http://opendatacommunities.org/doc/district-council/wyre,30/05/2024,People and Places,Environmental Services,132B,Engie Power Limited,29/05/2024,PE159281,124.83,0.00,"1610004845313 Fleetwood Corp Cemetery, Beach Rd, Fleetwood, FY7 8PH01/04/24-30/04/24203.60",Electricity
Wyre Council,http://opendatacommunities.org/doc/district-council/wyre,30/05/2024,People and Places,Environmental Services,132B,Engie Power Limited,29/05/2024,PE159280,284.65,0.00,"1610004845304 Fleetwood Corp Cemetery, Beach Rd, Fleetwood, FY7 8PH01/04/24-30/04/24598.30 kwh",Electricity
Wyre Council,http://opendatacommunities.org/doc/district-council/wyre,30/05/2024,People and Places,Planning and Development Servs,132C,Engie Power Limited,29/05/2024,PE159269,172.40,0.00,"1640000947190 Kiosk 7, Fleetwood Market, Adelaide St, Fleetwood, FY7 6AB01/04/24-30/04/24381.80 kwh",Electricity
Wyre Council,http://opendatacommunities.org/doc/district-council/wyre,30/05/2024,People and Places,Planning and Development Servs,132C,Engie Power Limited,29/05/2024,PE159271,48.09,0.00,"1640000947215 Landlord Supply, Fleetwood Market, Adelaide St, Fleetwood, FY7 6AB01/04/24-30/04/241.50kwh",Electricity
Wyre Council,http://opendatacommunities.org/doc/district-council/wyre,30/05/2024,People and Places,Planning and Development Servs,132C,Engie Power Limited,29/05/2024,PE159270,55.18,0.00,"1640000947206 Kiosk 8, Fleetwood Market, Adelaide St, Fleetwood, FY7 6AB01/04/24-30/04/2423.20kwh",Electricity
Wyre Council,http://opendatacommunities.org/doc/district-council/wyre,30/05/2024,People and Places,Environmental Services,132B,Engie Power Limited,29/05/2024,PE159283,199.51,0.00,"1610013371994 PC, The Weind, Great Eccleston, PR3 0ZU01/04/24-30/04/24359.70kwh",Electricity
Wyre Council,http://opendatacommunities.org/doc/district-council/wyre,30/05/2024,People and Places,Environmental Services,132B,Engie Power Limited,29/05/2024,PE159275,138.49,0.00,"1610004845322 PC, Beach Rd, Fleetwood, FY7 8PH01/04/24-30/04/24188.70kwh",Electricity
Wyre Council,http://opendatacommunities.org/doc/district-council/wyre,30/05/2024,People and Places,Environmental Services,132B,Engie Power Limited,29/05/2024,PE159268,173.58,0.00,"1640000218200 PC, Bold St, Fleetwood, FY7 6BW01/04/24-30/04/24 - 385.40 kwh",Electricity
Wyre Council,http://opendatacommunities.org/doc/district-council/wyre,30/05/2024,People and Places,Environmental Services,132B,Engie Power Limited,29/05/2024,PE159292,128.82,0.00,"1610004885487 PC, Preston St, Fleetwood, FY7 6JA01/04/24-30/04/24161.60kwh",Electricity
Wyre Council,http://opendatacommunities.org/doc/district-council/wyre,30/05/2024,People and Places,Environmental Services,132B,Engie Power Limited,29/05/2024,PE159286,290.79,0.00,"1610023251891 PC, Gubberford Lane, Scorton, PR3 1BL01/04/24-30/04/24615.50kwh",Electricity
Wyre Council,http://opendatacommunities.org/doc/district-council/wyre,30/05/2024,People and Places,Environmental Services,132B,Engie Power Limited,29/05/2024,PE159285,226.41,0.00,"1610023195261 PC, Smallwood Hey, Pilling, Preston, PR3 6HJ01/04/24-30/04/24435.10kwh",Electricity
Wyre Council,http://opendatacommunities.org/doc/district-council/wyre,30/05/2024,People and Places,Environmental Services,132B,Engie Power Limited,29/05/2024,PE159284,150.83,0.00,"1610023169146 Public Conveniences, Barton Square, Knott End on Sea, Lancashire, FY6 0AG01/04/24-30/04/242330.00kwh",Electricity
Wyre Council,http://opendatacommunities.org/doc/district-council/wyre,30/05/2024,People and Places,Cultural and Related Services,132A,Engie Power Limited,29/05/2024,PE159296,188.96,0.00,"1610004867441 Mount Hotel, Mount Rd, Fleetwood, FY7 6RA01/04/24-30/04/24446.90",Electricity
Wyre Council,http://opendatacommunities.org/doc/district-council/wyre,30/05/2024,People and Places,Cultural and Related Services,132A,Engie Power Limited,29/05/2024,PE159291,188.83,0.00,"1610004867488 Mount Pavilion, Mount Rd, Fleetwood, FY7 6EZ01/04/24-30/04/24446.40kwh",Electricity
Wyre Council,http://opendatacommunities.org/doc/district-council/wyre,30/05/2024,People and Places,Cultural and Related Services,132A,Engie Power Limited,29/05/2024,PE159293,476.10,0.00,"1610004890636 Fishermans Walk, Lord St, Fleetwood, FY7 6DU01/04/24-30/04/241110.70kwh",Electricity
Wyre Council,http://opendatacommunities.org/doc/district-council/wyre,30/05/2024,People and Places,Cultural and Related Services,132A,Engie Power Limited,29/05/2024,PE159276,266.49,0.00,1610004846390 Pump House Model Yacht Pond Laidleys Walk Fleetwood FY7 7JL01/04/24-30/04/24547.40kwh,Electricity
Wyre Council,http://opendatacommunities.org/doc/district-council/wyre,30/05/2024,People and Places,Cultural and Related Services,132A,Engie Power Limited,29/05/2024,PE159288,475.69,0.00,"1610004897400 Ladies Bowls Pavilion, Memorial Park, Fleetwood, FY7 7AE01/04/24-30/04/241109.60kwh",Electricity
Wyre Council,http://opendatacommunities.org/doc/district-council/wyre,30/05/2024,People and Places,Cultural and Related Services,132A,Engie Power Limited,29/05/2024,PE159287,299.99,0.00,"1610004897394 Bowls House, Memorial Park, Fleetwood, FY7 7AE01/04/24-30/04/24641.30kwh",Electricity
Wyre Council,http://opendatacommunities.org/doc/district-council/wyre,30/05/2024,People and Places,Cultural and Related Services,132A,Engie Power Limited,29/05/2024,PE159294,272.56,0.00,"1610004897385 Tennis Pavillion, Memorial Park, Fleetwood, FY7 7AE01/04/24-30/04/24617.70kwh",Electricity
Wyre Council,http://opendatacommunities.org/doc/district-council/wyre,30/05/2024,People and Places,Cultural and Related Services,132A,Engie Power Limited,29/05/2024,PE159282,142.99,0.00,"1610004775074 The Windmill, Fleetwood Rd North, Thornton Cleveleys, FY5 4BP01/04/24-30/04/24201.30kwh",Electricity
Wyre Council,http://opendatacommunities.org/doc/district-council/wyre,30/05/2024,People and Places,Cultural and Related Services,132A,Engie Power Limited,29/05/2024,PE159278,461.55,0.00,"1610004775083 The Windmill, Fleetwood Road North, Thornton Cleveleys, FY5 4BP01/04/24-30/04/241438.70kwh",Electricity
Wyre Council,http://opendatacommunities.org/doc/district-council/wyre,30/05/2024,People and Places,Cultural and Related Services,132A,Engie Power Limited,29/05/2024,PE159277,71.37,0.00,"1610004846502 Valve House, Marine Lake, Laidleys Walk, Fleetwood, FY7 7JL01/04/24-30/04/240.60kwh",Electricity
Wyre Council,http://opendatacommunities.org/doc/district-council/wyre,30/05/2024,People and Places,Cultural and Related Services,132A,Engie Power Limited,29/05/2024,PE159274,475.69,0.00,"1610004863623 Pitch & Putt Kiosk, Carr Rd, The Esplanade, Fleetwood, FY7 6QE01/04/24-30/04/241109.60kwh",Electricity
Wyre Council,http://opendatacommunities.org/doc/district-council/wyre,30/05/2024,People and Places,Cultural and Related Services,132A,Engie Power Limited,29/05/2024,PE159273,514.60,0.00,"1610004863605 Central Toilets Kiosk, The Esplanade, Fleetwood, FY7 7BE01/04/24-30/04/241216.30kwh",Electricity
Wyre Council,http://opendatacommunities.org/doc/district-council/wyre,30/05/2024,People and Places,Cultural and Related Services,132A,Engie Power Limited,29/05/2024,PE159272,234.62,0.00,"1610004846558 Pump Station, The Esplanade, Fleetwood, FY7 6HF01/04/24-30/04/24458.10kwh",Electricity
Wyre Council,http://opendatacommunities.org/doc/district-council/wyre,30/05/2024,People and Places,Cultural and Related Services,132A,Engie Power Limited,29/05/2024,PE159289,101.32,0.00,"1610004932427 King Georges Field, Boradwater, Fleetwood Road, Fleetwood, Lancashire, FY7 8BD01/04/24-30/04/24114.40kwh",Electricity
Wyre Council,http://opendatacommunities.org/doc/district-council/wyre,30/05/2024,People and Places,Environmental Services,132B,Engie Power Limited,29/05/2024,PE159279,600.96,0.00,"1610004828771 Council Depot, Chatsworth Day Centre, Chatsworth Ave, Fleetwood, FY7 8AP01/04/24-30/04/241453.20kwh",Electricity
Wyre Council,http://opendatacommunities.org/doc/district-council/wyre,30/05/2024,People and Places,Cultural and Related Services,132A,Engie Power Limited,29/05/2024,PE159295,392.37,0.00,"1610004867432 Mount Hotel, Mount Rd, Fleetwood, FY7 6RA01/04/24-30/04/24900.20kwh",Electricity
Wyre Council,http://opendatacommunities.org/doc/district-council/wyre,30/05/2024,Resources,Support Services,135B,The Lunchbox Ltd,14/05/2024,RS159320,13.00,0.00,Two extra people to be added to the existing purchase order RES001486 making the buffet for 12 not 10.  To be delivered today at 11:30am as per original PO.,Event Hospitality
Wyre Council,http://opendatacommunities.org/doc/district-council/wyre,30/05/2024,Resources,Support Services,135B,The Lunchbox Ltd,10/05/2024,RS159175,65.00,0.00,"Buffet lunch for 10 people at 6.50 per head, as discussed, to be delivered by 11:30am on Friday 10 May 2024.",Event Hospitality
Wyre Council,http://opendatacommunities.org/doc/district-council/wyre,30/05/2024,Resources,Cultural and Related Services,132A,Blackpool Council,28/05/2024,RS159646,798.68,0.00,Cost for stand at Great Yorkshire Show 2024 and accommodation for Hayley McGuffie and Alex Holt,Exhibitions and Events
Wyre Council,http://opendatacommunities.org/doc/district-council/wyre,30/05/2024,Resources,Cultural and Related Services,132A,Preston City Council,20/05/2024,RS159416,421.68,0.00,Wanderland promotional printing100 x A4 1pp50 x A3 1pp20 x A2 1pp5 x A1 1pp13 x bus stops2 x noticeboards,Exhibitions and Events
Wyre Council,http://opendatacommunities.org/doc/district-council/wyre,30/05/2024,Resources,Cultural and Related Services,132A,Visual Print and Design Ltd,01/05/2024,RS158937,130.00,0.00,Wanderland promotional printing 5000 x A5 2pp (130),Exhibitions and Events
Wyre Council,http://opendatacommunities.org/doc/district-council/wyre,30/05/2024,Resources,Cultural and Related Services,132A,Visual Print and Design Ltd,01/05/2024,RS158937,100.00,0.00,Wanderland promotional 2 x pull up banner (100),Exhibitions and Events
Wyre Council,http://opendatacommunities.org/doc/district-council/wyre,30/05/2024,Resources,Corporate and Democratic Core,131A,KPMG LLP,20/05/2024,RS159430,35645.75,0.00,23/24 Audit Fees,External Audit Fees
Wyre Council,http://opendatacommunities.org/doc/district-council/wyre,30/05/2024,People and Places,Cultural and Related Services,132A,Play Inclusion Project,03/05/2024,PE159014,939.66,0.00,Play Inclusion Project Saturday Club at YMCA for SEND,External Coaching
Wyre Council,http://opendatacommunities.org/doc/district-council/wyre,30/05/2024,Resources,Cultural and Related Services,132A,EW SSC Limited t/a SportsCool Fylde,07/05/2024,RS159061,600.00,0.00,Sportscool SEND Archery Chaucer School,External Coaching
Wyre Council,http://opendatacommunities.org/doc/district-council/wyre,30/05/2024,People and Places,Cultural and Related Services,132A,Amazon Business,02/05/2024,PE158877,5.99,0.00,Saline solution - eye wash,First Aid Supplies
Wyre Council,http://opendatacommunities.org/doc/district-council/wyre,30/05/2024,People and Places,Support Services,135B,Allstar Business Solutions LTD,08/05/2024,PE158605,182.63,0.00,Fuel to 12/04,Fuel
Wyre Council,http://opendatacommunities.org/doc/district-council/wyre,30/05/2024,People and Places,Support Services,135B,Allstar Business Solutions LTD,08/05/2024,PE158605,58.73,0.00,Fuel to 12/04,Fuel
Wyre Council,http://opendatacommunities.org/doc/district-council/wyre,30/05/2024,People and Places,Support Services,135B,Allstar Business Solutions LTD,09/05/2024,PE158986,399.84,0.00,Fuel to 29/04/24,Fuel
Wyre Council,http://opendatacommunities.org/doc/district-council/wyre,30/05/2024,People and Places,Support Services,135B,Allstar Business Solutions LTD,09/05/2024,PE158986,262.94,0.00,Fuel to 29/04/24,Fuel
Wyre Council,http://opendatacommunities.org/doc/district-council/wyre,30/05/2024,People and Places,Planning and Development Servs,132C,Engie Gas Limited,28/05/2024,PE159168,325.63,0.00,"9322410204 Copse Rd Depot,  Fleetwood, FY7 6RP 01/04/24 to 30/04/24 (1077.2kWh)",Gas
Wyre Council,http://opendatacommunities.org/doc/district-council/wyre,30/05/2024,People and Places,Planning and Development Servs,132C,Engie Gas Limited,28/05/2024,PE159171,3553.49,0.00,"49097909 Fleetwood Market,  Adelaide St, Fleetwood, FY7 6AB 01/04/24 to 30/04/24 (39193.7kWh)",Gas
Wyre Council,http://opendatacommunities.org/doc/district-council/wyre,30/05/2024,People and Places,Support Services,135B,Engie Gas Limited,28/05/2024,PE159170,6836.49,0.00,"20867010 Civic Centre, Breck Rd,  Poulton le Fylde, FY6 7PU 01/04/24 to 30/04/24 (78061.9kWh)",Gas
Wyre Council,http://opendatacommunities.org/doc/district-council/wyre,30/05/2024,People and Places,Cultural and Related Services,132A,Engie Gas Limited,24/05/2024,PE159546,-1069.09,0.00,"73570403 Thornton Little Theatre, Victoria Rd E, Thornton Cleveleys, FY5 3SZ 01/04/24 to 30/04/24 (9780.4kWh)",Gas
Wyre Council,http://opendatacommunities.org/doc/district-council/wyre,30/05/2024,People and Places,Cultural and Related Services,132A,Engie Gas Limited,24/05/2024,PE159169,1069.09,0.00,"73570403 Thornton Little  Theatre, Victoria Rd E, Thornton Cleveleys, FY5 3SZ 01/04/24 to 30/04/24  (9780.4kWh)",Gas
Wyre Council,http://opendatacommunities.org/doc/district-council/wyre,30/05/2024,People and Places,Cultural and Related Services,132A,Npower Commercial Gas Ltd,24/05/2024,PE159224,904.77,0.00,"9159039903 Garstang Swimming Club, Oak Rd, PR3 1HT 01/04/24 to 30/04/24 (11750.5 kWh)",Gas
Wyre Council,http://opendatacommunities.org/doc/district-council/wyre,30/05/2024,People and Places,Cultural and Related Services,132A,Npower Commercial Gas Ltd,24/05/2024,PE159223,10937.00,0.00,"20411606 Fleetwood YMCA, The Esplanade, FY7 6HF 01/04/24 to 30/04/24 (163205.9 kWh)",Gas
Wyre Council,http://opendatacommunities.org/doc/district-council/wyre,30/05/2024,People and Places,Cultural and Related Services,132A,Npower Commercial Gas Ltd,24/05/2024,PE159237,8722.55,0.00,"50171305 Thornton Cleveleys Sports Centre, Victoria Rd E, FY5 3SX 01/04/24 to 30/04/24 134064.1 kWh)",Gas
Wyre Council,http://opendatacommunities.org/doc/district-council/wyre,30/05/2024,People and Places,Cultural and Related Services,132A,Npower Commercial Gas Ltd,24/05/2024,PE159222,397.65,0.00,"56039908 Garstang Sports Centre, 34 Windsor Rd, Garstang, PR3 1ED 01/04/24 to 30/04/24 (4526 kWh)",Gas
Wyre Council,http://opendatacommunities.org/doc/district-council/wyre,30/05/2024,Resources,Support Services,135B,Key Engineering & Hygiene Supplies LTD,07/05/2024,RS159075,21.30,0.00,3 x XL Blue Vest as per Q22815,Health and Safety General
Wyre Council,http://opendatacommunities.org/doc/district-council/wyre,30/05/2024,Resources,Support Services,135B,Konica Minolta Business Solutions UK LTD,30/05/2024,RS159703,1467.91,0.00,Copy and print charges: Civic Centre  27/02/2024-26/02/2025  1825856503 1825856487 1825843155 1825856493 1825856455 1825856489 1825856490 1825843157 1825856492 1825863267 1825856491 1825856452,Hire of Tools or Equipment
Wyre Council,http://opendatacommunities.org/doc/district-council/wyre,30/05/2024,Resources,Support Services,135B,Konica Minolta Business Solutions UK LTD,16/05/2024,RS159378,309.69,0.00,Bizhum C450i - 1841954123 16/08/2024 - 15/11/2024 16/11/2024 - 15/02/2025 16/02/2025 - 15/05/2025,Hire of Tools or Equipment
Wyre Council,http://opendatacommunities.org/doc/district-council/wyre,30/05/2024,Resources,Support Services,135B,Konica Minolta Business Solutions UK LTD,31/05/2024,RS159408,100.48,0.00,Copy and print charges - Bizhub C450i 16/2/2024-15/02/2025 1841954123,Hire of Tools or Equipment
Wyre Council,http://opendatacommunities.org/doc/district-council/wyre,30/05/2024,People and Places,Central Services to the Public,131C,S J HULL ELECTRICAL CONTRACTORS LTD,13/05/2024,PE159154,2000.00,0.00,"checking , maintenance , installation of all electrical equipment used in the polling cabins .Attend cabins where necessary on polling day between 6.00am and 10.0pm also attend afterwards to disconnect and restore cabins to original condition .",Hire of Tools or Equipment
Wyre Council,http://opendatacommunities.org/doc/district-council/wyre,30/05/2024,People and Places,Central Services to the Public,131C,S J HULL ELECTRICAL CONTRACTORS LTD,13/05/2024,PE159154,400.00,0.00,"checking , maintenance , installation of all electrical equipment used in the polling cabins .Attend cabins where necessary on polling day between 6.00am and 10.0pm also attend afterwards to disconnect and restore cabins to original condition .VAT re: PCC",Hire of Tools or Equipment
Wyre Council,http://opendatacommunities.org/doc/district-council/wyre,30/05/2024,Resources,Central Services to the Public,131C,Fylde Coast Womens Aid,14/05/2024,RS159308,5000.00,0.00,Household Support Funding - Round 5,Household Support Fund
Wyre Council,http://opendatacommunities.org/doc/district-council/wyre,30/05/2024,Resources,Central Services to the Public,131C,Christ Church Hall,21/05/2024,RS159538,5000.00,0.00,Household Support Funding - Round 5,Household Support Fund
Wyre Council,http://opendatacommunities.org/doc/district-council/wyre,30/05/2024,Resources,Central Services to the Public,131C,West View Community Association,14/05/2024,RS159304,5000.00,0.00,Household Support Funding - Round 5,Household Support Fund
Wyre Council,http://opendatacommunities.org/doc/district-council/wyre,30/05/2024,Resources,Central Services to the Public,131C,HELPPKE CIC,14/05/2024,RS159305,5000.00,0.00,Household Support Funding - Round 5,Household Support Fund
Wyre Council,http://opendatacommunities.org/doc/district-council/wyre,30/05/2024,Resources,Central Services to the Public,131C,HOME-START BLACKPOOL FYLDE & WYRE,21/05/2024,RS159539,5000.00,0.00,Household Support Funding - Round 5,Household Support Fund
Wyre Council,http://opendatacommunities.org/doc/district-council/wyre,30/05/2024,Resources,Central Services to the Public,131C,Huggg Limited,15/05/2024,RS159362,144600.00,0.00,Payment to Huggg for vouchers:CTS Claims with DepsCTS Claims with Pensioners iro of DLA/PIP SMI AccountsApplications,Household Support Fund
Wyre Council,http://opendatacommunities.org/doc/district-council/wyre,30/05/2024,Resources,Central Services to the Public,131C,Faith In The Community,21/05/2024,RS159565,5000.00,0.00,Household Support Funding - Round 5,Household Support Fund
Wyre Council,http://opendatacommunities.org/doc/district-council/wyre,30/05/2024,Resources,Central Services to the Public,131C,St Thomas Garstang Foodbank,14/05/2024,RS159303,5000.00,0.00,Household Support Funding - Round 5,Household Support Fund
Wyre Council,http://opendatacommunities.org/doc/district-council/wyre,30/05/2024,Resources,Central Services to the Public,131C,Christian Care and Share,21/05/2024,RS159537,5000.00,0.00,Funding from Household Support Fund - Round 5,Household Support Fund
Wyre Council,http://opendatacommunities.org/doc/district-council/wyre,30/05/2024,Resources,Central Services to the Public,131C,Hope Community Care Hub,29/05/2024,RS159722,2000.00,0.00,HSF 5 payment,Household Support Fund
Wyre Council,http://opendatacommunities.org/doc/district-council/wyre,30/05/2024,People and Places,Environmental Services,132B,Poulton Pets LTD,13/05/2024,PE159214,1539.00,0.00,Provision of stray dog kennelling service 2024/25,Impounded Dogs Costs
Wyre Council,http://opendatacommunities.org/doc/district-council/wyre,30/05/2024,Resources,Support Services,135B,Daisy Communications LTD,07/05/2024,RS158244,0.05,0.00,Call Charges up to 31/03/2024,Internet and Telephone Charges
Wyre Council,http://opendatacommunities.org/doc/district-council/wyre,30/05/2024,Resources,Support Services,135B,Daisy Communications LTD,07/05/2024,RS158244,80.86,0.00,Service Charges 01/04/24 to 30/04/24,Internet and Telephone Charges
Wyre Council,http://opendatacommunities.org/doc/district-council/wyre,30/05/2024,Resources,Support Services,135B,Daisy Communications LTD,07/05/2024,RS158987,4.95,0.00,Non DD payer,Internet and Telephone Charges
Wyre Council,http://opendatacommunities.org/doc/district-council/wyre,30/05/2024,Resources,Support Services,135B,Daisy Communications LTD,07/05/2024,RS158987,80.93,0.00,Service Charges 01/05/24 to 31/05/24,Internet and Telephone Charges
Wyre Council,http://opendatacommunities.org/doc/district-council/wyre,30/05/2024,Resources,Cultural and Related Services,132A,Daisy Communications LTD,07/05/2024,RS158244,13.87,0.00,Service Charges 01/04/24 to 30/04/24,Internet and Telephone Charges
Wyre Council,http://opendatacommunities.org/doc/district-council/wyre,30/05/2024,Resources,Cultural and Related Services,132A,Daisy Communications LTD,07/05/2024,RS158987,13.87,0.00,Service Charges 01/05/24 to 31/05/24,Internet and Telephone Charges
Wyre Council,http://opendatacommunities.org/doc/district-council/wyre,30/05/2024,Resources,Cultural and Related Services,132A,Daisy Communications LTD,07/05/2024,RS158987,33.25,0.00,Service Charges 01/05/24 to 31/05/24,Internet and Telephone Charges
Wyre Council,http://opendatacommunities.org/doc/district-council/wyre,30/05/2024,Resources,Cultural and Related Services,132A,Daisy Communications LTD,07/05/2024,RS158244,33.25,0.00,Service Charges 01/04/24 to 30/04/24,Internet and Telephone Charges
Wyre Council,http://opendatacommunities.org/doc/district-council/wyre,30/05/2024,Resources,Corporate and Democratic Core,131A,Daisy Communications LTD,07/05/2024,RS158987,13.87,0.00,Service Charges 01/05/24 to 31/05/24,Internet and Telephone Charges
Wyre Council,http://opendatacommunities.org/doc/district-council/wyre,30/05/2024,Resources,Corporate and Democratic Core,131A,Daisy Communications LTD,07/05/2024,RS158244,13.87,0.00,Service Charges 01/04/24 to 30/04/24,Internet and Telephone Charges
Wyre Council,http://opendatacommunities.org/doc/district-council/wyre,30/05/2024,Resources,Support Services,135B,Daisy Communications LTD,07/05/2024,RS158987,19.39,0.00,Service Charges 01/05/24 to 31/05/24,Internet and Telephone Charges
Wyre Council,http://opendatacommunities.org/doc/district-council/wyre,30/05/2024,Resources,Support Services,135B,Daisy Communications LTD,07/05/2024,RS158244,19.39,0.00,Service Charges 01/04/24 to 30/04/24,Internet and Telephone Charges
Wyre Council,http://opendatacommunities.org/doc/district-council/wyre,30/05/2024,Resources,Support Services,135B,Vodafone LTD,13/05/2024,RS158190,404.49,0.00,Dedicated Access Bearer - Apr 24 - Jun 24,Internet and Telephone Charges
Wyre Council,http://opendatacommunities.org/doc/district-council/wyre,30/05/2024,Resources,Support Services,135B,Vodafone LTD,13/05/2024,RS158190,199.98,0.00,PSN-Direct Network Service Provider -,Internet and Telephone Charges
Wyre Council,http://opendatacommunities.org/doc/district-council/wyre,30/05/2024,People and Places,Cultural and Related Services,132A,Northern Citrus Products LTD,01/05/2024,PE158940,417.10,0.00,Kiosk stock,Kiosk stock
Wyre Council,http://opendatacommunities.org/doc/district-council/wyre,30/05/2024,People and Places,Cultural and Related Services,132A,Northern Citrus Products LTD,01/05/2024,PE158939,51.20,0.00,Crisps,Kiosk stock
Wyre Council,http://opendatacommunities.org/doc/district-council/wyre,30/05/2024,People and Places,Cultural and Related Services,132A,Amazon Business,21/05/2024,PE159373,103.45,0.00,Nescafe coffee x 5,Kiosk stock
Wyre Council,http://opendatacommunities.org/doc/district-council/wyre,30/05/2024,Resources,Central Services to the Public,131C,Lancashire County Council,30/05/2024,RS159798,714.00,0.00,Wyre Council Con29 Searches for April 2024 - 34 @ 21.00 each,L.C.C. Search Fees
Wyre Council,http://opendatacommunities.org/doc/district-council/wyre,30/05/2024,Resources,Central Services to the Public,131C,Lancashire County Council,30/05/2024,RS159797,493.00,0.00,Wyre Council Con29 Searches for March 2024  29 @ 17.00 each,L.C.C. Search Fees
Wyre Council,http://opendatacommunities.org/doc/district-council/wyre,30/05/2024,Resources,Planning and Development Servs,132C,Kings Chambers,23/05/2024,RS159447,-1080.00,0.00,Legal advice Helmsdeep enforcement 23/00050/COU - Phil Robson,Legal Fees
Wyre Council,http://opendatacommunities.org/doc/district-council/wyre,30/05/2024,People and Places,Highways,133B,Lancashire County Council,29/05/2024,PE159238,14388.00,0.00,Wyre Council Street Lighting Maintenance 2024/5 Undertake maintenance of 435 lighting units as required.,Maint. of Unadopted Assets - Engineers
Wyre Council,http://opendatacommunities.org/doc/district-council/wyre,30/05/2024,People and Places,Highways,133B,Lancashire County Council,16/05/2024,PE159398,12420.00,0.00,Carry out maintenance of Wyre Council unadopted lighting - 414 units at 30/annum,Maint. of Unadopted Assets - Engineers
Wyre Council,http://opendatacommunities.org/doc/district-council/wyre,30/05/2024,People and Places,Planning and Development Servs,132C,Buyer Direct LTD,13/05/2024,PE158875,1809.16,0.00,2 6 mtr gazzebos and two 3 mtr gazzebos,Maintenance of Tools or Equipment
Wyre Council,http://opendatacommunities.org/doc/district-council/wyre,30/05/2024,People and Places,Cultural and Related Services,132A,Steve Tuckey Cycles,13/05/2024,PE159133,1437.50,0.00,Social Rides Bike Maintenance,Maintenance of Tools or Equipment
Wyre Council,http://opendatacommunities.org/doc/district-council/wyre,30/05/2024,People and Places,Planning and Development Servs,132C,Amazon Business,13/05/2024,PE158996,39.75,0.00,3 BIRD KITES BIRD SCARERS,Maintenance of Tools or Equipment
Wyre Council,http://opendatacommunities.org/doc/district-council/wyre,30/05/2024,People and Places,Planning and Development Servs,132C,Amazon Business,13/05/2024,PE158696,107.49,0.00,Patio awning,Maintenance of Tools or Equipment
Wyre Council,http://opendatacommunities.org/doc/district-council/wyre,30/05/2024,People and Places,Parking Services,133F,FLOWBIRD SMART CITY UK LTD,29/05/2024,PE159634,5663.20,0.00,Renew maintenance contract CUK21-994 Wyre Council for period 1 April 2024 - 30 September 2024,Maintenance of Tools or Equipment
Wyre Council,http://opendatacommunities.org/doc/district-council/wyre,30/05/2024,People and Places,Highways,133B,Dr Tree Surgeons,13/05/2024,PE159210,200.00,0.00,Quotation 989 (Emergency tree work) Civic Centre frontage Emergency tree works:The removal of hanging dead branches and loose dead ivy from oneMaple tree at the civic centre  200.00 Total Net Amount: 200.00VAT @ 20%: 40.00Quote Total: 2,Maintenance of Trees and Shrubs
Wyre Council,http://opendatacommunities.org/doc/district-council/wyre,30/05/2024,People and Places,Highways,133B,T-Fer Tree Surgeons,03/05/2024,PE159008,260.00,0.00,"Quote 76 27/04/24Mayfield Avenue , Thornton , Failed Hawthorn � cut and remove 120Quote 77 27/04/24Pheasants Wood Drive , Thornton Coppice first row of willows 140Total net amount 260VAT @20% 0Quote total 260",Maintenance of Trees and Shrubs
Wyre Council,http://opendatacommunities.org/doc/district-council/wyre,30/05/2024,People and Places,Highways,133B,T-Fer Tree Surgeons,29/05/2024,PE159729,420.00,0.00,"Quote 71 - Park Road, Poulton le FyldeX13 lime, remove epicormic growth from base and stem. 420Total net amount 420VAT @20% 0Quote total 420",Maintenance of Trees and Shrubs
Wyre Council,http://opendatacommunities.org/doc/district-council/wyre,30/05/2024,People and Places,Highways,133B,T-Fer Tree Surgeons,20/05/2024,PE159462,480.00,0.00,"10/05/24 Quote 79 - Civic Centre Frontage x2 lime , x2 ash lift and deadwood. Total net amount 480Vat at 20% 0Quote total 480",Maintenance of Trees and Shrubs
Wyre Council,http://opendatacommunities.org/doc/district-council/wyre,30/05/2024,People and Places,Highways,133B,T-Fer Tree Surgeons,20/05/2024,PE159463,180.00,0.00,"Quote 86 10/05/24 Garstang Road East, Poulton   Dead Hawthorn , fell and remove 180 Total net amount 180VAT @20% 0Quote total 180",Maintenance of Trees and Shrubs
Wyre Council,http://opendatacommunities.org/doc/district-council/wyre,30/05/2024,People and Places,Support Services,135B,Andrew Signs LTD,24/05/2024,PE159667,632.00,0.00,"Supply 20 signs as your quotation QU-0435 for dog ban order between 1 May - 30 Sep as original artwork Size 600mm x 500mm Delivery to Wyre Council, Copse Road Depot, Copse Road, Fleetwood, FY7 6RP",Materials and Consumables
Wyre Council,http://opendatacommunities.org/doc/district-council/wyre,30/05/2024,People and Places,Support Services,135B,STARK Building Materials UK Ltd T/A Jewson,09/05/2024,PE159140,958.52,0.00,to supply  and deliver to Copse Road Wyre Council Depot   FOA  Roger Brocklebank as per quote 29/04/2024 from Simon @jewson Blackpool 26 sheets 8x4 18mm WBP cut to size  35.50 each   923.004 no 2.4mtr 9x2 3.70mtr      35.52,Materials and Consumables
Wyre Council,http://opendatacommunities.org/doc/district-council/wyre,30/05/2024,People and Places,Support Services,135B,EK Motors Factors LTD,30/05/2024,PE159778,8.75,0.00,Parts,Materials and Consumables
Wyre Council,http://opendatacommunities.org/doc/district-council/wyre,30/05/2024,People and Places,Support Services,135B,EK Motors Factors LTD,30/05/2024,PE159780,268.00,0.00,Parts,Materials and Consumables
Wyre Council,http://opendatacommunities.org/doc/district-council/wyre,30/05/2024,People and Places,Support Services,135B,EK Motors Factors LTD,30/05/2024,PE159779,59.63,0.00,Parts,Materials and Consumables
Wyre Council,http://opendatacommunities.org/doc/district-council/wyre,30/05/2024,People and Places,Support Services,135B,EK Motors Factors LTD,30/05/2024,PE159776,13.15,0.00,Parts,Materials and Consumables
Wyre Council,http://opendatacommunities.org/doc/district-council/wyre,30/05/2024,People and Places,Support Services,135B,EK Motors Factors LTD,30/05/2024,PE159777,56.66,0.00,Parts,Materials and Consumables
Wyre Council,http://opendatacommunities.org/doc/district-council/wyre,30/05/2024,People and Places,Support Services,135B,EK Motors Factors LTD,30/05/2024,PE159779,8.75,0.00,Parts,Materials and Consumables
Wyre Council,http://opendatacommunities.org/doc/district-council/wyre,30/05/2024,People and Places,Support Services,135B,MC & MA Stewart (Haulage) LTD,21/05/2024,PE159552,1700.00,0.00,"Supply 40m3 of Ornamental bark @ 42.50 per cubic metreTo be delivered to the Civic Centre, Breck Road, Poulton-le-Fylde, FY6 7PUDelivery first week of March 2024, contact on site will be Mark Walsh on 07951632330",Materials and Consumables
Wyre Council,http://opendatacommunities.org/doc/district-council/wyre,30/05/2024,People and Places,Support Services,135B,MC & MA Stewart (Haulage) LTD,21/05/2024,PE159553,3560.00,0.00,"Supply and deliver Two loads of 40 cubic metres of 0-10mm composted bark 44.50 per cubic metre @ 44.50 per cubic metre Delivery to Memorial Park, Fleetwood, week 11-15 March 2024Please contact Mark Stanley or Steve Hesk prior to delivery 075",Materials and Consumables
Wyre Council,http://opendatacommunities.org/doc/district-council/wyre,30/05/2024,People and Places,Environmental Services,132B,Newauto Limited T/A Mogo,03/05/2024,PE158990,148.00,0.00,WP1 Windscreen pouch 160 x 130 QTY 100,Materials and Consumables
Wyre Council,http://opendatacommunities.org/doc/district-council/wyre,30/05/2024,People and Places,Environmental Services,132B,Newauto Limited T/A Mogo,03/05/2024,PE158990,150.00,0.00,SSP SS-C-3 internal pouch single sided 152 x 119 qty 150,Materials and Consumables
Wyre Council,http://opendatacommunities.org/doc/district-council/wyre,30/05/2024,People and Places,Environmental Services,132B,Newauto Limited T/A Mogo,03/05/2024,PE158990,14.90,0.00,carriage,Materials and Consumables
Wyre Council,http://opendatacommunities.org/doc/district-council/wyre,30/05/2024,People and Places,Environmental Services,132B,Newauto Limited T/A Mogo,31/05/2024,PE159789,58.00,0.00,IP-3-D  Internal plate to fit self seal pouch- A4 Tear out plate PRIVATE HIRE,Materials and Consumables
Wyre Council,http://opendatacommunities.org/doc/district-council/wyre,30/05/2024,People and Places,Environmental Services,132B,Newauto Limited T/A Mogo,31/05/2024,PE159789,196.00,0.00,CP-STX ( 240X 125) CLEAR PLATE,Materials and Consumables
Wyre Council,http://opendatacommunities.org/doc/district-council/wyre,30/05/2024,People and Places,Environmental Services,132B,Newauto Limited T/A Mogo,31/05/2024,PE159789,196.00,0.00,CP-TX CLEAR PLATE ( 240 X 176 ),Materials and Consumables
Wyre Council,http://opendatacommunities.org/doc/district-council/wyre,30/05/2024,People and Places,Environmental Services,132B,Newauto Limited T/A Mogo,31/05/2024,PE159789,58.00,0.00,IP-3-D INTERNAL PLATE TO FIT SELF SEAL POUCH-A4 TERA OUT HACKNEY CARRIAGE,Materials and Consumables
Wyre Council,http://opendatacommunities.org/doc/district-council/wyre,30/05/2024,People and Places,Environmental Services,132B,Newauto Limited T/A Mogo,31/05/2024,PE159789,14.90,0.00,carriage,Materials and Consumables
Wyre Council,http://opendatacommunities.org/doc/district-council/wyre,30/05/2024,People and Places,Cultural and Related Services,132A,Buyer Direct LTD,03/05/2024,PE158998,1334.93,0.00,1 gazebo 3 x 6 coast and countryside,Materials and Consumables
Wyre Council,http://opendatacommunities.org/doc/district-council/wyre,30/05/2024,People and Places,Support Services,135B,E N COXHEAD LTD,24/05/2024,PE159665,2601.00,0.00,"Supply and deliver Summer bedding for 20244130 Begonia non stop red     2173.503600 Marigold French yellow  427.502,601 total including deliveryDelivery to Wyre Council, Copse Road depot, Copse Road, Fleetwood, Lancashire, FY7 6RPw/c",Materials and Consumables
Wyre Council,http://opendatacommunities.org/doc/district-council/wyre,30/05/2024,People and Places,Environmental Services,132B,Aitch Tools & Fasteners LTD,07/05/2024,PE159078,700.50,0.00,Items purchased by Bob Greaves for Works - Apr 2024,Materials and Consumables
Wyre Council,http://opendatacommunities.org/doc/district-council/wyre,30/05/2024,People and Places,Support Services,135B,Aitch Tools & Fasteners LTD,07/05/2024,PE159078,244.72,0.00,Items purchased by Bob Greaves for Works - Apr 2024,Materials and Consumables
Wyre Council,http://opendatacommunities.org/doc/district-council/wyre,30/05/2024,People and Places,Environmental Services,132B,Aitch Tools & Fasteners LTD,30/05/2024,PE159785,644.56,0.00,Materials,Materials and Consumables
Wyre Council,http://opendatacommunities.org/doc/district-council/wyre,30/05/2024,People and Places,Support Services,135B,Aitch Tools & Fasteners LTD,30/05/2024,PE159785,107.76,0.00,Materials,Materials and Consumables
Wyre Council,http://opendatacommunities.org/doc/district-council/wyre,30/05/2024,People and Places,Support Services,135B,Aitch Tools & Fasteners LTD,30/05/2024,PE159785,382.00,0.00,Materials,Materials and Consumables
Wyre Council,http://opendatacommunities.org/doc/district-council/wyre,30/05/2024,Resources,Housing General Fund,134A,HUWS GRAY LTD,10/05/2024,RS159142,293.68,0.00,Part payment of invoice No:IG890474,Materials and Consumables
Wyre Council,http://opendatacommunities.org/doc/district-council/wyre,30/05/2024,Resources,Housing General Fund,134A,HUWS GRAY LTD,09/05/2024,RS159153,51.75,0.00,Invoice IH158641,Materials and Consumables
Wyre Council,http://opendatacommunities.org/doc/district-council/wyre,30/05/2024,People and Places,Support Services,135B,HUWS GRAY LTD,09/05/2024,PE158905,86.41,0.00,Materials  Keith urwin,Materials and Consumables
Wyre Council,http://opendatacommunities.org/doc/district-council/wyre,30/05/2024,People and Places,Environmental Services,132B,HUWS GRAY LTD,28/05/2024,PE159562,46.79,0.00,concreting sand,Materials and Consumables
Wyre Council,http://opendatacommunities.org/doc/district-council/wyre,30/05/2024,People and Places,Cultural and Related Services,132A,HUWS GRAY LTD,07/05/2024,PE159013,187.50,0.00,25 bags post crete,Materials and Consumables
Wyre Council,http://opendatacommunities.org/doc/district-council/wyre,30/05/2024,People and Places,Cultural and Related Services,132A,HUWS GRAY LTD,01/05/2024,PE158906,311.94,0.00,3 ton top soil,Materials and Consumables
Wyre Council,http://opendatacommunities.org/doc/district-council/wyre,30/05/2024,People and Places,Cultural and Related Services,132A,HUWS GRAY LTD,22/05/2024,PE159563,29.88,0.00,6 bags GOLDEN GRAVEL 20MM pond,Materials and Consumables
Wyre Council,http://opendatacommunities.org/doc/district-council/wyre,30/05/2024,People and Places,Support Services,135B,HUWS GRAY LTD,14/05/2024,PE159321,85.19,0.00,"Supply Materials as your quotation H5L20143Contact details Shaun Hague 07837037724Roger Brocklebank 07951632177Delivered to Poulton Cemetery, Garstang Road East, Poulton-le-Fylde, FY6 8JH",Materials and Consumables
Wyre Council,http://opendatacommunities.org/doc/district-council/wyre,30/05/2024,People and Places,Support Services,135B,The Pitchmark Group Ltd,17/05/2024,PE159438,1560.00,0.00,"Supply as your quotation QTE-1091660 (8-1CON/010) Elements 8:1 Concentrate Paint - White - 10L 26.00 1,560.00 20.00% 1,872.00",Materials and Consumables
Wyre Council,http://opendatacommunities.org/doc/district-council/wyre,30/05/2024,People and Places,Support Services,135B,The Pitchmark Group Ltd,17/05/2024,PE159438,60.00,0.00,"Delivery (Full Pallet) 60.00 60.00 20.00% 72.00Delivery to Wyre Council, Copse Road Depot, Copse Road, Fleetwood, Lancashire, FY7 6RP",Materials and Consumables
Wyre Council,http://opendatacommunities.org/doc/district-council/wyre,30/05/2024,People and Places,Environmental Services,132B,Amazon Business,28/05/2024,PE159660,74.04,0.00,Compression latch,Materials and Consumables
Wyre Council,http://opendatacommunities.org/doc/district-council/wyre,30/05/2024,Resources,Support Services,135B,Amazon Business,07/05/2024,RS158884,12.49,0.00,1 x 11 x Assorted Colour Rolls of Flame Retardant Electrical PVC Insulation Tape - 19mm Wide x 20m Long.,Materials and Consumables
Wyre Council,http://opendatacommunities.org/doc/district-council/wyre,30/05/2024,People and Places,Support Services,135B,Amazon Business,08/05/2024,PE159118,11.58,0.00,Rubbish bin Fleetwood Cemetery,Materials and Consumables
Wyre Council,http://opendatacommunities.org/doc/district-council/wyre,30/05/2024,Resources,Support Services,135B,Amazon Business,20/05/2024,RS159442,13.24,0.00,1 x PETECHTOOL RJ45 Pass Through Connector Cat6a Cat6 23AWG Gold Plated 8P8C Ethernet Connector Shielded Plug Ends (50Pack).,Materials and Consumables
Wyre Council,http://opendatacommunities.org/doc/district-council/wyre,30/05/2024,Resources,Support Services,135B,Amazon Business,20/05/2024,RS159440,44.48,0.00,2 x YARONGTECH MIFARE Classic 1k Card 13.56mhz blank rfid cards (pack of 100).,Materials and Consumables
Wyre Council,http://opendatacommunities.org/doc/district-council/wyre,30/05/2024,Resources,Support Services,135B,Amazon Business,20/05/2024,RS159457,38.77,0.00,1 x kwmobile Keystone Module Jacks - 24 Piece CAT6A Shielded Keystone Jack RJ45 Cat 6A Ethernet Module 10 Gbit with Shielded Metal Housing.,Materials and Consumables
Wyre Council,http://opendatacommunities.org/doc/district-council/wyre,30/05/2024,Resources,Support Services,135B,Amazon Business,13/05/2024,RS158885,15.16,0.00,"2 x Lifetree Frosted Window Film Privacy Opaque Glass Film for Glass Windows Static Cling Self-Adhesive Sun Blocker Window Frosting Film for Home Office Bathroom (Frosted, 44.5 * 200cm).",Materials and Consumables
Wyre Council,http://opendatacommunities.org/doc/district-council/wyre,30/05/2024,Resources,Support Services,135B,Amazon Business,13/05/2024,RS158885,8.32,0.00,"1 x McKLords - Isopropanol 99.9% Pure | All Purpose Rubbing Alcohol, Disinfectant, Household Cleaning - Suitable for Electronics, Glass, Paint, Removing Grease and Glue 1 Litre.",Materials and Consumables
Wyre Council,http://opendatacommunities.org/doc/district-council/wyre,30/05/2024,Resources,Support Services,135B,Amazon Business,28/05/2024,RS159672,5.82,0.00,"1 x Treedix 2Pcs Soldering Iron Tip Cleaner, Solder Tip Cleaner, Solder Tip Cleaning Wire with Brass Wool, Solder Cleaner Accessories Cleaning Ball and one Base, Solder Tip kit with Soft Brass Wire.",Materials and Consumables
Wyre Council,http://opendatacommunities.org/doc/district-council/wyre,30/05/2024,People and Places,Corporate and Democratic Core,131A,The Lunchbox Ltd,14/05/2024,PE159227,472.50,0.00,Catering for the Annual Council meeting on 16 May 2024,Mayoral Hospitality
Wyre Council,http://opendatacommunities.org/doc/district-council/wyre,30/05/2024,Resources,Corporate and Democratic Core,131A,The Lunchbox Ltd,07/05/2024,RS159041,60.75,0.00,Catering for the Planning Committee Wednesday 1 May 2024,Members' Hospitality
Wyre Council,http://opendatacommunities.org/doc/district-council/wyre,30/05/2024,Resources,Corporate and Democratic Core,131A,The Lunchbox Ltd,10/05/2024,RS159174,117.00,0.00,Catering for Full Council - Thursday 14 September 2023,Members' Hospitality
Wyre Council,http://opendatacommunities.org/doc/district-council/wyre,30/05/2024,Resources,Housing General Fund,134A,Mobility Care Services,07/05/2024,RS159042,320.00,0.00,REDACT,Minor Adaptations
Wyre Council,http://opendatacommunities.org/doc/district-council/wyre,30/05/2024,Resources,Housing General Fund,134A,Mobility Care Services,07/05/2024,RS159044,320.00,0.00,REDACT,Minor Adaptations
Wyre Council,http://opendatacommunities.org/doc/district-council/wyre,30/05/2024,Resources,Housing General Fund,134A,Mobility Care Services,07/05/2024,RS159043,520.00,0.00,REDACT,Minor Adaptations
Wyre Council,http://opendatacommunities.org/doc/district-council/wyre,30/05/2024,Resources,Housing General Fund,134A,J A DICKENS LIMITED,20/05/2024,RS159451,80.00,0.00,REDACT,Minor Adaptations
Wyre Council,http://opendatacommunities.org/doc/district-council/wyre,30/05/2024,Resources,Housing General Fund,134A,J A DICKENS LIMITED,20/05/2024,RS159451,80.00,0.00,REDACT,Minor Adaptations
Wyre Council,http://opendatacommunities.org/doc/district-council/wyre,30/05/2024,Resources,Housing General Fund,134A,J A DICKENS LIMITED,20/05/2024,RS159452,80.00,0.00,REDACT,Minor Adaptations
Wyre Council,http://opendatacommunities.org/doc/district-council/wyre,30/05/2024,Resources,Housing General Fund,134A,J A DICKENS LIMITED,20/05/2024,RS159452,80.00,0.00,REDACT,Minor Adaptations
Wyre Council,http://opendatacommunities.org/doc/district-council/wyre,30/05/2024,Resources,Housing General Fund,134A,J A DICKENS LIMITED,20/05/2024,RS159453,160.00,0.00,REDACT,Minor Adaptations
Wyre Council,http://opendatacommunities.org/doc/district-council/wyre,30/05/2024,Resources,Housing General Fund,134A,J A DICKENS LIMITED,20/05/2024,RS159453,160.00,0.00,REDACT,Minor Adaptations
Wyre Council,http://opendatacommunities.org/doc/district-council/wyre,30/05/2024,Resources,Housing General Fund,134A,J A DICKENS LIMITED,20/05/2024,RS159454,180.00,0.00,REDACT,Minor Adaptations
Wyre Council,http://opendatacommunities.org/doc/district-council/wyre,30/05/2024,Resources,Housing General Fund,134A,J A DICKENS LIMITED,20/05/2024,RS159454,140.00,0.00,REDACT,Minor Adaptations
Wyre Council,http://opendatacommunities.org/doc/district-council/wyre,30/05/2024,Resources,Housing General Fund,134A,J A DICKENS LIMITED,20/05/2024,RS159455,440.00,0.00,REDACT,Minor Adaptations
Wyre Council,http://opendatacommunities.org/doc/district-council/wyre,30/05/2024,Resources,Housing General Fund,134A,J A DICKENS LIMITED,20/05/2024,RS159455,440.00,0.00,REDACT,Minor Adaptations
Wyre Council,http://opendatacommunities.org/doc/district-council/wyre,30/05/2024,Resources,Housing General Fund,134A,J A DICKENS LIMITED,20/05/2024,RS159450,80.00,0.00,REDACT,Minor Adaptations
Wyre Council,http://opendatacommunities.org/doc/district-council/wyre,30/05/2024,Resources,Housing General Fund,134A,J A DICKENS LIMITED,20/05/2024,RS159450,80.00,0.00,REDACT,Minor Adaptations
Wyre Council,http://opendatacommunities.org/doc/district-council/wyre,30/05/2024,Resources,Housing General Fund,134A,J A DICKENS LIMITED,15/05/2024,RS159359,310.00,0.00,REDACT,Minor Adaptations
Wyre Council,http://opendatacommunities.org/doc/district-council/wyre,30/05/2024,Resources,Housing General Fund,134A,J A DICKENS LIMITED,15/05/2024,RS159360,360.00,0.00,REDACT,Minor Adaptations
Wyre Council,http://opendatacommunities.org/doc/district-council/wyre,30/05/2024,Resources,Housing General Fund,134A,J A DICKENS LIMITED,15/05/2024,RS159360,420.00,0.00,REDACT,Minor Adaptations
Wyre Council,http://opendatacommunities.org/doc/district-council/wyre,30/05/2024,Resources,Housing General Fund,134A,J A DICKENS LIMITED,15/05/2024,RS159354,80.00,0.00,REDACT,Minor Adaptations
Wyre Council,http://opendatacommunities.org/doc/district-council/wyre,30/05/2024,Resources,Housing General Fund,134A,J A DICKENS LIMITED,15/05/2024,RS159354,80.00,0.00,REDACT,Minor Adaptations
Wyre Council,http://opendatacommunities.org/doc/district-council/wyre,30/05/2024,Resources,Housing General Fund,134A,J A DICKENS LIMITED,15/05/2024,RS159355,150.00,0.00,REDACT,Minor Adaptations
Wyre Council,http://opendatacommunities.org/doc/district-council/wyre,30/05/2024,Resources,Housing General Fund,134A,J A DICKENS LIMITED,15/05/2024,RS159355,150.00,0.00,REDACT,Minor Adaptations
Wyre Council,http://opendatacommunities.org/doc/district-council/wyre,30/05/2024,Resources,Housing General Fund,134A,J A DICKENS LIMITED,15/05/2024,RS159356,280.00,0.00,REDACT,Minor Adaptations
Wyre Council,http://opendatacommunities.org/doc/district-council/wyre,30/05/2024,Resources,Housing General Fund,134A,J A DICKENS LIMITED,15/05/2024,RS159356,320.00,0.00,REDACT,Minor Adaptations
Wyre Council,http://opendatacommunities.org/doc/district-council/wyre,30/05/2024,Resources,Housing General Fund,134A,J A DICKENS LIMITED,15/05/2024,RS159357,340.00,0.00,REDACT,Minor Adaptations
Wyre Council,http://opendatacommunities.org/doc/district-council/wyre,30/05/2024,Resources,Housing General Fund,134A,J A DICKENS LIMITED,15/05/2024,RS159357,340.00,0.00,REDACT,Minor Adaptations
Wyre Council,http://opendatacommunities.org/doc/district-council/wyre,30/05/2024,Resources,Housing General Fund,134A,J A DICKENS LIMITED,15/05/2024,RS159353,80.00,0.00,REDACT,Minor Adaptations
Wyre Council,http://opendatacommunities.org/doc/district-council/wyre,30/05/2024,Resources,Housing General Fund,134A,J A DICKENS LIMITED,15/05/2024,RS159353,80.00,0.00,REDACT,Minor Adaptations
Wyre Council,http://opendatacommunities.org/doc/district-council/wyre,30/05/2024,Resources,Housing General Fund,134A,J A DICKENS LIMITED,15/05/2024,RS159359,300.00,0.00,REDACT,Minor Adaptations
Wyre Council,http://opendatacommunities.org/doc/district-council/wyre,30/05/2024,Resources,Environmental Services,132B,VODAFONE LIMITED,22/05/2024,RS159608,0.25,0.00,Monthly Vodafone Service Charges,Mobile Devices
Wyre Council,http://opendatacommunities.org/doc/district-council/wyre,30/05/2024,Resources,Support Services,135B,VODAFONE LIMITED,22/05/2024,RS159608,2.00,0.00,Monthly Vodafone Service Charges,Mobile Devices
Wyre Council,http://opendatacommunities.org/doc/district-council/wyre,30/05/2024,Resources,Support Services,135B,VODAFONE LIMITED,22/05/2024,RS159608,4.75,0.00,Monthly Vodafone Service Charges,Mobile Devices
Wyre Council,http://opendatacommunities.org/doc/district-council/wyre,30/05/2024,Resources,Support Services,135B,VODAFONE LIMITED,22/05/2024,RS159608,0.33,0.00,Monthly Vodafone Usage Charges,Mobile Devices
Wyre Council,http://opendatacommunities.org/doc/district-council/wyre,30/05/2024,Resources,Cultural and Related Services,132A,VODAFONE LIMITED,22/05/2024,RS159608,0.25,0.00,Monthly Vodafone Service Charges,Mobile Devices
Wyre Council,http://opendatacommunities.org/doc/district-council/wyre,30/05/2024,Resources,Support Services,135B,VODAFONE LIMITED,22/05/2024,RS159608,0.25,0.00,Monthly Vodafone Service Charges,Mobile Devices
Wyre Council,http://opendatacommunities.org/doc/district-council/wyre,30/05/2024,Resources,Support Services,135B,VODAFONE LIMITED,22/05/2024,RS159608,0.25,0.00,Monthly Vodafone Service Charges,Mobile Devices
Wyre Council,http://opendatacommunities.org/doc/district-council/wyre,30/05/2024,Resources,Housing General Fund,134A,VODAFONE LIMITED,22/05/2024,RS159608,0.25,0.00,Monthly Vodafone Service Charges,Mobile Devices
Wyre Council,http://opendatacommunities.org/doc/district-council/wyre,30/05/2024,Resources,Housing General Fund,134A,VODAFONE LIMITED,22/05/2024,RS159608,1.44,0.00,Monthly Vodafone Service Charges,Mobile Devices
Wyre Council,http://opendatacommunities.org/doc/district-council/wyre,30/05/2024,Resources,Housing General Fund,134A,VODAFONE LIMITED,22/05/2024,RS159608,0.44,0.00,Monthly Vodafone Service Charges,Mobile Devices
Wyre Council,http://opendatacommunities.org/doc/district-council/wyre,30/05/2024,Resources,Support Services,135B,VODAFONE LIMITED,22/05/2024,RS159608,0.50,0.00,Monthly Vodafone Service Charges,Mobile Devices
Wyre Council,http://opendatacommunities.org/doc/district-council/wyre,30/05/2024,Resources,Support Services,135B,VODAFONE LIMITED,22/05/2024,RS159608,4.64,0.00,Monthly Vodafone Service Charges,Mobile Devices
Wyre Council,http://opendatacommunities.org/doc/district-council/wyre,30/05/2024,Resources,Support Services,135B,VODAFONE LIMITED,22/05/2024,RS159608,0.25,0.00,Monthly Vodafone Service Charges,Mobile Devices
Wyre Council,http://opendatacommunities.org/doc/district-council/wyre,30/05/2024,Resources,Support Services,135B,VODAFONE LIMITED,22/05/2024,RS159608,495.25,0.00,Monthly Vodafone Service Charges,Mobile Devices
Wyre Council,http://opendatacommunities.org/doc/district-council/wyre,30/05/2024,Resources,Support Services,135B,VODAFONE LIMITED,22/05/2024,RS159608,0.75,0.00,Monthly Vodafone Service Charges,Mobile Devices
Wyre Council,http://opendatacommunities.org/doc/district-council/wyre,30/05/2024,Resources,Support Services,135B,VODAFONE LIMITED,22/05/2024,RS159608,1.00,0.00,Monthly Vodafone Service Charges,Mobile Devices
Wyre Council,http://opendatacommunities.org/doc/district-council/wyre,30/05/2024,Resources,Central Services to the Public,131C,VODAFONE LIMITED,22/05/2024,RS159608,0.50,0.00,Monthly Vodafone Service Charges,Mobile Devices
Wyre Council,http://opendatacommunities.org/doc/district-council/wyre,30/05/2024,Resources,Environmental Services,132B,VODAFONE LIMITED,22/05/2024,RS159608,3.25,0.00,Monthly Vodafone Service Charges,Mobile Devices
Wyre Council,http://opendatacommunities.org/doc/district-council/wyre,30/05/2024,Resources,Support Services,135B,VODAFONE LIMITED,22/05/2024,RS159608,2.50,0.00,Monthly Vodafone Service Charges,Mobile Devices
Wyre Council,http://opendatacommunities.org/doc/district-council/wyre,30/05/2024,Resources,Support Services,135B,VODAFONE LIMITED,22/05/2024,RS159608,0.43,0.00,Monthly Vodafone Usage Charges,Mobile Devices
Wyre Council,http://opendatacommunities.org/doc/district-council/wyre,30/05/2024,Resources,Support Services,135B,VODAFONE LIMITED,22/05/2024,RS159608,0.50,0.00,Monthly Vodafone Service Charges,Mobile Devices
Wyre Council,http://opendatacommunities.org/doc/district-council/wyre,30/05/2024,Resources,Support Services,135B,VODAFONE LIMITED,22/05/2024,RS159608,0.75,0.00,Monthly Vodafone Service Charges,Mobile Devices
Wyre Council,http://opendatacommunities.org/doc/district-council/wyre,30/05/2024,Resources,Support Services,135B,VODAFONE LIMITED,22/05/2024,RS159608,1.62,0.00,Monthly Vodafone Service Charges,Mobile Devices
Wyre Council,http://opendatacommunities.org/doc/district-council/wyre,30/05/2024,Resources,Environmental Services,132B,VODAFONE LIMITED,22/05/2024,RS159608,0.25,0.00,Monthly Vodafone Service Charges,Mobile Devices
Wyre Council,http://opendatacommunities.org/doc/district-council/wyre,30/05/2024,Resources,Housing General Fund,134A,VODAFONE LIMITED,22/05/2024,RS159608,0.70,0.00,Monthly Vodafone Service Charges,Mobile Devices
Wyre Council,http://opendatacommunities.org/doc/district-council/wyre,30/05/2024,Resources,Support Services,135B,VODAFONE LIMITED,22/05/2024,RS159608,0.50,0.00,Monthly Vodafone Service Charges,Mobile Devices
Wyre Council,http://opendatacommunities.org/doc/district-council/wyre,30/05/2024,Resources,Support Services,135B,VODAFONE LIMITED,22/05/2024,RS159608,1.19,0.00,Monthly Vodafone Service Charges,Mobile Devices
Wyre Council,http://opendatacommunities.org/doc/district-council/wyre,30/05/2024,Resources,Support Services,135B,VODAFONE LIMITED,22/05/2024,RS159608,0.75,0.00,Monthly Vodafone Service Charges,Mobile Devices
Wyre Council,http://opendatacommunities.org/doc/district-council/wyre,30/05/2024,Resources,Support Services,135B,VODAFONE LIMITED,22/05/2024,RS159608,4.00,0.00,Monthly Vodafone Service Charges,Mobile Devices
Wyre Council,http://opendatacommunities.org/doc/district-council/wyre,30/05/2024,Resources,Support Services,135B,VODAFONE LIMITED,22/05/2024,RS159608,0.43,0.00,Monthly Vodafone Usage Charges,Mobile Devices
Wyre Council,http://opendatacommunities.org/doc/district-council/wyre,30/05/2024,Resources,Support Services,135B,VODAFONE LIMITED,22/05/2024,RS159608,0.25,0.00,Monthly Vodafone Service Charges,Mobile Devices
Wyre Council,http://opendatacommunities.org/doc/district-council/wyre,30/05/2024,Resources,Support Services,135B,VODAFONE LIMITED,14/05/2024,RS158805,0.55,0.00,Service Charges 01/04/24 to 30/04/24,Mobile Devices
Wyre Council,http://opendatacommunities.org/doc/district-council/wyre,30/05/2024,Resources,Support Services,135B,VODAFONE LIMITED,14/05/2024,RS158805,0.45,0.00,Usage Charge to March 24,Mobile Devices
Wyre Council,http://opendatacommunities.org/doc/district-council/wyre,30/05/2024,Resources,Support Services,135B,VODAFONE LIMITED,14/05/2024,RS158805,-0.05,0.00,Credit Charge to March 24,Mobile Devices
Wyre Council,http://opendatacommunities.org/doc/district-council/wyre,30/05/2024,Resources,Support Services,135B,VODAFONE LIMITED,14/05/2024,RS158805,0.33,0.00,Usage Charge to March 24,Mobile Devices
Wyre Council,http://opendatacommunities.org/doc/district-council/wyre,30/05/2024,Resources,Support Services,135B,VODAFONE LIMITED,14/05/2024,RS158805,2.50,0.00,Service Charges 01/04/24 to 30/04/24,Mobile Devices
Wyre Council,http://opendatacommunities.org/doc/district-council/wyre,30/05/2024,Resources,Support Services,135B,VODAFONE LIMITED,14/05/2024,RS158805,4.75,0.00,Service Charges 01/04/24 to 30/04/24,Mobile Devices
Wyre Council,http://opendatacommunities.org/doc/district-council/wyre,30/05/2024,Resources,Support Services,135B,VODAFONE LIMITED,14/05/2024,RS158805,0.75,0.00,Service Charges 01/04/24 to 30/04/24,Mobile Devices
Wyre Council,http://opendatacommunities.org/doc/district-council/wyre,30/05/2024,Resources,Support Services,135B,VODAFONE LIMITED,14/05/2024,RS158805,0.11,0.00,Service Charges 01/04/24 to 30/04/24,Mobile Devices
Wyre Council,http://opendatacommunities.org/doc/district-council/wyre,30/05/2024,Resources,Support Services,135B,VODAFONE LIMITED,14/05/2024,RS158805,2.00,0.00,Service Charges 01/04/24 to 30/04/24,Mobile Devices
Wyre Council,http://opendatacommunities.org/doc/district-council/wyre,30/05/2024,Resources,Support Services,135B,VODAFONE LIMITED,14/05/2024,RS158805,1.25,0.00,Service Charges 01/04/24 to 30/04/24,Mobile Devices
Wyre Council,http://opendatacommunities.org/doc/district-council/wyre,30/05/2024,Resources,Support Services,135B,VODAFONE LIMITED,14/05/2024,RS158805,0.33,0.00,Usage Charge to March 24,Mobile Devices
Wyre Council,http://opendatacommunities.org/doc/district-council/wyre,30/05/2024,Resources,Central Services to the Public,131C,VODAFONE LIMITED,14/05/2024,RS158805,0.50,0.00,Service Charges 01/04/24 to 30/04/24,Mobile Devices
Wyre Council,http://opendatacommunities.org/doc/district-council/wyre,30/05/2024,Resources,Environmental Services,132B,VODAFONE LIMITED,14/05/2024,RS158805,3.25,0.00,Service Charges 01/04/24 to 30/04/24,Mobile Devices
Wyre Council,http://opendatacommunities.org/doc/district-council/wyre,30/05/2024,Resources,Support Services,135B,VODAFONE LIMITED,14/05/2024,RS158805,0.29,0.00,Service Charges 01/04/24 to 30/04/24,Mobile Devices
Wyre Council,http://opendatacommunities.org/doc/district-council/wyre,30/05/2024,Resources,Environmental Services,132B,VODAFONE LIMITED,14/05/2024,RS158805,0.25,0.00,Service Charges 01/04/24 to 30/04/24,Mobile Devices
Wyre Council,http://opendatacommunities.org/doc/district-council/wyre,30/05/2024,Resources,Cultural and Related Services,132A,VODAFONE LIMITED,14/05/2024,RS158805,0.25,0.00,Service Charges 01/04/24 to 30/04/24,Mobile Devices
Wyre Council,http://opendatacommunities.org/doc/district-council/wyre,30/05/2024,Resources,Support Services,135B,VODAFONE LIMITED,14/05/2024,RS158805,0.25,0.00,Service Charges 01/04/24 to 30/04/24,Mobile Devices
Wyre Council,http://opendatacommunities.org/doc/district-council/wyre,30/05/2024,Resources,Housing General Fund,134A,VODAFONE LIMITED,14/05/2024,RS158805,0.25,0.00,Service Charges 01/04/24 to 30/04/24,Mobile Devices
Wyre Council,http://opendatacommunities.org/doc/district-council/wyre,30/05/2024,Resources,Housing General Fund,134A,VODAFONE LIMITED,14/05/2024,RS158805,1.50,0.00,Service Charges 01/04/24 to 30/04/24,Mobile Devices
Wyre Council,http://opendatacommunities.org/doc/district-council/wyre,30/05/2024,Resources,Housing General Fund,134A,VODAFONE LIMITED,14/05/2024,RS158805,0.50,0.00,Service Charges 01/04/24 to 30/04/24,Mobile Devices
Wyre Council,http://opendatacommunities.org/doc/district-council/wyre,30/05/2024,Resources,Support Services,135B,VODAFONE LIMITED,14/05/2024,RS158805,0.50,0.00,Service Charges 01/04/24 to 30/04/24,Mobile Devices
Wyre Council,http://opendatacommunities.org/doc/district-council/wyre,30/05/2024,Resources,Support Services,135B,VODAFONE LIMITED,14/05/2024,RS158805,4.75,0.00,Service Charges 01/04/24 to 30/04/24,Mobile Devices
Wyre Council,http://opendatacommunities.org/doc/district-council/wyre,30/05/2024,Resources,Support Services,135B,VODAFONE LIMITED,14/05/2024,RS158805,0.35,0.00,Service Charges 01/04/24 to 30/04/24,Mobile Devices
Wyre Council,http://opendatacommunities.org/doc/district-council/wyre,30/05/2024,Resources,Support Services,135B,VODAFONE LIMITED,14/05/2024,RS158805,495.25,0.00,Service Charges 01/04/24 to 30/04/24,Mobile Devices
Wyre Council,http://opendatacommunities.org/doc/district-council/wyre,30/05/2024,Resources,Support Services,135B,VODAFONE LIMITED,14/05/2024,RS158805,0.75,0.00,Service Charges 01/04/24 to 30/04/24,Mobile Devices
Wyre Council,http://opendatacommunities.org/doc/district-council/wyre,30/05/2024,Resources,Support Services,135B,VODAFONE LIMITED,14/05/2024,RS158805,0.25,0.00,Service Charges 01/04/24 to 30/04/24,Mobile Devices
Wyre Council,http://opendatacommunities.org/doc/district-council/wyre,30/05/2024,Resources,Environmental Services,132B,VODAFONE LIMITED,14/05/2024,RS158805,0.25,0.00,Service Charges 01/04/24 to 30/04/24,Mobile Devices
Wyre Council,http://opendatacommunities.org/doc/district-council/wyre,30/05/2024,Resources,Housing General Fund,134A,VODAFONE LIMITED,14/05/2024,RS158805,0.75,0.00,Service Charges 01/04/24 to 30/04/24,Mobile Devices
Wyre Council,http://opendatacommunities.org/doc/district-council/wyre,30/05/2024,Resources,Support Services,135B,VODAFONE LIMITED,14/05/2024,RS158805,0.50,0.00,Service Charges 01/04/24 to 30/04/24,Mobile Devices
Wyre Council,http://opendatacommunities.org/doc/district-council/wyre,30/05/2024,Resources,Support Services,135B,VODAFONE LIMITED,14/05/2024,RS158805,1.25,0.00,Service Charges 01/04/24 to 30/04/24,Mobile Devices
Wyre Council,http://opendatacommunities.org/doc/district-council/wyre,30/05/2024,Resources,Support Services,135B,VODAFONE LIMITED,14/05/2024,RS158805,0.75,0.00,Service Charges 01/04/24 to 30/04/24,Mobile Devices
Wyre Council,http://opendatacommunities.org/doc/district-council/wyre,30/05/2024,Resources,Support Services,135B,VODAFONE LIMITED,14/05/2024,RS158805,4.00,0.00,Service Charges 01/04/24 to 30/04/24,Mobile Devices
Wyre Council,http://opendatacommunities.org/doc/district-council/wyre,30/05/2024,Resources,Support Services,135B,VODAFONE LIMITED,14/05/2024,RS158805,0.51,0.00,Usage Charge to March 24,Mobile Devices
Wyre Council,http://opendatacommunities.org/doc/district-council/wyre,30/05/2024,Resources,Support Services,135B,VODAFONE LIMITED,14/05/2024,RS158805,0.25,0.00,Service Charges 01/04/24 to 30/04/24,Mobile Devices
Wyre Council,http://opendatacommunities.org/doc/district-council/wyre,30/05/2024,People and Places,Highways,133B,Andrew Signs LTD,08/05/2024,PE159074,122.50,0.00,5 street nameplates,Naming of Streets
Wyre Council,http://opendatacommunities.org/doc/district-council/wyre,30/05/2024,People and Places,Highways,133B,Andrew Signs LTD,29/05/2024,PE159749,305.80,0.00,payment of INV-1670 various signs  ordered by Bob greaves a and street signs ordered by Mark T,Naming of Streets
Wyre Council,http://opendatacommunities.org/doc/district-council/wyre,30/05/2024,People and Places,Highways,133B,HUWS GRAY LTD,15/05/2024,PE159322,79.90,0.00,Postcrete,Naming of Streets
Wyre Council,http://opendatacommunities.org/doc/district-council/wyre,30/05/2024,Resources,General Fund below the line,136A,Ribble Valley Borough Council,23/05/2024,RS159370,-73592.85,0.00,"Business Rates Pool 10%, Retained levy due to LCC under the pooling arrangements for 2022/23",NNDR Levy to Government
Wyre Council,http://opendatacommunities.org/doc/district-council/wyre,30/05/2024,Finance,Current Assets,130B,,08/05/2024,WPST00141848,657.51,0.00,03/05/24 NNDR Refunds,NNDR Refunds
Wyre Council,http://opendatacommunities.org/doc/district-council/wyre,30/05/2024,Finance,Current Assets,130B,,21/05/2024,WPST00143141,45048.97,0.00,17/05/24NNDR Refunds,NNDR Refunds
Wyre Council,http://opendatacommunities.org/doc/district-council/wyre,30/05/2024,Finance,Current Assets,130B,,29/05/2024,WPST00143815,99716.21,0.00,24/05/24 NNDR Refunds,NNDR Refunds
Wyre Council,http://opendatacommunities.org/doc/district-council/wyre,30/05/2024,Finance,Current Assets,130B,,14/05/2024,WPST00142499,56464.20,0.00,10/05/24 NNDR Refunds,NNDR Refunds
Wyre Council,http://opendatacommunities.org/doc/district-council/wyre,30/05/2024,Finance,General Fund below the line,136A,DEPARTMENT FOR COMMUNITIES AND LOCAL GOVERNMENT,02/05/2024,WPST00141298,750080.00,0.00,30/04/24 R V B C GENERAL LBRP0008,NNDR Tariff to Government
Wyre Council,http://opendatacommunities.org/doc/district-council/wyre,30/05/2024,Finance,Collection Fund Revenue Accts,138A,DEPARTMENT FOR COMMUNITIES AND LOCAL GOVERNMENT,02/05/2024,WPST00141326,1181264.00,0.00,DLUHC-Bus Rates Central Share30/4/24,NNDR Tariff to Government
Wyre Council,http://opendatacommunities.org/doc/district-council/wyre,30/05/2024,Finance,Collection Fund Revenue Accts,138A,DEPARTMENT FOR COMMUNITIES AND LOCAL GOVERNMENT,02/05/2024,WPST00141328,47139.00,0.00,DLUHC-Bus Rates Surplusfor 23-24 30/4/24,NNDR Tariff to Government
Wyre Council,http://opendatacommunities.org/doc/district-council/wyre,30/05/2024,Finance,Collection Fund Revenue Accts,138A,DEPARTMENT FOR COMMUNITIES AND LOCAL GOVERNMENT,02/05/2024,WPST00141329,2791.00,0.00,DLUHC-BusRatesFinalSurplus22-23 30/4/24,NNDR Tariff to Government
Wyre Council,http://opendatacommunities.org/doc/district-council/wyre,30/05/2024,Finance,Collection Fund Revenue Accts,138A,DEPARTMENT FOR COMMUNITIES AND LOCAL GOVERNMENT,22/05/2024,WPST00143233,1181264.00,0.00,DLUHC - Bus Rates Central Share 20/05/24,NNDR Tariff to Government
Wyre Council,http://opendatacommunities.org/doc/district-council/wyre,30/05/2024,Finance,Collection Fund Revenue Accts,138A,DEPARTMENT FOR COMMUNITIES AND LOCAL GOVERNMENT,22/05/2024,WPST00143236,47140.00,0.00,DLUHC-Bus Rate Surplus 23-24 20/05/24,NNDR Tariff to Government
Wyre Council,http://opendatacommunities.org/doc/district-council/wyre,30/05/2024,Finance,Collection Fund Revenue Accts,138A,DEPARTMENT FOR COMMUNITIES AND LOCAL GOVERNMENT,22/05/2024,WPST00143237,2792.00,0.00,DLUHC-Bus Rate Fin Surplus 22/23 20/05/2,NNDR Tariff to Government
Wyre Council,http://opendatacommunities.org/doc/district-council/wyre,30/05/2024,Finance,General Fund below the line,136A,DEPARTMENT FOR COMMUNITIES AND LOCAL GOVERNMENT,22/05/2024,WPST00143238,750080.00,0.00,20/05/24 R V B C GENERAL LBRP0008,NNDR Tariff to Government
Wyre Council,http://opendatacommunities.org/doc/district-council/wyre,30/05/2024,Resources,Support Services,135B,People Asset Management LTD,13/05/2024,RS159076,764.93,0.00,Monthly PAYG Charges,Occupational Health Fees
Wyre Council,http://opendatacommunities.org/doc/district-council/wyre,30/05/2024,Resources,Support Services,135B,Karen Openshaw Consultancy,02/05/2024,RS158980,520.00,0.00,To supply Listening Service and lead Mindfulness practice for Wyre Council March 24 to April 25,Occupational Health Fees
Wyre Council,http://opendatacommunities.org/doc/district-council/wyre,30/05/2024,People and Places,Central Services to the Public,131C,Police and Crime Commissioner for Lancashire,14/05/2024,PE159233,1074.00,0.00,Contributions towards LRF Secretary Post 2024/2025,Other Contributions
Wyre Council,http://opendatacommunities.org/doc/district-council/wyre,30/05/2024,People and Places,Environmental Services,132B,DANFO (UK) LTD,13/05/2024,PE158928,21808.66,0.00,Public Conveniences - Maintenance and Cleaning 2024/25,Other Establishments
Wyre Council,http://opendatacommunities.org/doc/district-council/wyre,30/05/2024,Resources,Central Services to the Public,131C,Citizens Advice Lancashire,17/05/2024,RS159436,35000.00,0.00,Citizens advice services to Wyre Council,Other Grants
Wyre Council,http://opendatacommunities.org/doc/district-council/wyre,30/05/2024,Finance,Collection Fund Revenue Accts,138A,,31/05/2024,WPST00144112,9986.00,0.00,29/05/24 LCC 22/23 Bus rates surplus Def,Other Local Authorities
Wyre Council,http://opendatacommunities.org/doc/district-council/wyre,30/05/2024,Finance,Collection Fund Revenue Accts,138A,LANCASHIRE FIRE AUTHORITY,31/05/2024,WPST00144115,26250.00,0.00,29/05/24 Lancs Fire 23/24 Bus Rates,Other Local Authorities
Wyre Council,http://opendatacommunities.org/doc/district-council/wyre,30/05/2024,Finance,Collection Fund Revenue Accts,138A,,31/05/2024,WPST00144116,1110.00,0.00,29/05/24 Lancs Fire 22/23 Bus Rates Surp,Other Local Authorities
Wyre Council,http://opendatacommunities.org/doc/district-council/wyre,30/05/2024,Finance,Collection Fund Revenue Accts,138A,LANCASHIRE COUNTY COUNCIL,31/05/2024,WPST00144111,236253.00,0.00,29/05/24 LCC 23/24 Bus rates,Other Local Authorities
Wyre Council,http://opendatacommunities.org/doc/district-council/wyre,30/05/2024,Finance,Collection Fund Revenue Accts,138A,,31/05/2024,WPST00144117,1030908.00,0.00,29/05/24 PCCL 23/24 Ctax,Other Local Authorities
Wyre Council,http://opendatacommunities.org/doc/district-council/wyre,30/05/2024,Finance,Collection Fund Revenue Accts,138A,,31/05/2024,WPST00144118,19536.00,0.00,29/05/24 PCCL 22/23 Ctax Surplus,Other Local Authorities
Wyre Council,http://opendatacommunities.org/doc/district-council/wyre,30/05/2024,Finance,Collection Fund Revenue Accts,138A,LANCASHIRE COUNTY COUNCIL,31/05/2024,WPST00144109,6470726.00,0.00,29/05/24 LCC 23/24 Council tax,Other Local Authorities
Wyre Council,http://opendatacommunities.org/doc/district-council/wyre,30/05/2024,Finance,Collection Fund Revenue Accts,138A,,31/05/2024,WPST00144110,122345.00,0.00,29/05/24 LCC 22/23 Ctax surplus,Other Local Authorities
Wyre Council,http://opendatacommunities.org/doc/district-council/wyre,30/05/2024,Finance,Collection Fund Revenue Accts,138A,LANCASHIRE FIRE AUTHORITY,31/05/2024,WPST00144113,331620.00,0.00,29/05/24 Lancs fire 23/24 Ctax,Other Local Authorities
Wyre Council,http://opendatacommunities.org/doc/district-council/wyre,30/05/2024,Finance,Collection Fund Revenue Accts,138A,,31/05/2024,WPST00144114,6392.00,0.00,29/05/24 Lancs Fire 22/23 Ctax surplus,Other Local Authorities
Wyre Council,http://opendatacommunities.org/doc/district-council/wyre,30/05/2024,Resources,Central Services to the Public,131C,Ribble Valley Borough Council,23/05/2024,RS159370,-1818.18,0.00,Annual Charge from the lead authority for the administration of the Lancashire Business Rates Pool for 2023/24,Other Local Authorities
Wyre Council,http://opendatacommunities.org/doc/district-council/wyre,30/05/2024,People and Places,Parking Services,133F,Park Now Limited,29/05/2024,PE159066,703.27,0.00,RingGo fess 2024-25,Other Parking Fees and Commission
Wyre Council,http://opendatacommunities.org/doc/district-council/wyre,30/05/2024,People and Places,Cultural and Related Services,132A,Centrewire LTD,15/05/2024,PE159374,1218.00,0.00,1 x Bristol 2 in 1 gate standard hand gate1 x Denstone 2 way gate Plus delivery,"Paths, Roads and Car Park Mtnce Annual"
Wyre Council,http://opendatacommunities.org/doc/district-council/wyre,30/05/2024,Finance,Corporate and Democratic Core,131A,LANCASHIRE COUNTY COUNCIL,01/05/2024,WPST00141104,16278.16,0.00,29/04/24 LCC Pension,Pension Increase Act Payments
Wyre Council,http://opendatacommunities.org/doc/district-council/wyre,30/05/2024,People and Places,Planning and Development Servs,132C,GARRY CARR BUILDING SERVICES LTD,22/05/2024,PE159604,105.00,0.00,Fleetwood Market: Weed kill around perimeter of market and courtyard,Pest Control
Wyre Council,http://opendatacommunities.org/doc/district-council/wyre,30/05/2024,People and Places,Support Services,135B,Allstar Business Solutions LTD,08/05/2024,PE158605,225.18,0.00,Fuel to 12/04,Petrol
Wyre Council,http://opendatacommunities.org/doc/district-council/wyre,30/05/2024,People and Places,Support Services,135B,Allstar Business Solutions LTD,09/05/2024,PE158986,741.01,0.00,Fuel to 29/04/24,Petrol
Wyre Council,http://opendatacommunities.org/doc/district-council/wyre,30/05/2024,People and Places,Support Services,135B,EAS Electrical Mechanical,21/05/2024,PE159422,3478.20,0.00,To undertake full decoration and new carpet tiles Room 130/131 - Breakout room at Civic,Planned Building Maintenance
Wyre Council,http://opendatacommunities.org/doc/district-council/wyre,30/05/2024,People and Places,Support Services,135B,EAS Electrical Mechanical,23/05/2024,PE159558,986.70,0.00,Civic Centre: 66 circuits tested,Planned Building Maintenance
Wyre Council,http://opendatacommunities.org/doc/district-council/wyre,30/05/2024,People and Places,Support Services,135B,M D Security,24/05/2024,PE159652,60.00,0.00,Civic Centre: Emergency light test for 05/24,Planned Building Maintenance
Wyre Council,http://opendatacommunities.org/doc/district-council/wyre,30/05/2024,People and Places,Environmental Services,132B,M D Security,24/05/2024,PE159653,60.00,0.00,chatsworth Depot: Emergency light test on whole site for 05/24,Planned Building Maintenance
Wyre Council,http://opendatacommunities.org/doc/district-council/wyre,30/05/2024,People and Places,Planning and Development Servs,132C,M D Security,24/05/2024,PE159651,60.00,0.00,Copse Rd Depot: Emergency light test on whole site for 05/24,Planned Building Maintenance
Wyre Council,http://opendatacommunities.org/doc/district-council/wyre,30/05/2024,People and Places,Cultural and Related Services,132A,M D Security,02/05/2024,PE158910,60.00,0.00,Mount Pavilion and Studios: Carried out emergency light test to Mound and no access to lodges for 04/24,Planned Building Maintenance
Wyre Council,http://opendatacommunities.org/doc/district-council/wyre,30/05/2024,People and Places,Environmental Services,132B,M D Security,02/05/2024,PE158909,60.00,0.00,Chatswort Depot: carried out emergency light test on whole site for 04/24,Planned Building Maintenance
Wyre Council,http://opendatacommunities.org/doc/district-council/wyre,30/05/2024,People and Places,Planning and Development Servs,132C,M D Security,02/05/2024,PE158908,60.00,0.00,Copse Rd Depot inc transport depot: Carried out emergency light test on whole site for 04/24,Planned Building Maintenance
Wyre Council,http://opendatacommunities.org/doc/district-council/wyre,30/05/2024,People and Places,Cultural and Related Services,132A,M D Security,02/05/2024,PE158907,60.00,0.00,Rossall Point: carried out emergency light test for month 04/24,Planned Building Maintenance
Wyre Council,http://opendatacommunities.org/doc/district-council/wyre,30/05/2024,People and Places,Cultural and Related Services,132A,M D Security,03/05/2024,PE158982,60.00,0.00,Thornton Windmill: Carried out emergency light test on whole site for 04/24,Planned Building Maintenance
Wyre Council,http://opendatacommunities.org/doc/district-council/wyre,30/05/2024,People and Places,Planning and Development Servs,132C,COWLEY FIRE,14/05/2024,PE159203,682.17,0.00,Copse Rd Depot: Service fire equipment,Planned Building Maintenance
Wyre Council,http://opendatacommunities.org/doc/district-council/wyre,30/05/2024,People and Places,Planning and Development Servs,132C,ADP ENVIRONMENTAL SERVICES LTD,02/05/2024,PE158933,2513.50,0.00,"NSFP100 - 2024 annual service & maintenance agreement, including tankering.  1 x oil separator visit MArch 24",Planned Building Maintenance
Wyre Council,http://opendatacommunities.org/doc/district-council/wyre,30/05/2024,People and Places,Cultural and Related Services,132A,ADP ENVIRONMENTAL SERVICES LTD,02/05/2024,PE158932,407.00,0.00,Rossall tower observatory:2024 annual 1 year service and maintenance agreement inc de-sludge & tankering for 1 x Klargester treatment plant,Planned Building Maintenance
Wyre Council,http://opendatacommunities.org/doc/district-council/wyre,30/05/2024,People and Places,Cultural and Related Services,132A,John Carney,09/05/2024,PE159105,130.00,0.00,Jean Stansfiel Bowling Club: Cleaning out gutters all around all buildings,Planned Building Maintenance
Wyre Council,http://opendatacommunities.org/doc/district-council/wyre,30/05/2024,People and Places,Support Services,135B,Kompan  LTD,29/05/2024,PE159786,598.92,0.00,As per quotation SQ293433 supply and delivery of A801591-99 SPICA UPPER PART,Playground Equipment
Wyre Council,http://opendatacommunities.org/doc/district-council/wyre,30/05/2024,People and Places,Support Services,135B,GB  Sport & Leisure UK LTD,01/05/2024,PE158950,315.85,0.00,Delivery,Playground Equipment
Wyre Council,http://opendatacommunities.org/doc/district-council/wyre,30/05/2024,People and Places,Support Services,135B,GB  Sport & Leisure UK LTD,01/05/2024,PE158950,2115.00,0.00,Parts as per quotation ref 30176SP-01-024A 1.0m Birds Nest Seat � Cantilever qty 3,Playground Equipment
Wyre Council,http://opendatacommunities.org/doc/district-council/wyre,30/05/2024,People and Places,Support Services,135B,GB  Sport & Leisure UK LTD,01/05/2024,PE158950,1833.00,0.00,SP-01-018B 1.0m Birds Nest Seat � A Frame qty 3,Playground Equipment
Wyre Council,http://opendatacommunities.org/doc/district-council/wyre,30/05/2024,People and Places,Support Services,135B,GB  Sport & Leisure UK LTD,01/05/2024,PE158950,1368.00,0.00,SP-01-014B 1.2m Birds Nest Seat � A Frame qty 2,Playground Equipment
Wyre Council,http://opendatacommunities.org/doc/district-council/wyre,30/05/2024,People and Places,Support Services,135B,GB  Sport & Leisure UK LTD,01/05/2024,PE158950,146.00,0.00,SP-05-002 30m x 10mm Cable with thimble eye at one end qty 1,Playground Equipment
Wyre Council,http://opendatacommunities.org/doc/district-council/wyre,30/05/2024,People and Places,Support Services,135B,GB  Sport & Leisure UK LTD,01/05/2024,PE158950,855.00,0.00,SP-36-029 Prosafe Gate Motor Only qty 10,Playground Equipment
Wyre Council,http://opendatacommunities.org/doc/district-council/wyre,30/05/2024,Resources,Support Services,135B,North West Employers,31/05/2024,RS159633,1750.00,0.00,Organisational Development Practitioner Essentials Programme - Jane Collier,Post Entry/Professional Training
Wyre Council,http://opendatacommunities.org/doc/district-council/wyre,30/05/2024,Resources,Central Services to the Public,131C,Critiqom LTD,07/05/2024,RS159037,508.24,0.00,Services April 2024 Daily Bills,Postage
Wyre Council,http://opendatacommunities.org/doc/district-council/wyre,30/05/2024,Resources,Central Services to the Public,131C,Critiqom LTD,07/05/2024,RS159038,2278.65,0.00,Adjustment due to Critiqom VAT Error Postage 2024 -  Daily Bills,Postage
Wyre Council,http://opendatacommunities.org/doc/district-council/wyre,30/05/2024,Resources,Housing General Fund,134A,Critiqom LTD,07/05/2024,RS159037,52.51,0.00,Services April 2024 Benefit Notifications,Postage
Wyre Council,http://opendatacommunities.org/doc/district-council/wyre,30/05/2024,Resources,Housing General Fund,134A,Critiqom LTD,07/05/2024,RS159038,194.89,0.00,Adjustment due to Critiqom VAT Error  Postage April 24 - Benefit Notifications,Postage
Wyre Council,http://opendatacommunities.org/doc/district-council/wyre,30/05/2024,Resources,Support Services,135B,Critiqom LTD,07/05/2024,RS159037,293.19,0.00,Services April 2024 IQ Post - Planning,Postage
Wyre Council,http://opendatacommunities.org/doc/district-council/wyre,30/05/2024,Resources,Support Services,135B,Critiqom LTD,07/05/2024,RS159037,16.97,0.00,Services April 2024 IQ Post - Cemeteries,Postage
Wyre Council,http://opendatacommunities.org/doc/district-council/wyre,30/05/2024,Resources,Support Services,135B,Critiqom LTD,07/05/2024,RS159037,27.24,0.00,Services April 2024 IQ Post - Pollution,Postage
Wyre Council,http://opendatacommunities.org/doc/district-council/wyre,30/05/2024,Resources,Central Services to the Public,131C,Critiqom LTD,07/05/2024,RS159037,473.30,0.00,Services April 2024 IQ post - Electoral,Postage
Wyre Council,http://opendatacommunities.org/doc/district-council/wyre,30/05/2024,Resources,Support Services,135B,Critiqom LTD,07/05/2024,RS159037,1362.78,0.00,Services April 2024 IQ post - CC,Postage
Wyre Council,http://opendatacommunities.org/doc/district-council/wyre,30/05/2024,Resources,Support Services,135B,Critiqom LTD,07/05/2024,RS159037,175.65,0.00,Services April 2024 Ctax Reminders,Postage
Wyre Council,http://opendatacommunities.org/doc/district-council/wyre,30/05/2024,Resources,Support Services,135B,Critiqom LTD,07/05/2024,RS159037,4.44,0.00,Services April 2024 NNDR Reminders,Postage
Wyre Council,http://opendatacommunities.org/doc/district-council/wyre,30/05/2024,Resources,Support Services,135B,Critiqom LTD,07/05/2024,RS159037,132.40,0.00,Services April 2024 Ctax Summons,Postage
Wyre Council,http://opendatacommunities.org/doc/district-council/wyre,30/05/2024,Resources,Support Services,135B,Critiqom LTD,07/05/2024,RS159037,4.66,0.00,Services April 2024 NNDR Summons,Postage
Wyre Council,http://opendatacommunities.org/doc/district-council/wyre,30/05/2024,Resources,Support Services,135B,Critiqom LTD,07/05/2024,RS159038,607.54,0.00,Adjustment due to Critiqom VAT Error Postage April 24 - Council Tax Reminders,Postage
Wyre Council,http://opendatacommunities.org/doc/district-council/wyre,30/05/2024,Resources,Support Services,135B,Critiqom LTD,07/05/2024,RS159038,31.25,0.00,Adjustment due to Critiqom VAT Error  Postage April 24 - NNDR Reminders,Postage
Wyre Council,http://opendatacommunities.org/doc/district-council/wyre,30/05/2024,Resources,Support Services,135B,Critiqom LTD,07/05/2024,RS159038,403.23,0.00,Adjustment due to Critiqom VAT Error  Postage April 24 - Council Tax Summons,Postage
Wyre Council,http://opendatacommunities.org/doc/district-council/wyre,30/05/2024,Resources,Support Services,135B,Critiqom LTD,07/05/2024,RS159038,17.55,0.00,Adjustment due to Critiqom VAT Error  Postage April 24 - NNDR Summons,Postage
Wyre Council,http://opendatacommunities.org/doc/district-council/wyre,30/05/2024,People and Places,Environmental Services,132B,Amazon Business,23/05/2024,PE159658,91.67,0.00, 1x Hp laserjet cartridge 26A for licensing as requested by Mandy Seddon,Printing
Wyre Council,http://opendatacommunities.org/doc/district-council/wyre,30/05/2024,Finance,Housing General Fund,134A,,08/05/2024,WPST00141845,9950.00,0.00,03/05/24 HB Payments - Homes for Ukraine,Private Contractors
Wyre Council,http://opendatacommunities.org/doc/district-council/wyre,30/05/2024,People and Places,Environmental Services,132B,EAS Electrical Mechanical,28/05/2024,PE159691,6905.58,0.00,"*** Confirmation Order ***Royles Brook pumping station, Thornton YMCARemove, repair and reinstall 3 no. pumps",Private Contractors
Wyre Council,http://opendatacommunities.org/doc/district-council/wyre,30/05/2024,People and Places,Parking Services,133F,DANFO (UK) LTD,20/05/2024,PE159347,-13450.00,0.00,re: PEO0027700 Central Car Park Fleetwood - fully credited,Private Contractors
Wyre Council,http://opendatacommunities.org/doc/district-council/wyre,30/05/2024,People and Places,Parking Services,133F,DANFO (UK) LTD,20/05/2024,PE157157,13450.00,0.00,re: PEO0027700 Central Car Park Fleetwood - fully credited,Private Contractors
Wyre Council,http://opendatacommunities.org/doc/district-council/wyre,30/05/2024,People and Places,Parking Services,133F,NSL Services Group,29/05/2024,PE159637,4949.52,0.00,Provide enforcement officers for Wyre Council car parks 2024-25,Private Contractors
Wyre Council,http://opendatacommunities.org/doc/district-council/wyre,30/05/2024,People and Places,Environmental Services,132B,Veolia ES (UK) LTD,17/05/2024,PE159424,211609.07,0.00,Domestic Waste Management Collection Contract 2024/25,Private Contractors
Wyre Council,http://opendatacommunities.org/doc/district-council/wyre,30/05/2024,People and Places,Environmental Services,132B,Calico Enterprise,13/05/2024,PE158901,2443.30,0.00,Bulky Matters Contract Calico 2024/25,Private Contractors
Wyre Council,http://opendatacommunities.org/doc/district-council/wyre,30/05/2024,People and Places,Environmental Services,132B,Calico Enterprise,13/05/2024,PE158900,10462.89,0.00,Bulky Matters Contract Calico 2024/25,Private Contractors
Wyre Council,http://opendatacommunities.org/doc/district-council/wyre,30/05/2024,People and Places,Environmental Services,132B,Calico Enterprise,13/05/2024,PE158900,2250.00,0.00,Bulky Matters Contract Calico 2024/25,Private Contractors
Wyre Council,http://opendatacommunities.org/doc/district-council/wyre,30/05/2024,Resources,Housing General Fund,134A,Salvation Army,01/05/2024,RS158945,19320.90,0.00,Payment of invoice no 5038454 Refuge support Q4 2023/4,Private Contractors
Wyre Council,http://opendatacommunities.org/doc/district-council/wyre,30/05/2024,Resources,Housing General Fund,134A,Sathy Estates (Lettings) Limited,22/05/2024,RS159610,1300.00,0.00,"Invoice for Payment to cover Rent in Advance  Mr Abdulaziz Bashir Hassan Mussa  Mr Abdul-Allah Bashir Hassan Musa  Flat 6, 54 Caunce Street, Blackpool",Private Contractors
Wyre Council,http://opendatacommunities.org/doc/district-council/wyre,30/05/2024,People and Places,Parking Services,133F,PETER HEARN ELECTRICAL LTD,29/05/2024,PE159119,720.00,0.00,"Carry out annual electrical inspection and safety check for 16 no. P&D machines, including NICEIC report",Private Contractors
Wyre Council,http://opendatacommunities.org/doc/district-council/wyre,30/05/2024,Resources,Planning and Development Servs,132C,Preston City Council,23/05/2024,RS159643,30.00,0.00,500 x Community Matter A5 1pp,Project Costs
Wyre Council,http://opendatacommunities.org/doc/district-council/wyre,30/05/2024,People and Places,Cultural and Related Services,132A,Fylde Coast YMCA,08/05/2024,PE158814,2730.00,0.00,YMCA Thornton Easter HAF,Project Costs
Wyre Council,http://opendatacommunities.org/doc/district-council/wyre,30/05/2024,People and Places,Cultural and Related Services,132A,Fylde Coast YMCA,08/05/2024,PE158812,2625.00,0.00,YMCA Fleetwood HAF,Project Costs
Wyre Council,http://opendatacommunities.org/doc/district-council/wyre,30/05/2024,People and Places,Cultural and Related Services,132A,Fylde Coast YMCA,08/05/2024,PE158813,120.00,0.00,YMCA Poulton - Easter HAF 2024,Project Costs
Wyre Council,http://opendatacommunities.org/doc/district-council/wyre,30/05/2024,People and Places,Planning and Development Servs,132C,VOLUNTEER CENTRE BLACKPOOL  FYLDE & WYRE,29/05/2024,PE159747,19177.00,0.00,Addressing Economic Inactivity In Wyre - First Payment (UKSPF E33: �Employment support for economically inactive people�),Project Costs
Wyre Council,http://opendatacommunities.org/doc/district-council/wyre,30/05/2024,Resources,Cultural and Related Services,132A,Visual Print and Design Ltd,08/05/2024,RS159121,620.00,0.00,4 x  double sided 2.6 metre flags - Active Traveleach including water base155 per flag620 total,Project Costs
Wyre Council,http://opendatacommunities.org/doc/district-council/wyre,30/05/2024,Resources,Planning and Development Servs,132C,LPM Dance,01/05/2024,RS158959,3835.00,0.00,Fleetwood Dance Festival,Project Costs
Wyre Council,http://opendatacommunities.org/doc/district-council/wyre,30/05/2024,People and Places,Cultural and Related Services,132A,Healthy Heads Education Ltd,08/05/2024,PE159129,3172.50,0.00,Healthy Heads - HAF and nutrition Workshops,Project Costs
Wyre Council,http://opendatacommunities.org/doc/district-council/wyre,30/05/2024,People and Places,Cultural and Related Services,132A,Amazon Business,21/05/2024,PE159183,3.71,0.00,Active Travel - Bike Referral Equipment,Project Costs
Wyre Council,http://opendatacommunities.org/doc/district-council/wyre,30/05/2024,People and Places,Cultural and Related Services,132A,Amazon Business,07/05/2024,PE159062,24.98,0.00,Active Travel GoodsBike Recycling Equipment,Project Costs
Wyre Council,http://opendatacommunities.org/doc/district-council/wyre,30/05/2024,People and Places,Cultural and Related Services,132A,Amazon Business,07/05/2024,PE159059,20.79,0.00,Active Travel GoodsBike Recycling Equipment,Project Costs
Wyre Council,http://opendatacommunities.org/doc/district-council/wyre,30/05/2024,People and Places,Cultural and Related Services,132A,Amazon Business,07/05/2024,PE158995,79.98,0.00,Active Travel Goods Bike Recycling Equipment,Project Costs
Wyre Council,http://opendatacommunities.org/doc/district-council/wyre,30/05/2024,People and Places,Cultural and Related Services,132A,Amazon Business,07/05/2024,PE159064,91.62,0.00,Active Travel GoodsBike Recycling Equipment,Project Costs
Wyre Council,http://opendatacommunities.org/doc/district-council/wyre,30/05/2024,People and Places,Cultural and Related Services,132A,Amazon Business,07/05/2024,PE159063,11.78,0.00,Active Travel GoodsBike Recycling Equipment,Project Costs
Wyre Council,http://opendatacommunities.org/doc/district-council/wyre,30/05/2024,People and Places,Cultural and Related Services,132A,Amazon Business,15/05/2024,PE159212,16.66,0.00,kettle for volunteers bike fix room at Marine Hall,Project Costs
Wyre Council,http://opendatacommunities.org/doc/district-council/wyre,30/05/2024,People and Places,Cultural and Related Services,132A,Amazon Business,14/05/2024,PE159311,30.77,0.00,Active Travel - Bike Referral Equipment,Project Costs
Wyre Council,http://opendatacommunities.org/doc/district-council/wyre,30/05/2024,People and Places,Cultural and Related Services,132A,Amazon Business,13/05/2024,PE159230,52.90,0.00,Active Travel - Bike Referral Equipment,Project Costs
Wyre Council,http://opendatacommunities.org/doc/district-council/wyre,30/05/2024,People and Places,Cultural and Related Services,132A,Amazon Business,13/05/2024,PE159167,66.66,0.00,Active Travel - Bike Referral Equipment,Project Costs
Wyre Council,http://opendatacommunities.org/doc/district-council/wyre,30/05/2024,People and Places,Cultural and Related Services,132A,Griddle Girls,03/05/2024,PE158988,750.00,0.00,Food Supplier for HAF Travel fest and Premier Kicks,Project Costs
Wyre Council,http://opendatacommunities.org/doc/district-council/wyre,30/05/2024,People and Places,Planning and Development Servs,132C,Age UK Lancashire,14/05/2024,PE159257,1645.00,0.00,"To provide support for Garstang Carers Group, Community Matters, from 01/04/2024 to 31/03/2025",Project Costs
Wyre Council,http://opendatacommunities.org/doc/district-council/wyre,30/05/2024,Resources,Environmental Services,132B,Preston City Council,21/05/2024,RS159479,143.75,0.00,3000 x dog ban leaflet A5 2pp,Promotions - General
Wyre Council,http://opendatacommunities.org/doc/district-council/wyre,30/05/2024,Resources,Cultural and Related Services,132A,Preston City Council,21/05/2024,RS159479,30.00,0.00,Slimming World Leaflets - A5 1pp x 500,Promotions - General
Wyre Council,http://opendatacommunities.org/doc/district-council/wyre,30/05/2024,Resources,Cultural and Related Services,132A,Preston City Council,21/05/2024,RS159479,436.25,0.00,"Wyre moving More Strategy report A4 60pp full colout on 115gsm, saddle stitch 150 copies",Promotions - General
Wyre Council,http://opendatacommunities.org/doc/district-council/wyre,30/05/2024,Resources,Cultural and Related Services,132A,Preston City Council,21/05/2024,RS159479,30.00,0.00,500 x Active Travel festival A5 1pp,Promotions - General
Wyre Council,http://opendatacommunities.org/doc/district-council/wyre,30/05/2024,Resources,Cultural and Related Services,132A,Preston City Council,23/05/2024,RS159643,51.25,0.00,1000 x Social Cycling 2024 - A5 1pp,Promotions - General
Wyre Council,http://opendatacommunities.org/doc/district-council/wyre,30/05/2024,Resources,Cultural and Related Services,132A,Preston City Council,23/05/2024,RS159642,18.75,0.00,200 x Walk Wheel and Wander A5 1pp,Promotions - General
Wyre Council,http://opendatacommunities.org/doc/district-council/wyre,30/05/2024,Resources,Planning and Development Servs,132C,Preston City Council,23/05/2024,RS159644,53.93,0.00,x2 bus stops for Cleveleys Market,Promotions - General
Wyre Council,http://opendatacommunities.org/doc/district-council/wyre,30/05/2024,People and Places,Planning and Development Servs,132C,Northern Print Distribution,29/05/2024,PE159736,810.00,0.00,Distribution of 30k new Fleetwood Market leaflets,Promotions - General
Wyre Council,http://opendatacommunities.org/doc/district-council/wyre,30/05/2024,People and Places,Planning and Development Servs,132C,Visual Print and Design Ltd,17/05/2024,PE159409,1075.00,0.00,Fleetwood Market DL 2pp Leaflet 50k,Promotions - General
Wyre Council,http://opendatacommunities.org/doc/district-council/wyre,30/05/2024,People and Places,Planning and Development Servs,132C,Amazon Business,02/05/2024,PE158969,41.66,0.00,sack truck,Promotions - General
Wyre Council,http://opendatacommunities.org/doc/district-council/wyre,30/05/2024,People and Places,Planning and Development Servs,132C,Amazon Business,07/05/2024,PE159020,69.16,0.00,safety harness,Promotions - General
Wyre Council,http://opendatacommunities.org/doc/district-council/wyre,30/05/2024,People and Places,Planning and Development Servs,132C,Amazon Business,10/05/2024,PE159083,136.66,0.00,industrial dust hoover,Promotions - General
Wyre Council,http://opendatacommunities.org/doc/district-council/wyre,30/05/2024,Resources,Cultural and Related Services,132A,32West Ltd,08/05/2024,RS158135,2400.00,0.00,PR Support,Promotions - General
Wyre Council,http://opendatacommunities.org/doc/district-council/wyre,30/05/2024,Resources,Cultural and Related Services,132A,32West Ltd,08/05/2024,RS157440,1200.00,0.00,PR Support,Promotions - General
Wyre Council,http://opendatacommunities.org/doc/district-council/wyre,30/05/2024,People and Places,Support Services,135B,Key Engineering & Hygiene Supplies LTD,09/05/2024,PE158967,92.88,0.00,Shoes  Enforcement officers  2 size 8 1 size 9,Protective Clothing
Wyre Council,http://opendatacommunities.org/doc/district-council/wyre,30/05/2024,People and Places,Support Services,135B,Key Engineering & Hygiene Supplies LTD,24/05/2024,PE159690,333.65,0.00,"Supply clothing as latest quotation 23508Delivery to Wyre Council, Copse Road Depot, Copse Road, Fleetwood, FY7 6RP",Protective Clothing
Wyre Council,http://opendatacommunities.org/doc/district-council/wyre,30/05/2024,People and Places,Environmental Services,132B,Key Engineering & Hygiene Supplies LTD,24/05/2024,PE159692,45.72,0.00,"Supply and deliver as per quotation 23214Delivery to Wyre Council, Copse Road Depot, FY7 6RP",Protective Clothing
Wyre Council,http://opendatacommunities.org/doc/district-council/wyre,30/05/2024,People and Places,Environmental Services,132B,Key Engineering & Hygiene Supplies LTD,24/05/2024,PE159690,333.65,0.00,"Supply clothing as latest quotation 23508Delivery to Wyre Council, Copse Road Depot, Copse Road, Fleetwood, FY7 6RP",Protective Clothing
Wyre Council,http://opendatacommunities.org/doc/district-council/wyre,30/05/2024,People and Places,Environmental Services,132B,Key Engineering & Hygiene Supplies LTD,28/05/2024,PE159407,113.28,0.00,Clothing for Corinne Masons Team which has been returned for collect sizes,Protective Clothing
Wyre Council,http://opendatacommunities.org/doc/district-council/wyre,30/05/2024,People and Places,Support Services,135B,Key Engineering & Hygiene Supplies LTD,08/05/2024,PE158844,23.64,0.00,Hi-vis traffic jacket medium,Protective Clothing
Wyre Council,http://opendatacommunities.org/doc/district-council/wyre,30/05/2024,People and Places,Cultural and Related Services,132A,Key Engineering & Hygiene Supplies LTD,01/05/2024,PE158934,390.00,0.00,Various size volunteer work boots,Protective Clothing
Wyre Council,http://opendatacommunities.org/doc/district-council/wyre,30/05/2024,People and Places,Support Services,135B,Key Engineering & Hygiene Supplies LTD,01/05/2024,PE158962,124.56,0.00,"Boots as your quotation 22969Delivery to Wyre Council, Copse Road Depot, Copse Road, Fleetwood, FY7 6RP",Protective Clothing
Wyre Council,http://opendatacommunities.org/doc/district-council/wyre,30/05/2024,People and Places,Environmental Services,132B,Key Engineering & Hygiene Supplies LTD,14/05/2024,PE159329,396.18,0.00,"Supply and deliver as per quotation 23214Delivery to Wyre Council, Copse Road Depot, FY7 6RP",Protective Clothing
Wyre Council,http://opendatacommunities.org/doc/district-council/wyre,30/05/2024,People and Places,Environmental Services,132B,Key Engineering & Hygiene Supplies LTD,31/05/2024,PE159820,30.80,0.00,"Supply clothing as latest quotation 23508

Delivery to Wyre Council, Copse Road Depot, Copse Road, Fleetwood, FY7 6RP",Protective Clothing
Wyre Council,http://opendatacommunities.org/doc/district-council/wyre,30/05/2024,People and Places,Support Services,135B,Aitch Tools & Fasteners LTD,07/05/2024,PE159078,38.00,0.00,Items purchased by Bob Greaves for Works - Apr 2024,Protective Clothing
Wyre Council,http://opendatacommunities.org/doc/district-council/wyre,30/05/2024,People and Places,Support Services,135B,Aitch Tools & Fasteners LTD,30/05/2024,PE159785,210.00,0.00,Materials,Protective Clothing
Wyre Council,http://opendatacommunities.org/doc/district-council/wyre,30/05/2024,People and Places,Support Services,135B,Amazon Business,08/05/2024,PE159120,147.64,0.00,Trousers,Protective Clothing
Wyre Council,http://opendatacommunities.org/doc/district-council/wyre,30/05/2024,People and Places,Support Services,135B,Amazon Business,13/05/2024,PE159213,6.66,0.00,4 pairs reusable non slip overshoes as requested by John Bettle  ( boot covers),Protective Clothing
Wyre Council,http://opendatacommunities.org/doc/district-council/wyre,30/05/2024,People and Places,Environmental Services,132B,Key Engineering & Hygiene Supplies LTD,14/05/2024,PE159232,883.00,0.00,Supply Refuse bags as your quotation 23377Blue bags,"Provision of Bins, Boxes and Sacks"
Wyre Council,http://opendatacommunities.org/doc/district-council/wyre,30/05/2024,People and Places,Environmental Services,132B,Key Engineering & Hygiene Supplies LTD,14/05/2024,PE159232,172.20,0.00,"Black bags Delivery to Wyre Council, Copse Road Depot, Copse Road, Fleetwood, FY7 6RP","Provision of Bins, Boxes and Sacks"
Wyre Council,http://opendatacommunities.org/doc/district-council/wyre,30/05/2024,People and Places,Environmental Services,132B,Contenur UK Ltd,02/05/2024,PE158971,1810.40,0.00,"351 x 240ltr Anthracite Grey Body c/w 0801 Blue Lid, in Virgin polymer @ 22.63 per unit","Provision of Bins, Boxes and Sacks"
Wyre Council,http://opendatacommunities.org/doc/district-council/wyre,30/05/2024,People and Places,Environmental Services,132B,Contenur UK Ltd,02/05/2024,PE158971,7943.13,0.00,"351 x 240ltr Anthracite Grey Body c/w 0300 Green Lid, logo, in Virgin polymer @ 22.63 per unitPrices as per ESPO Contract Schedule 860ADDAnticipated delivery ASAP (can accept delivery any time, but please advise in advance if possible)Pleas","Provision of Bins, Boxes and Sacks"
Wyre Council,http://opendatacommunities.org/doc/district-council/wyre,30/05/2024,People and Places,Environmental Services,132B,Contenur UK Ltd,16/05/2024,PE159385,6132.73,0.00,"351 x 240ltr Anthracite Grey Body c/w 0801 Blue Lid, in Virgin polymer @ 22.63 per unit","Provision of Bins, Boxes and Sacks"
Wyre Council,http://opendatacommunities.org/doc/district-council/wyre,30/05/2024,People and Places,Cultural and Related Services,132A,HUWS GRAY LTD,13/05/2024,PE157814,110.28,0.00,split timber rail,Public Footpaths/Rights Of Way
Wyre Council,http://opendatacommunities.org/doc/district-council/wyre,30/05/2024,People and Places,Cultural and Related Services,132A,Nisbetts Next Day Catering Equipment,28/05/2024,PE159704,419.94,0.00,Quote 51470580WEB GF954 3 of Bolero Faux Leather Dining Chair Black (box 2),Purchase Furniture
Wyre Council,http://opendatacommunities.org/doc/district-council/wyre,30/05/2024,People and Places,Cultural and Related Services,132A,Amazon Business,22/05/2024,PE159536,25.61,0.00,shipping,Purchase Furniture
Wyre Council,http://opendatacommunities.org/doc/district-council/wyre,30/05/2024,People and Places,Cultural and Related Services,132A,Amazon Business,22/05/2024,PE159536,233.28,0.00,4 x chairs,Purchase Furniture
Wyre Council,http://opendatacommunities.org/doc/district-council/wyre,30/05/2024,Resources,Support Services,135B,Amazon Business,15/05/2024,RS159361,25.00,0.00,"1 x Magnetic Belt Barrier Retractable - 3/5/10m Wall Mount Queue Crowd Control Wall Barrier, Fixed Safety Cordon Barrier, Queuing Safety Tape Cordon, Airports, Banks, School(3m).",Purchase Furniture
Wyre Council,http://opendatacommunities.org/doc/district-council/wyre,30/05/2024,Resources,Support Services,135B,Amazon Business,28/05/2024,RS159693,24.16,0.00,"1 x YheenLf Clothes Rack, 59 inch Wall Mounted Garment Rack, Iron Pipe Clothing Garment Rail, Multi-Purpose Clothing Hanging Rod for Laundry Room and Closet Storage (1 Pack).",Purchase Furniture
Wyre Council,http://opendatacommunities.org/doc/district-council/wyre,30/05/2024,Resources,Support Services,135B,Amazon Business,28/05/2024,RS159698,23.47,0.00,"3 x Purse Hanger for Closet,Unique Twist Design Bag Hanger Purse Hooks, Large Size Closet Rod Hooks for Hanging Bags, Purses, Handbags, Belts, Scarves, Hats,Clothes, Pans and Pots, Black (12 Pack Black).",Purchase Furniture
Wyre Council,http://opendatacommunities.org/doc/district-council/wyre,30/05/2024,Resources,Support Services,135B,Amazon Business,28/05/2024,RS159694,-0.93,0.00,Promotion,Purchase Furniture
Wyre Council,http://opendatacommunities.org/doc/district-council/wyre,30/05/2024,Resources,Support Services,135B,Amazon Business,28/05/2024,RS159694,-0.63,0.00,Promotion,Purchase Furniture
Wyre Council,http://opendatacommunities.org/doc/district-council/wyre,30/05/2024,Resources,Support Services,135B,Amazon Business,28/05/2024,RS159694,12.49,0.00,"1 x pipabiba 17cm Garage Storage Ladder Hooks, 6 Pack Heavy Duty Wall Mount Utility Hanger Organizer to Folded Chairs, Bicycles, Power Tools, Garden Hoses (19cm x 17cm).",Purchase Furniture
Wyre Council,http://opendatacommunities.org/doc/district-council/wyre,30/05/2024,Resources,Support Services,135B,Amazon Business,28/05/2024,RS159694,11.76,0.00,1 x 2Work Swing Bin Base Only 50 Litre Plastic Black 2W02381.,Purchase Furniture
Wyre Council,http://opendatacommunities.org/doc/district-council/wyre,30/05/2024,People and Places,Support Services,135B,RH Environmental LTD,30/05/2024,PE159804,4122.00,0.00,Request to cover licence year 3 of your RIAMS subscription from 1st April 2024 at a fee of 3822  plus 150+VAT Formatted Notices and a further 150+VAT to cover your CPD facility.  Total amount of 4122+VAT.,Purchase of Publications
Wyre Council,http://opendatacommunities.org/doc/district-council/wyre,30/05/2024,People and Places,Support Services,135B,RH Environmental LTD,30/05/2024,PE159804,769.00,0.00,Annual subscription for Noise App,Purchase of Publications
Wyre Council,http://opendatacommunities.org/doc/district-council/wyre,30/05/2024,Resources,Support Services,135B,District Councils Network C/O Hinckley & Bosworth,01/05/2024,RS158930,3220.00,0.00,DCN membership fee 2024,Purchase of Publications
Wyre Council,http://opendatacommunities.org/doc/district-council/wyre,30/05/2024,Resources,Support Services,135B,WILDY AND SONS LTD,13/05/2024,RS158935,1707.99,0.00,Oke`s Magisterial Formulist looseleaf Annualised Subscription 1st August 2024 to 31st July 2025 Invoice 1696626,Purchase of Publications
Wyre Council,http://opendatacommunities.org/doc/district-council/wyre,30/05/2024,People and Places,Support Services,135B,Gibson Garden Machinery LTD,31/05/2024,PE159638,402.00,0.00,Supply as pricing by email 19/3/24 1 of new Husqvarna 522iHD60 Hedgecutter - 402,Purchase of Tools or Equipment
Wyre Council,http://opendatacommunities.org/doc/district-council/wyre,30/05/2024,People and Places,Support Services,135B,Gibson Garden Machinery LTD,31/05/2024,PE159638,282.00,0.00,1 of new Husqvarna bli300 battery - 282,Purchase of Tools or Equipment
Wyre Council,http://opendatacommunities.org/doc/district-council/wyre,30/05/2024,People and Places,Support Services,135B,Gibson Garden Machinery LTD,31/05/2024,PE159638,124.00,0.00,"1 of new Husqvarna QC500 charger - 124  Delivery to Wyre Council, Copse Road Depot, Copse Road, Fleetwood, FY7 6RP",Purchase of Tools or Equipment
Wyre Council,http://opendatacommunities.org/doc/district-council/wyre,30/05/2024,People and Places,Planning and Development Servs,132C,Road Safety Services LTD,01/05/2024,PE158949,1246.40,0.00,road closure April every wednesday #9for year end,Purchase of Tools or Equipment
Wyre Council,http://opendatacommunities.org/doc/district-council/wyre,30/05/2024,People and Places,Support Services,135B,Aitch Tools & Fasteners LTD,30/05/2024,PE159785,219.98,0.00,Materials,Purchase of Tools or Equipment
Wyre Council,http://opendatacommunities.org/doc/district-council/wyre,30/05/2024,People and Places,Cultural and Related Services,132A,Amazon Business,28/05/2024,PE159697,10.92,0.00,Large picture hanging brackets,Purchase of Tools or Equipment
Wyre Council,http://opendatacommunities.org/doc/district-council/wyre,30/05/2024,People and Places,Cultural and Related Services,132A,Amazon Business,22/05/2024,PE159536,115.70,0.00,"Picture frames A2, A3, A4Key fobs",Purchase of Tools or Equipment
